Workbook

Sheet Forklaring

Sheet Overblik
I19: Kommune | K19: Prognose for udgifter
K21: Mio. kr. | L21: MV2023 | M21: Prognose 2023 | N21: Forskel - Mer-/mindreforbrug | O21: ØA2024 (24-pl)
K22: A-dagpenge | L22: =Dagpenge!M26/1000000 -> 10420.7 | M22: =Dagpenge!P26/1000000 -> 10320.35403 | N22: =M22-L22 -> -100.345974 | O22: =Dagpenge!N26/1000000 -> 11543.6717 | T22: Vælg om midtvejsvurdering/aftale skal fordeles på baggrund af senest-kendte regnskab eller bloktilskudsandel.
I23: Hele landet | K23: Kontant- og uddannelseshjælp | L23: ='Kontant- og uddannelseshjælp'!M26/1000000 -> 8873.465317 | M23: ='Kontant- og uddannelseshjælp'!P26/1000000 -> 7923.566048 | N23: =M23-L23 -> -949.8992693 | O23: ='Kontant- og uddannelseshjælp'!N26/1000000 -> 9430.986217
K24: Førtidspension | L24: =FØP!M26/1000000 -> 32384.4 | M24: =FØP!P26/1000000 -> 31053.96167 | N24: -1330.438331 | O24: =FØP!N26/1000000 -> 35090.9067
K25: Ledighedsydelse | L25: =Ledighedsydelse!M26/1000000 -> 2332.882054 | M25: =Ledighedsydelse!P26/1000000 -> 2274.084003 | N25: -58.79805154 | O25: =Ledighedsydelse!N26/1000000 -> 2491.057132
K26: Driftsudgifter til aktivering | L26: ='Driftsudgifter til aktivering'!M26/1000000 -> 3827.656297 | M26: ='Driftsudgifter til aktivering'!P26/1000000 -> 4013.743781 | N26: 186.0874842 | O26: ='Driftsudgifter til aktivering'!N26/1000000 -> 4078.41375
K27: Ressourceforløb | L27: =Ressourceforløb!M26/1000000 -> 2220.381553 | M27: =Ressourceforløb!P26/1000000 -> 2242.183277 | N27: 21.80172374 | O27: =Ressourceforløb!N26/1000000 -> 2329.110216 | T27: Bloktilskud
K28: Jobafklaring | L28: =Jobafklaring!M26/1000000 -> 2617.414237 | M28: =Jobafklaring!P26/1000000 -> 2832.97002 | N28: 215.5557833 | O28: =Jobafklaring!N26/1000000 -> 2708.102546
K29: Sygedagpenge | L29: =Sygedagpenge!M26/1000000 -> 9017.219516 | M29: =Sygedagpenge!P26/1000000 -> 9016.624323 | N29: -0.5951934734 | O29: =Sygedagpenge!N26/1000000 -> 9590.854067
K30: Fleksjob | L30: =Fleksjob!M26/1000000 -> 9557.289397 | M30: =Fleksjob!P26/1000000 -> 9536.702516 | N30: -20.5868809 | O30: =Fleksjob!N26/1000000 -> 10398.43522
K31: Seniorpension | L31: =Seniorpension!M26/1000000 -> 4132.5 | M31: =Seniorpension!P26/1000000 -> 4005.766782 | N31: =M31-L31 -> -126.7332176 | O31: =Seniorpension!N26/1000000 -> 5291.4392
K32: I alt | L32: =SUM(L22:L31) -> 85383.90837 | M32: =SUM(M22:M31) -> 83219.95644 | N32: =SUM(N22:N31) -> -2163.951927 | O32: =SUM(O22:O31) -> 92952.97675
H85: Hele landet
H86: Albertslund
H87: Allerød
H88: Assens
H89: Ballerup
H90: Billund
H91: Bornholm
H92: Brøndby
H93: Brønderslev
H94: Dragør
H95: Egedal
H96: Esbjerg
H97: Fanø
H98: Favrskov
H99: Faxe
H100: Fredensborg
H101: Fredericia
H102: Frederiksberg
H103: Frederikshavn
H104: Frederikssund
H105: Furesø
H106: Faaborg-Midtfyn
H107: Gentofte
H108: Gladsaxe
H109: Glostrup
H110: Greve
H111: Gribskov
H112: Guldborgsund
H113: Haderslev
H114: Halsnæs
H115: Hedensted
H116: Helsingør
H117: Herlev
H118: Herning
H119: Hillerød
H120: Hjørring
H121: Holbæk
H122: Holstebro
H123: Horsens
H124: Hvidovre
H125: Høje-Taastrup
H126: Hørsholm
H127: Ikast-Brande
H128: Ishøj
H129: Jammerbugt
H130: Kalundborg
H131: Kerteminde
H132: Kolding
H133: København
H134: Køge
H135: Langeland
H136: Lejre
H137: Lemvig
H138: Lolland
H139: Lyngby-Taarbæk
H140: Læsø
H141: Mariagerfjord
H142: Middelfart
H143: Morsø
H144: Norddjurs
H145: Nordfyns
H146: Nyborg
H147: Næstved
H148: Odder
H149: Odense
H150: Odsherred
H151: Randers
H152: Rebild
H153: Ringkøbing-Skjern
H154: Ringsted
H155: Roskilde
H156: Rudersdal
H157: Rødovre
H158: Samsø
H159: Silkeborg
H160: Skanderborg
H161: Skive
H162: Slagelse
H163: Solrød
H164: Sorø
H165: Stevns
H166: Struer
H167: Svendborg
H168: Syddjurs
H169: Sønderborg
H170: Thisted
H171: Tønder
H172: Tårnby
H173: Vallensbæk
H174: Varde
H175: Vejen
H176: Vejle
H177: Vesthimmerlands
H178: Viborg
H179: Vordingborg
H180: Ærø
H181: Aabenraa
H182: Aalborg
H183: Aarhus
Q186: Bloktilskud
Q187: Regnskab

Sheet Dagpenge
B1: Aktivitet | C1: MV2023 | D1: ØA2024 | E1: Budget 2024 | H1: 2019 | J1: 2020 | L1: 2021 | N1: 2022 | P1: 2023 | S1: Budget 2024 | T1: MV2023 | U1: Prognose 2023 | V1: ØA2024
A2: Jan 2019 | B2: 88105 | G2: Jan 2019 | H2: =B2 -> 88105 | I2: Jan 2020 | J2: =B14 -> 93290 | K2: Jan 2021 | L2: =B26 -> 120541 | M2: Jan 2022 | N2: =B38 -> 73043 | O2: Jan 2023 | P2: =B50 -> 73242 | R2: Jan 2023 | S2: =$S$14*J20 -> 75436.70596 | T2: =$T$14*J20 -> 76339.72751 | U2: =IF(P2,P2,(SUM(IF(P2,P2,0))/SUM(IF(P2,J20,0))*J20)) -> 73242 | V2: =$V$14*J20 -> 81864.82875
A3: Feb 2019 | B3: 87908 | G3: Feb 2019 | H3: =B3 -> 87908 | I3: Feb 2020 | J3: =B15 -> 93298 | K3: Feb 2021 | L3: =B27 -> 124328 | M3: Feb 2022 | N3: =B39 -> 70365 | O3: Feb 2023 | P3: =B51 -> 74165 | R3: Feb 2023 | S3: 75621.78771 | T3: 76527.0248 | U3: =IF(P3,P3,(SUM(IF(P2,P2,0)+IF(P3,P3,0))/SUM(IF(P2,J20,0)+IF(P3,J21,0))*J21)) -> 74165 | V3: 82065.68171
A4: Mar 2019 | B4: 83561 | G4: Mar 2019 | H4: 83561 | I4: Mar 2020 | J4: 101098 | K4: Mar 2021 | L4: 114680 | M4: Mar 2022 | N4: 66140 | O4: Mar 2023 | P4: 71001 | R4: Mar 2023 | S4: 73525.53572 | T4: 74405.67944 | U4: =IF(P4,P4,(SUM(IF(P2,P2,0)+IF(P3,P3,0)+IF(P4,P4,0))/SUM(IF(P2,J20,0)+IF(P3,J21,0)+IF(P4,J22,0))*J22)) -> 71001 | V4: 79790.80361
A5: Apr 2019 | B5: 74202 | G5: Apr 2019 | H5: 74202 | I5: Apr 2020 | J5: 117644 | K5: Apr 2021 | L5: 104688 | M5: Apr 2022 | N5: 62228 | O5: Apr 2023 | P5: 67998 | R5: Apr 2023 | S5: 72174.23777 | T5: 73038.20566 | U5: =IF(P5,P5,(SUM(IF(P2,P2,0)+IF(P3,P3,0)+IF(P4,P4,0)+IF(P5,P5,0))/SUM(IF(P2,J20,0)+IF(P3,J21,0)+IF(P4,J22,0)+IF(P5,J23,0))*J23)) -> 67998 | V5: 78324.35868
A6: Maj 2019 | B6: 75391 | G6: Maj 2019 | H6: 75391 | I6: Maj 2020 | J6: 122257 | K6: Maj 2021 | L6: 92971 | M6: Maj 2022 | N6: 57427 | O6: Maj 2023 | P6: 65017 | R6: Maj 2023 | S6: 70018.43774 | T6: 70856.59944 | U6: =IF(P6,P6,(SUM(IF(P2,P2,0)+IF(P3,P3,0)+IF(P4,P4,0)+IF(P5,P5,0)+IF(P6,P6,0))/SUM(IF(P2,J20,0)+IF(P3,J21,0)+IF(P4,J22,0)+IF(P5,J23,0)+IF(P6,J24,0))*J24)) -> 65017 | V6: 75984.85832
A7: Jun 2019 | B7: 76598 | G7: Jun 2019 | H7: 76598 | I7: Jun 2020 | J7: 119596 | K7: Jun 2021 | L7: 88244 | M7: Jun 2022 | N7: 58096 | O7: Jun 2023 | P7: 66392 | R7: Jun 2023 | S7: 68909.55664 | T7: 69734.44439 | U7: =IF(P7,P7,(SUM(IF(P2,P2,0)+IF(P3,P3,0)+IF(P4,P4,0)+IF(P5,P5,0)+IF(P6,P6,0)+IF(P7,P7,0))/SUM(IF(P2,J20,0)+IF(P3,J21,0)+IF(P4,J22,0)+IF(P5,J23,0)+IF(P6,J24,0)+IF(P7,J25,0))*J25)) -> 66392 | V7: 74781.4871
A8: Jul 2019 | B8: 77064 | G8: Jul 2019 | H8: 77064 | I8: Jul 2020 | J8: 115780 | K8: Jul 2021 | L8: 87908 | M8: Jul 2022 | N8: 62234 | O8: Jul 2023 | P8: 70838 | R8: Jul 2023 | S8: 69000.48811 | T8: 69826.46436 | U8: =IF(P8,P8,(SUM(IF(P2,P2,0)+IF(P3,P3,0)+IF(P4,P4,0)+IF(P5,P5,0)+IF(P6,P6,0)+IF(P7,P7,0)+IF(P8,P8,0))/SUM(IF(P2,J20,0)+IF(P3,J21,0)+IF(P4,J22,0)+IF(P5,J23,0)+IF(P6,J24,0)+IF(P7,J25,0)+IF(P8,J26,0))*J26)) -> 70838 | V8: 74880.16703
A9: Aug 2019 | B9: 81790 | G9: Aug 2019 | H9: 81790 | I9: Aug 2020 | J9: 113273 | K9: Aug 2021 | L9: 84197 | M9: Aug 2022 | N9: 62794 | O9: Aug 2023 | P9: 72677 | R9: Aug 2023 | S9: 68812.99225 | T9: 69636.72407 | U9: =IF(P9,P9,(SUM(IF(P2,P2,0)+IF(P3,P3,0)+IF(P4,P4,0)+IF(P5,P5,0)+IF(P6,P6,0)+IF(P7,P7,0)+IF(P8,P8,0)+IF(P9,P9,0))/SUM(IF(P2,J20,0)+IF(P3,J21,0)+IF(P4,J22,0)+IF(P5,J23,0)+IF(P6,J24,0)+IF(P7,J25,0)+IF(P8,J26,0)+IF(P9,J27,0))*J27)) -> 72677 | V9: 74676.69425
A10: Sep 2019 | B10: 79228 | G10: Sep 2019 | H10: 79228 | I10: Sep 2020 | J10: 108796 | K10: Sep 2021 | L10: 76421 | M10: Sep 2022 | N10: 58127 | O10: Sep 2023 | P10: 67791 | R10: Sep 2023 | S10: 64893.68502 | T10: 65670.50044 | U10: =IF(P10,P10,(SUM(IF(P2,P2,0)+IF(P3,P3,0)+IF(P4,P4,0)+IF(P5,P5,0)+IF(P6,P6,0)+IF(P7,P7,0)+IF(P8,P8,0)+IF(P9,P9,0)+IF(P10,P10,0))/SUM(IF(P2,J20,0)+IF(P3,J21,0)+IF(P4,J22,0)+IF(P5,J23,0)+IF(P6,J24,0)+IF(P7,J25,0)+IF(P8,J26,0)+IF(P9,J27,0)+IF(P10,J28,0))*J28)) -> 67791 | V10: 70423.41449
A11: Okt 2019 | B11: 80650 | G11: Okt 2019 | H11: 80650 | I11: Okt 2020 | J11: 107645 | K11: Okt 2021 | L11: 71505 | M11: Okt 2022 | N11: 57832 | O11: Okt 2023 | P11: 67961 | R11: Okt 2023 | S11: 63899.8765 | T11: 64664.79544 | U11: =IF(P11,P11,(SUM(IF(P2,P2,0)+IF(P3,P3,0)+IF(P4,P4,0)+IF(P5,P5,0)+IF(P6,P6,0)+IF(P7,P7,0)+IF(P8,P8,0)+IF(P9,P9,0)+IF(P10,P10,0)+IF(P11,P11,0))/SUM(IF(P2,J20,0)+IF(P3,J21,0)+IF(P4,J22,0)+IF(P5,J23,0)+IF(P6,J24,0)+IF(P7,J25,0)+IF(P8,J26,0)+IF(P9,J27,0)+IF(P10,J28,0)+IF(P11,J29,0))*J29)) -> 67961 | V11: 69344.92141
A12: Nov 2019 | B12: 81704 | G12: Nov 2019 | H12: 81704 | I12: Nov 2020 | J12: 105887 | K12: Nov 2021 | L12: 65900 | M12: Nov 2022 | N12: 59249 | O12: Nov 2023 | P12: 68283 | R12: Nov 2023 | S12: 62915.72441 | T12: 63668.86248 | U12: =IF(P12,P12,(SUM(IF(P2,P2,0)+IF(P3,P3,0)+IF(P4,P4,0)+IF(P5,P5,0)+IF(P6,P6,0)+IF(P7,P7,0)+IF(P8,P8,0)+IF(P9,P9,0)+IF(P10,P10,0)+IF(P11,P11,0)+IF(P12,P12,0))/SUM(IF(P2,J20,0)+IF(P3,J21,0)+IF(P4,J22,0)+IF(P5,J23,0)+IF(P6,J24,0)+IF(P7,J25,0)+IF(P8,J26,0)+IF(P9,J27,0)+IF(P10,J28,0)+IF(P11,J29,0)+IF(P12,J30,0))*J30)) -> 68283 | V12: 68276.90762
A13: Dec 2019 | B13: 85239 | G13: Dec 2019 | H13: 85239 | I13: Dec 2020 | J13: 108976 | K13: Dec 2021 | L13: 59294 | M13: Dec 2022 | N13: 57619 | O13: Dec 2023 | P13: 64278 | R13: Dec 2023 | S13: 62591.429 | T13: 63340.68506 | U13: =IF(P13,P13,(SUM(IF(P2,P2,0)+IF(P3,P3,0)+IF(P4,P4,0)+IF(P5,P5,0)+IF(P6,P6,0)+IF(P7,P7,0)+IF(P8,P8,0)+IF(P9,P9,0)+IF(P10,P10,0)+IF(P11,P11,0)+IF(P12,P12,0)+IF(P13,P13,0))/SUM(IF(P2,J20,0)+IF(P3,J21,0)+IF(P4,J22,0)+IF(P5,J23,0)+IF(P6,J24,0)+IF(P7,J25,0)+IF(P8,J26,0)+IF(P9,J27,0)+IF(P10,J28,0)+IF(P11,J29,0)+IF(P12,J30,0)+IF(P13,J31,0))*J31)) -> 64278 | V13: 67924.97831
A14: Jan 2020 | B14: 93290 | G14: I alt 2019 | H14: =SUM(H2:H13) -> 971440 | I14: I alt 2020 | J14: =SUM(J2:J13) -> 1307540 | K14: I alt 2021 | L14: =SUM(L2:L13) -> 1090677 | M14: I alt 2022 | N14: =SUM(N2:N13) -> 745154 | S14: =O26/(P21*1.033) -> 827800.4568 | T14: =M26/P21 -> 837709.7131 | U14: =SUM(U2:U13) -> 829643 | V14: =N26/(P21*1.033) -> 898339.1013
A15: Feb 2020 | B15: 93298
A16: Mar 2020 | B16: 101098
A17: Apr 2020 | B17: 117644
A18: Maj 2020 | B18: 122257 | I18: Fordeling 2019-2022 | L18: A-dagpenge
A19: Jun 2020 | B19: 119596
A20: Jul 2020 | B20: 115780 | I20: jan | J20: =(H2+J2+L2+N2)/($H$14+$J$14+$L$14+$N$14) -> 0.09112909439 | L20: Regnskab 2022 (kr.) | M20: Aktivitet 2022 | N20: Mdl. fuldtidspers. | O20: Enhedspris 2022 (23-pl) | P20: Enhedspris (måned)
A21: Aug 2020 | B21: 113273 | I21: feb | J21: 0.09135267695 | L21: =SUMIF('Regnskab 2022'!A2:J100,Overblik!I23,'Regnskab 2022'!C2:C100)*1000 -> 9081344000 | M21: =SUMIF('Aktivitet 2022'!A2:J100,Overblik!I23,'Aktivitet 2022'!B2:B100) -> 62023 | N21: =N14 -> 745154 | O21: =(((L21))/M21)*1.0195 -> 149274.1436 | P21: =O21/12 -> 12439.51197
A22: Sep 2020 | B22: 108796 | I22: mar | J22: 0.08882036137
A23: Okt 2020 | B23: 107645 | I23: apr | J23: 0.08718796562 | L23: Prognose for udgifter og aktivitet
A24: Nov 2020 | B24: 105887 | I24: maj | J24: 0.08458371478
A25: Dec 2020 | B25: 108976 | I25: jun | J25: 0.08324416358 | M25: MV2023 | N25: ØA2024 (24-pl) | O25: Budget 2024 (24-pl) | P25: Prognose 2023
A26: Jan 2021 | B26: 120541 | I26: jul | J26: 0.08335401067 | L26: Udgifter (kr.) | M26: =IF(Overblik!T27="Bloktilskud",SUMIF('Bloktilskudsdel - MV23'!A2:J100,Overblik!I23,'Bloktilskudsdel - MV23'!C2:C100),SUMIF('Midtvejsvurdering 2023'!A2:J100,Overblik!I23,'Midtvejsvurdering 2023'!C2:C100))*1000 -> 1.04207e+10 | N26: =IF(Overblik!T27="Bloktilskud",SUMIF('Bloktilskudsdel - ØA24'!A2:J100,Overblik!I23,'Bloktilskudsdel - ØA24'!C2:C100),SUMIF('Overførselsskøn 2024'!A2:J100,Overblik!I23,'Overførselsskøn 2024'!C2:C100))*1000 -> 1.15436717e+10 | O26: =SUMIF('Budget 2024'!A2:J100,Overblik!I23,'Budget 2024'!C2:C100)*1000 -> 10637249000 | P26: =U14*P21 -> 1.032035403e+10
A27: Feb 2021 | B27: 124328 | I27: aug | J27: 0.08312751181 | L27: Aktivitet* | M27: =T14 -> 837709.7131 | N27: =N26/(P21*1.033) -> 898339.1013 | O27: =O26/(P21*1.033) -> 827800.4568 | P27: =U14 -> 829643
A28: Mar 2021 | B28: 114680 | I28: sep | J28: 0.07839290796 | L28: * Aktiviteten er opgjort som de månedlige fuldtidspersoner i alt på et år.
A29: Apr 2021 | B29: 104688 | I29: okt | J29: 0.07719236679
A30: Maj 2021 | B30: 92971 | I30: nov | J30: 0.0760034908
A31: Jun 2021 | B31: 88244 | I31: dec | J31: 0.07561173527
A32: Jul 2021 | B32: 87908
A33: Aug 2021 | B33: 84197
A34: Sep 2021 | B34: 76421
A35: Okt 2021 | B35: 71505
A36: Nov 2021 | B36: 65900
A37: Dec 2021 | B37: 59294
A38: Jan 2022 | B38: 73043
A39: Feb 2022 | B39: 70365
A40: Mar 2022 | B40: 66140
A41: Apr 2022 | B41: 62228
A42: Maj 2022 | B42: 57427
A43: Jun 2022 | B43: 58096
A44: Jul 2022 | B44: 62234
A45: Aug 2022 | B45: 62794
A46: Sep 2022 | B46: 58127
A47: Okt 2022 | B47: 57832
A48: Nov 2022 | B48: 59249
A49: Dec 2022 | B49: 57619
A50: Jan 2023 | B50: 73242 | C50: =T2 -> 76339.72751
A51: Feb 2023 | B51: 74165 | C51: =T3 -> 76527.0248
A52: Mar 2023 | B52: 71001 | C52: 74405.67944
A53: Apr 2023 | B53: 67998 | C53: 73038.20566
A54: Maj 2023 | B54: 65017 | C54: 70856.59944
A55: Jun 2023 | B55: 66392 | C55: 69734.44439
A56: Jul 2023 | B56: 70838 | C56: 69826.46436
A57: Aug 2023 | B57: 72677 | C57: 69636.72407
A58: Sep 2023 | B58: 67791 | C58: 65670.50044
A59: Okt 2023 | B59: 67961 | C59: 64664.79544
A60: Nov 2023 | B60: 68283 | C60: 63668.86248
A61: Dec 2023 | B61: 64278 | C61: 63340.68506
A62: Jan 2024 | D62: =V2 -> 81864.82875 | E62: =S2 -> 75436.70596
A63: Feb 2024 | D63: =V3 -> 82065.68171 | E63: =S3 -> 75621.78771
A64: Mar 2024 | D64: 79790.80361 | E64: 73525.53572
A65: Apr 2024 | D65: 78324.35868 | E65: 72174.23777
A66: Maj 2024 | D66: 75984.85832 | E66: 70018.43774
A67: Jun 2024 | D67: 74781.4871 | E67: 68909.55664
A68: Jul 2024 | D68: 74880.16703 | E68: 69000.48811
A69: Aug 2024 | D69: 74676.69425 | E69: 68812.99225
A70: Sep 2024 | D70: 70423.41449 | E70: 64893.68502
A71: Okt 2024 | D71: 69344.92141 | E71: 63899.8765
A72: Nov 2024 | D72: 68276.90762 | E72: 62915.72441
A73: Dec 2024 | D73: 67924.97831 | E73: 62591.429

Sheet Kontant- og uddannelseshjælp
B1: Aktivitet | C1: MV2023 | D1: ØA2024 | E1: Budget 2024 | H1: 2019 | J1: 2020 | L1: 2021 | N1: 2022 | P1: 2023 | S1: Budget 2024 | T1: MV2023 | U1: Prognose 2023 | V1: ØA2024
A2: Jan 2019 | B2: 106962 | G2: Jan 2019 | H2: =B2 -> 106962 | I2: Jan 2020 | J2: =B14 -> 101642 | K2: Jan 2021 | L2: =B26 -> 98116 | M2: Jan 2022 | N2: =B38 -> 82981 | O2: Jan 2023 | P2: =B50 -> 78176 | R2: Jan 2023 | S2: =$S$14*J20 -> 80491.68863 | T2: =J20*$T$14 -> 88278.81342 | U2: =IF(P2,P2,(SUM(IF(P2,P2,0))/SUM(IF(P2,J20,0))*J20)) -> 78176 | V2: =$V$14*J20 -> 90828.05611
A3: Feb 2019 | B3: 107973 | G3: Feb 2019 | H3: =B3 -> 107973 | I3: Feb 2020 | J3: =B15 -> 102437 | K3: Feb 2021 | L3: =B27 -> 99077 | M3: Feb 2022 | N3: =B39 -> 83037 | O3: Feb 2023 | P3: =B51 -> 78747 | R3: Feb 2023 | S3: 81074.77165 | T3: 88918.30649 | U3: =IF(P3,P3,(SUM(IF(P2,P2,0)+IF(P3,P3,0))/SUM(IF(P2,J20,0)+IF(P3,J21,0))*J21)) -> 78747 | V3: 91486.01593
A4: Mar 2019 | B4: 107949 | G4: Mar 2019 | H4: 107949 | I4: Mar 2020 | J4: 103822 | K4: Mar 2021 | L4: 98290 | M4: Mar 2022 | N4: 82918 | O4: Mar 2023 | P4: 78884 | R4: Mar 2023 | S4: 81168.75067 | T4: 89021.37746 | U4: =IF(P4,P4,(SUM(IF(P2,P2,0)+IF(P3,P3,0)+IF(P4,P4,0))/SUM(IF(P2,J20,0)+IF(P3,J21,0)+IF(P4,J22,0))*J22)) -> 78884 | V4: 91592.0633
A5: Apr 2019 | B5: 106678 | G5: Apr 2019 | H5: 106678 | I5: Apr 2020 | J5: 108544 | K5: Apr 2021 | L5: 96462 | M5: Apr 2022 | N5: 82451 | O5: Apr 2023 | P5: 78561 | R5: Apr 2023 | S5: 81407.51935 | T5: 89283.24569 | U5: =IF(P5,P5,(SUM(IF(P2,P2,0)+IF(P3,P3,0)+IF(P4,P4,0)+IF(P5,P5,0))/SUM(IF(P2,J20,0)+IF(P3,J21,0)+IF(P4,J22,0)+IF(P5,J23,0))*J23)) -> 78561 | V5: 91861.49354
A6: Maj 2019 | B6: 106268 | G6: Maj 2019 | H6: 106268 | I6: Maj 2020 | J6: 109665 | K6: Maj 2021 | L6: 94432 | M6: Maj 2022 | N6: 81757 | O6: Maj 2023 | P6: 78025 | R6: Maj 2023 | S6: 80991.73964 | T6: 88827.24159 | U6: =IF(P6,P6,(SUM(IF(P2,P2,0)+IF(P3,P3,0)+IF(P4,P4,0)+IF(P5,P5,0)+IF(P6,P6,0))/SUM(IF(P2,J20,0)+IF(P3,J21,0)+IF(P4,J22,0)+IF(P5,J23,0)+IF(P6,J24,0))*J24)) -> 78025 | V6: 91392.32134
A7: Jun 2019 | B7: 106105 | G7: Jun 2019 | H7: 106105 | I7: Jun 2020 | J7: 108395 | K7: Jun 2021 | L7: 92023 | M7: Jun 2022 | N7: 80880 | O7: Jun 2023 | P7: 77225 | R7: Jun 2023 | S7: 80017.04294 | T7: 87758.24839 | U7: =IF(P7,P7,(SUM(IF(P2,P2,0)+IF(P3,P3,0)+IF(P4,P4,0)+IF(P5,P5,0)+IF(P6,P6,0)+IF(P7,P7,0))/SUM(IF(P2,J20,0)+IF(P3,J21,0)+IF(P4,J22,0)+IF(P5,J23,0)+IF(P6,J24,0)+IF(P7,J25,0))*J25)) -> 77225 | V7: 90292.45863
A8: Jul 2019 | B8: 102729 | G8: Jul 2019 | H8: 102729 | I8: Jul 2020 | J8: 103835 | K8: Jul 2021 | L8: 88524 | M8: Jul 2022 | N8: 78905 | O8: Jul 2023 | P8: 75376 | R8: Jul 2023 | S8: 77247.24367 | T8: 84720.48639 | U8: =IF(P8,P8,(SUM(IF(P2,P2,0)+IF(P3,P3,0)+IF(P4,P4,0)+IF(P5,P5,0)+IF(P6,P6,0)+IF(P7,P7,0)+IF(P8,P8,0))/SUM(IF(P2,J20,0)+IF(P3,J21,0)+IF(P4,J22,0)+IF(P5,J23,0)+IF(P6,J24,0)+IF(P7,J25,0)+IF(P8,J26,0))*J26)) -> 75376 | V8: 87166.97465
A9: Aug 2019 | B9: 100023 | G9: Aug 2019 | H9: 100023 | I9: Aug 2020 | J9: 99459 | K9: Aug 2021 | L9: 86031 | M9: Aug 2022 | N9: 77368 | O9: Aug 2023 | P9: 74048 | R9: Aug 2023 | S9: 74952.09009 | T9: 82203.28943 | U9: =IF(P9,P9,(SUM(IF(P2,P2,0)+IF(P3,P3,0)+IF(P4,P4,0)+IF(P5,P5,0)+IF(P6,P6,0)+IF(P7,P7,0)+IF(P8,P8,0)+IF(P9,P9,0))/SUM(IF(P2,J20,0)+IF(P3,J21,0)+IF(P4,J22,0)+IF(P5,J23,0)+IF(P6,J24,0)+IF(P7,J25,0)+IF(P8,J26,0)+IF(P9,J27,0))*J27)) -> 74048 | V9: 84577.08815
A10: Sep 2019 | B10: 100131 | G10: Sep 2019 | H10: 100131 | I10: Sep 2020 | J10: 97942 | K10: Sep 2021 | L10: 84820 | M10: Sep 2022 | N10: 77044 | O10: Sep 2023 | P10: 74030 | R10: Sep 2023 | S10: 74344.01485 | T10: 81536.38627 | U10: =IF(P10,P10,(SUM(IF(P2,P2,0)+IF(P3,P3,0)+IF(P4,P4,0)+IF(P5,P5,0)+IF(P6,P6,0)+IF(P7,P7,0)+IF(P8,P8,0)+IF(P9,P9,0)+IF(P10,P10,0))/SUM(IF(P2,J20,0)+IF(P3,J21,0)+IF(P4,J22,0)+IF(P5,J23,0)+IF(P6,J24,0)+IF(P7,J25,0)+IF(P8,J26,0)+IF(P9,J27,0)+IF(P10,J28,0))*J28)) -> 74030 | V10: 83890.92671
A11: Okt 2019 | B11: 100967 | G11: Okt 2019 | H11: 100967 | I11: Okt 2020 | J11: 97701 | K11: Okt 2021 | L11: 84670 | M11: Okt 2022 | N11: 77317 | O11: Okt 2023 | P11: 74441 | R11: Okt 2023 | S11: 74492.31581 | T11: 81699.03453 | U11: =IF(P11,P11,(SUM(IF(P2,P2,0)+IF(P3,P3,0)+IF(P4,P4,0)+IF(P5,P5,0)+IF(P6,P6,0)+IF(P7,P7,0)+IF(P8,P8,0)+IF(P9,P9,0)+IF(P10,P10,0)+IF(P11,P11,0))/SUM(IF(P2,J20,0)+IF(P3,J21,0)+IF(P4,J22,0)+IF(P5,J23,0)+IF(P6,J24,0)+IF(P7,J25,0)+IF(P8,J26,0)+IF(P9,J27,0)+IF(P10,J28,0)+IF(P11,J29,0))*J29)) -> 74441 | V11: 84058.27179
A12: Nov 2019 | B12: 102654 | G12: Nov 2019 | H12: 102654 | I12: Nov 2020 | J12: 98491 | K12: Nov 2021 | L12: 84474 | M12: Nov 2022 | N12: 78102 | O12: Nov 2023 | P12: 75020 | R12: Nov 2023 | S12: 75125.58982 | T12: 82393.57429 | U12: =IF(P12,P12,(SUM(IF(P2,P2,0)+IF(P3,P3,0)+IF(P4,P4,0)+IF(P5,P5,0)+IF(P6,P6,0)+IF(P7,P7,0)+IF(P8,P8,0)+IF(P9,P9,0)+IF(P10,P10,0)+IF(P11,P11,0)+IF(P12,P12,0))/SUM(IF(P2,J20,0)+IF(P3,J21,0)+IF(P4,J22,0)+IF(P5,J23,0)+IF(P6,J24,0)+IF(P7,J25,0)+IF(P8,J26,0)+IF(P9,J27,0)+IF(P10,J28,0)+IF(P11,J29,0)+IF(P12,J30,0))*J30)) -> 75020 | V12: 84772.8679
A13: Dec 2019 | B13: 102490 | G13: Dec 2019 | H13: 102490 | I13: Dec 2020 | J13: 97841 | K13: Dec 2021 | L13: 83230 | M13: Dec 2022 | N13: 78127 | O13: Dec 2023 | P13: 74146 | R13: Dec 2023 | S13: 74705.67916 | T13: 81933.03961 | U13: =IF(P13,P13,(SUM(IF(P2,P2,0)+IF(P3,P3,0)+IF(P4,P4,0)+IF(P5,P5,0)+IF(P6,P6,0)+IF(P7,P7,0)+IF(P8,P8,0)+IF(P9,P9,0)+IF(P10,P10,0)+IF(P11,P11,0)+IF(P12,P12,0)+IF(P13,P13,0))/SUM(IF(P2,J20,0)+IF(P3,J21,0)+IF(P4,J22,0)+IF(P5,J23,0)+IF(P6,J24,0)+IF(P7,J25,0)+IF(P8,J26,0)+IF(P9,J27,0)+IF(P10,J28,0)+IF(P11,J29,0)+IF(P12,J30,0)+IF(P13,J31,0))*J31)) -> 74146 | V13: 84299.03428
A14: Jan 2020 | B14: 101642 | G14: I alt 2019 | H14: =SUM(H2:H13) -> 1250929 | I14: I alt 2020 | J14: =SUM(J2:J13) -> 1229774 | K14: I alt 2021 | L14: =SUM(L2:L13) -> 1090149 | M14: I alt 2022 | N14: =SUM(N2:N13) -> 960887 | S14: =O26/(P21*1.033) -> 936018.4463 | T14: =(M26/O21)*12 -> 1026573.044 | U14: =SUM(U2:U13) -> 916679 | V14: =N26/(P21*1.033) -> 1056217.572
A15: Feb 2020 | B15: 102437
A16: Mar 2020 | B16: 103822
A17: Apr 2020 | B17: 108544
A18: Maj 2020 | B18: 109665 | I18: Fordeling 2019-2022 | L18: Kontant- og uddannelseshjælp
A19: Jun 2020 | B19: 108395
A20: Jul 2020 | B20: 103835 | I20: Jan | J20: =(H2+J2+L2+N2)/($H$14+$J$14+$L$14+$N$14) -> 0.08599369911 | L20: Regnskab 2022 (kr.) | M20: Aktivitet 2022 | N20: Mdl. fuldtidspers. | O20: Enhedspris 2022 (23-pl) | P20: Enhedspris (måned)
A21: Aug 2020 | B21: 99459 | I21: feb | J21: 0.08661663878 | L21: =SUMIF('Regnskab 2022'!A2:J100,Overblik!I23,'Regnskab 2022'!B2:B100)*1000 -> 8142257000 | M21: =SUMIF('Aktivitet 2022'!A2:J100,Overblik!I23,'Aktivitet 2022'!C2:C100) -> 80029 | N21: =N14 -> 960887 | O21: =(((L21))/M21)*1.0195 -> 103725.2872 | P21: =O21/12 -> 8643.773936
A22: Sep 2020 | B22: 97942 | I22: Mar | J22: 0.08671704174
A23: Okt 2020 | B23: 97701 | I23: Apr | J23: 0.08697213145 | L23: Prognose for udgifter og aktivitet
A24: Nov 2020 | B24: 98491 | I24: Maj | J24: 0.08652793111
A25: Dec 2020 | B25: 97841 | I25: Jun | J25: 0.085486609 | M25: MV2023 | N25: ØA2024 (24-pl) | O25: Budget 2024 | P25: Prognose 2023
A26: Jan 2021 | B26: 98116 | I26: Jul | J26: 0.08252748007 | L26: Udgifter (kr.) | M26: =IF(Overblik!T27="Bloktilskud",SUMIF('Bloktilskudsdel - MV23'!A2:J100,Overblik!I23,'Bloktilskudsdel - MV23'!B2:B100),SUMIF('Midtvejsvurdering 2023'!A2:J100,Overblik!I23,'Midtvejsvurdering 2023'!B2:B100))*1000 -> 8873465317 | N26: =IF(Overblik!T27="Bloktilskud",SUMIF('Bloktilskudsdel - ØA24'!A2:J100,Overblik!I23,'Bloktilskudsdel - ØA24'!B2:B100),SUMIF('Overførselsskøn 2024'!A2:J100,Overblik!I23,'Overførselsskøn 2024'!B2:B100))*1000 -> 9430986217 | O26: =SUMIF('Budget 2024'!A2:J100,Overblik!I23,'Budget 2024'!B2:B100)*1000 -> 8357726000 | P26: =U14*P21 -> 7923566048
A27: Feb 2021 | B27: 99077 | I27: Aug | J27: 0.08007544124 | L27: Aktivitet* | M27: =T14 -> 1026573.044 | N27: =N26/(P21*1.033) -> 1056217.572 | O27: =O26/(P21*1.033) -> 936018.4463 | P27: =U14 -> 916679
A28: Mar 2021 | B28: 98290 | I28: Sep | J28: 0.079425801 | L28: * Aktiviteten er opgjort som de månedlige fuldtidspersoner i alt på et år.
A29: Apr 2021 | B29: 96462 | I29: Okt | J29: 0.07958423907
A30: Maj 2021 | B30: 94432 | I30: Nov | J30: 0.08026080054
A31: Jun 2021 | B31: 92023 | I31: Dec | J31: 0.07981218689
A32: Jul 2021 | B32: 88524
A33: Aug 2021 | B33: 86031
A34: Sep 2021 | B34: 84820
A35: Okt 2021 | B35: 84670
A36: Nov 2021 | B36: 84474
A37: Dec 2021 | B37: 83230
A38: Jan 2022 | B38: 82981
A39: Feb 2022 | B39: 83037
A40: Mar 2022 | B40: 82918
A41: Apr 2022 | B41: 82451
A42: Maj 2022 | B42: 81757
A43: Jun 2022 | B43: 80880
A44: Jul 2022 | B44: 78905
A45: Aug 2022 | B45: 77368
A46: Sep 2022 | B46: 77044
A47: Okt 2022 | B47: 77317
A48: Nov 2022 | B48: 78102
A49: Dec 2022 | B49: 78127
A50: Jan 2023 | B50: 78176 | C50: =T2 -> 88278.81342
A51: Feb 2023 | B51: 78747 | C51: =T3 -> 88918.30649
A52: Mar 2023 | B52: 78884 | C52: 89021.37746
A53: Apr 2023 | B53: 78561 | C53: 89283.24569
A54: Maj 2023 | B54: 78025 | C54: 88827.24159
A55: Jun 2023 | B55: 77225 | C55: 87758.24839
A56: Jul 2023 | B56: 75376 | C56: 84720.48639
A57: Aug 2023 | B57: 74048 | C57: 82203.28943
A58: Sep 2023 | B58: 74030 | C58: 81536.38627
A59: Okt 2023 | B59: 74441 | C59: 81699.03453
A60: Nov 2023 | B60: 75020 | C60: 82393.57429
A61: Dec 2023 | B61: 74146 | C61: 81933.03961
A62: Jan 2024 | D62: =V2 -> 90828.05611 | E62: =S2 -> 80491.68863
A63: Feb 2024 | D63: =V3 -> 91486.01593 | E63: =S3 -> 81074.77165
A64: Mar 2024 | D64: 91592.0633 | E64: 81168.75067
A65: Apr 2024 | D65: 91861.49354 | E65: 81407.51935
A66: Maj 2024 | D66: 91392.32134 | E66: 80991.73964
A67: Jun 2024 | D67: 90292.45863 | E67: 80017.04294
A68: Jul 2024 | D68: 87166.97465 | E68: 77247.24367
A69: Aug 2024 | D69: 84577.08815 | E69: 74952.09009
A70: Sep 2024 | D70: 83890.92671 | E70: 74344.01485
A71: Okt 2024 | D71: 84058.27179 | E71: 74492.31581
A72: Nov 2024 | D72: 84772.8679 | E72: 75125.58982
A73: Dec 2024 | D73: 84299.03428 | E73: 74705.67916

Sheet FØP
B1: Aktivitet | C1: MV2023 | D1: ØA2024 | E1: Budget 2024 | H1: 2019 | J1: 2020 | L1: 2021 | N1: 2022 | P1: 2023 | S1: Budget 2024 | T1: MV2023 | U1: Prognose 2023 | V1: ØA2024
A2: Jan 2019 | B2: 204760 | G2: Jan 2019 | H2: =B2 -> 204760 | I2: Jan 2020 | J2: =B14 -> 212415 | K2: Jan 2021 | L2: =B26 -> 219882 | M2: Jan 2022 | N2: =B38 -> 226878 | O2: Jan 2023 | P2: =B50 -> 237069 | R2: Jan 2023 | S2: =$S$14*J20 -> 254249.6255 | T2: =J20*$T$14 -> 245250.3201 | U2: =IF(P2,P2,(SUM(IF(P2,P2,0))/SUM(IF(P2,J20,0))*J20)) -> 237069 | V2: =$V$14*J20 -> 257257.4712
A3: Feb 2019 | B3: 205741 | G3: Feb 2019 | H3: =B3 -> 205741 | I3: Feb 2020 | J3: =B15 -> 213448 | K3: Feb 2021 | L3: =B27 -> 220988 | M3: Feb 2022 | N3: =B39 -> 227801 | O3: Feb 2023 | P3: =B51 -> 237588 | R3: Feb 2023 | S3: 255439.4502 | T3: 246398.0304 | U3: =IF(P3,P3,(SUM(IF(P2,P2,0)+IF(P3,P3,0))/SUM(IF(P2,J20,0)+IF(P3,J21,0))*J21)) -> 237588 | V3: 258461.3719
A4: Mar 2019 | B4: 206623 | G4: Mar 2019 | H4: 206623 | I4: Mar 2020 | J4: 214172 | K4: Mar 2021 | L4: 222004 | M4: Mar 2022 | N4: 228774 | O4: Mar 2023 | P4: 238079 | R4: Mar 2023 | S4: 256497.4319 | T4: 247418.5642 | U4: =IF(P4,P4,(SUM(IF(P2,P2,0)+IF(P3,P3,0)+IF(P4,P4,0))/SUM(IF(P2,J20,0)+IF(P3,J21,0)+IF(P4,J22,0))*J22)) -> 238079 | V4: 259531.8698
A5: Apr 2019 | B5: 207558 | G5: Apr 2019 | H5: 207558 | I5: Apr 2020 | J5: 215464 | K5: Apr 2021 | L5: 223194 | M5: Apr 2022 | N5: 229882 | O5: Apr 2023 | P5: 238956 | R5: Apr 2023 | S5: 257829.1057 | T5: 248703.1026 | U5: =IF(P5,P5,(SUM(IF(P2,P2,0)+IF(P3,P3,0)+IF(P4,P4,0)+IF(P5,P5,0))/SUM(IF(P2,J20,0)+IF(P3,J21,0)+IF(P4,J22,0)+IF(P5,J23,0))*J23)) -> 238956 | V5: 260879.2976
A6: Maj 2019 | B6: 208572 | G6: Maj 2019 | H6: 208572 | I6: Maj 2020 | J6: 216363 | K6: Maj 2021 | L6: 224214 | M6: Maj 2022 | N6: 230911 | O6: Maj 2023 | P6: 239230 | R6: Maj 2023 | S6: 258995.0927 | T6: 249827.8189 | U6: =IF(P6,P6,(SUM(IF(P2,P2,0)+IF(P3,P3,0)+IF(P4,P4,0)+IF(P5,P5,0)+IF(P6,P6,0))/SUM(IF(P2,J20,0)+IF(P3,J21,0)+IF(P4,J22,0)+IF(P5,J23,0)+IF(P6,J24,0))*J24)) -> 239230 | V6: 262059.0786
A7: Jun 2019 | B7: 209610 | G7: Jun 2019 | H7: 209610 | I7: Jun 2020 | J7: 217568 | K7: Jun 2021 | L7: 225357 | M7: Jun 2022 | N7: 232115 | O7: Jun 2023 | P7: 239902 | R7: Jun 2023 | S7: 260345.8955 | T7: 251130.8093 | U7: =IF(P7,P7,(SUM(IF(P2,P2,0)+IF(P3,P3,0)+IF(P4,P4,0)+IF(P5,P5,0)+IF(P6,P6,0)+IF(P7,P7,0))/SUM(IF(P2,J20,0)+IF(P3,J21,0)+IF(P4,J22,0)+IF(P5,J23,0)+IF(P6,J24,0)+IF(P7,J25,0))*J25)) -> 239902 | V7: 263425.8618
A8: Jul 2019 | B8: 210739 | G8: Jul 2019 | H8: 210739 | I8: Jul 2020 | J8: 218105 | K8: Jul 2021 | L8: 226115 | M8: Jul 2022 | N8: 233701 | O8: Jul 2023 | P8: 240804 | R8: Jul 2023 | S8: 261526.0086 | T8: 252269.1516 | U8: =IF(P8,P8,(SUM(IF(P2,P2,0)+IF(P3,P3,0)+IF(P4,P4,0)+IF(P5,P5,0)+IF(P6,P6,0)+IF(P7,P7,0)+IF(P8,P8,0))/SUM(IF(P2,J20,0)+IF(P3,J21,0)+IF(P4,J22,0)+IF(P5,J23,0)+IF(P6,J24,0)+IF(P7,J25,0)+IF(P8,J26,0))*J26)) -> 240804 | V8: 264619.9359
A9: Aug 2019 | B9: 210689 | G9: Aug 2019 | H9: 210689 | I9: Aug 2020 | J9: 217767 | K9: Aug 2021 | L9: 225917 | M9: Aug 2022 | N9: 233416 | O9: Aug 2023 | P9: 240794 | R9: Aug 2023 | S9: 261269.6798 | T9: 252021.8957 | U9: =IF(P9,P9,(SUM(IF(P2,P2,0)+IF(P3,P3,0)+IF(P4,P4,0)+IF(P5,P5,0)+IF(P6,P6,0)+IF(P7,P7,0)+IF(P8,P8,0)+IF(P9,P9,0))/SUM(IF(P2,J20,0)+IF(P3,J21,0)+IF(P4,J22,0)+IF(P5,J23,0)+IF(P6,J24,0)+IF(P7,J25,0)+IF(P8,J26,0)+IF(P9,J27,0))*J27)) -> 240794 | V9: 264360.5747
A10: Sep 2019 | B10: 210707 | G10: Sep 2019 | H10: 210707 | I10: Sep 2020 | J10: 217867 | K10: Sep 2021 | L10: 225719 | M10: Sep 2022 | N10: 233661 | O10: Sep 2023 | P10: 241058 | R10: Sep 2023 | S10: 261318.238 | T10: 252068.7352 | U10: =IF(P10,P10,(SUM(IF(P2,P2,0)+IF(P3,P3,0)+IF(P4,P4,0)+IF(P5,P5,0)+IF(P6,P6,0)+IF(P7,P7,0)+IF(P8,P8,0)+IF(P9,P9,0)+IF(P10,P10,0))/SUM(IF(P2,J20,0)+IF(P3,J21,0)+IF(P4,J22,0)+IF(P5,J23,0)+IF(P6,J24,0)+IF(P7,J25,0)+IF(P8,J26,0)+IF(P9,J27,0)+IF(P10,J28,0))*J28)) -> 241058 | V10: 264409.7074
A11: Okt 2019 | B11: 210980 | G11: Okt 2019 | H11: 210980 | I11: Okt 2020 | J11: 218374 | K11: Okt 2021 | L11: 225841 | M11: Okt 2022 | N11: 234466 | O11: Okt 2023 | P11: 241761 | R11: Okt 2023 | S11: 261820.5954 | T11: 252553.3114 | U11: =IF(P11,P11,(SUM(IF(P2,P2,0)+IF(P3,P3,0)+IF(P4,P4,0)+IF(P5,P5,0)+IF(P6,P6,0)+IF(P7,P7,0)+IF(P8,P8,0)+IF(P9,P9,0)+IF(P10,P10,0)+IF(P11,P11,0))/SUM(IF(P2,J20,0)+IF(P3,J21,0)+IF(P4,J22,0)+IF(P5,J23,0)+IF(P6,J24,0)+IF(P7,J25,0)+IF(P8,J26,0)+IF(P9,J27,0)+IF(P10,J28,0)+IF(P11,J29,0))*J29)) -> 241761 | V11: 264918.0078
A12: Nov 2019 | B12: 211418 | G12: Nov 2019 | H12: 211418 | I12: Nov 2020 | J12: 218650 | K12: Nov 2021 | L12: 225805 | M12: Nov 2022 | N12: 235020 | O12: Nov 2023 | P12: 242397 | R12: Nov 2023 | S12: 262183.1638 | T12: 252903.0465 | U12: =IF(P12,P12,(SUM(IF(P2,P2,0)+IF(P3,P3,0)+IF(P4,P4,0)+IF(P5,P5,0)+IF(P6,P6,0)+IF(P7,P7,0)+IF(P8,P8,0)+IF(P9,P9,0)+IF(P10,P10,0)+IF(P11,P11,0)+IF(P12,P12,0))/SUM(IF(P2,J20,0)+IF(P3,J21,0)+IF(P4,J22,0)+IF(P5,J23,0)+IF(P6,J24,0)+IF(P7,J25,0)+IF(P8,J26,0)+IF(P9,J27,0)+IF(P10,J28,0)+IF(P11,J29,0)+IF(P12,J30,0))*J30)) -> 242397 | V12: 265284.8655
A13: Dec 2019 | B13: 211732 | G13: Dec 2019 | H13: 211732 | I13: Dec 2020 | J13: 218928 | K13: Dec 2021 | L13: 226544 | M13: Dec 2022 | N13: 235496 | O13: Dec 2023 | P13: 242912 | R13: Dec 2023 | S13: 262714.9504 | T13: 253416.0102 | U13: =IF(P13,P13,(SUM(IF(P2,P2,0)+IF(P3,P3,0)+IF(P4,P4,0)+IF(P5,P5,0)+IF(P6,P6,0)+IF(P7,P7,0)+IF(P8,P8,0)+IF(P9,P9,0)+IF(P10,P10,0)+IF(P11,P11,0)+IF(P12,P12,0)+IF(P13,P13,0))/SUM(IF(P2,J20,0)+IF(P3,J21,0)+IF(P4,J22,0)+IF(P5,J23,0)+IF(P6,J24,0)+IF(P7,J25,0)+IF(P8,J26,0)+IF(P9,J27,0)+IF(P10,J28,0)+IF(P11,J29,0)+IF(P12,J30,0)+IF(P13,J31,0))*J31)) -> 242912 | V13: 265822.9433
A14: Jan 2020 | B14: 212415 | G14: I alt 2019 | H14: =SUM(H2:H13) -> 2509129 | I14: I alt 2020 | J14: =SUM(J2:J13) -> 2599121 | K14: I alt 2021 | L14: =SUM(L2:L13) -> 2691580 | M14: I alt 2022 | N14: =SUM(N2:N13) -> 2782121 | R14: i alt | S14: =O26/(P21*1.033) -> 3114189.237 | T14: =(M26/O21)*12 -> 3003960.796 | U14: =SUM(U2:U13) -> 2880550 | V14: =N26/(P21*1.033) -> 3151030.986
A15: Feb 2020 | B15: 213448
A16: Mar 2020 | B16: 214172
A17: Apr 2020 | B17: 215464
A18: Maj 2020 | B18: 216363 | I18: Fordeling 2019-2022 | L18: Førtidspension
A19: Jun 2020 | B19: 217568
A20: Jul 2020 | B20: 218105 | I20: Jan | J20: =(H2+J2+L2+N2)/($H$14+$J$14+$L$14+$N$14) -> 0.08164231719 | L20: Regnskab 2022 (kr.) | M20: Aktivitet 2022 | N20: Mdl. fuldtidspers. | O20: Enhedspris 2022 (23-pl) | P20: Enhedspris (måned)
A21: Aug 2020 | B21: 217767 | I21: feb | J21: 0.08202438284 | L21: =SUMIF('Regnskab 2022'!A2:J100,Overblik!I23,'Regnskab 2022'!E2:E100)*1000 -> 29420480000 | M21: =SUMIF('Aktivitet 2022'!A2:J100,Overblik!I23,'Aktivitet 2022'!I2:I100) -> 231859 | N21: =N14 -> 2782121 | O21: =((((L21*1.0195)+677866.012128213))/M21) -> 129366.8015 | P21: =O21/12 -> 10780.56679
A22: Sep 2020 | B22: 217867 | I22: Mar | J22: 0.08236411225
A23: Okt 2020 | B23: 218374 | I23: Apr | J23: 0.08279172716 | L23: Prognose for udgifter og aktivitet
A24: Nov 2020 | B24: 218650 | I24: Maj | J24: 0.08316613827
A25: Dec 2020 | B25: 218928 | I25: Jun | J25: 0.08359989571 | M25: MV2023 | N25: ØA2024 (24-pl) | O25: Budget 2024 | P25: Prognose 2023
A26: Jan 2021 | B26: 219882 | I26: Jul | J26: 0.08397884284 | L26: Udgifter (kr.) | M26: =IF(Overblik!T27="Bloktilskud",SUMIF('Bloktilskudsdel - MV23'!A2:J100,Overblik!I23,'Bloktilskudsdel - MV23'!E2:E100),SUMIF('Midtvejsvurdering 2023'!A2:J100,Overblik!I23,'Midtvejsvurdering 2023'!E2:E100))*1000 -> 3.23844e+10 | N26: =IF(Overblik!T27="Bloktilskud",SUMIF('Bloktilskudsdel - ØA24'!A2:J100,Overblik!I23,'Bloktilskudsdel - ØA24'!E2:E100),SUMIF('Overførselsskøn 2024'!A2:J100,Overblik!I23,'Overførselsskøn 2024'!E2:E100))*1000 -> 35090906700 | O26: =SUMIF('Budget 2024'!A2:J100,Overblik!I23,'Budget 2024'!E2:E100)*1000 -> 34680625000 | P26: =U14*P21 -> 3.105396167e+10
A27: Feb 2021 | B27: 220988 | I27: Aug | J27: 0.08389653288 | L27: Aktivitet* | M27: =T14 -> 3003960.796 | N27: =N26/(P21*1.033) -> 3151030.986 | O27: =O26/(P21*1.033) -> 3114189.237 | P27: =U14 -> 2880550
A28: Mar 2021 | B28: 222004 | I28: Sep | J28: 0.08391212547 | L28: * Aktiviteten er opgjort som de månedlige fuldtidspersoner i alt på et år.
A29: Apr 2021 | B29: 223194 | I29: Okt | J29: 0.08407343788
A30: Maj 2021 | B30: 224214 | I30: Nov | J30: 0.08418986253
A31: Jun 2021 | B31: 225357 | I31: Dec | J31: 0.08436062499
A32: Jul 2021 | B32: 226115
A33: Aug 2021 | B33: 225917
A34: Sep 2021 | B34: 225719
A35: Okt 2021 | B35: 225841
A36: Nov 2021 | B36: 225805
A37: Dec 2021 | B37: 226544
A38: Jan 2022 | B38: 226878
A39: Feb 2022 | B39: 227801
A40: Mar 2022 | B40: 228774
A41: Apr 2022 | B41: 229882
A42: Maj 2022 | B42: 230911
A43: Jun 2022 | B43: 232115
A44: Jul 2022 | B44: 233701
A45: Aug 2022 | B45: 233416
A46: Sep 2022 | B46: 233661
A47: Okt 2022 | B47: 234466
A48: Nov 2022 | B48: 235020
A49: Dec 2022 | B49: 235496
A50: Jan 2023 | B50: 237069 | C50: =T2 -> 245250.3201
A51: Feb 2023 | B51: 237588 | C51: =T3 -> 246398.0304
A52: Mar 2023 | B52: 238079 | C52: 247418.5642
A53: Apr 2023 | B53: 238956 | C53: 248703.1026
A54: Maj 2023 | B54: 239230 | C54: 249827.8189
A55: Jun 2023 | B55: 239902 | C55: 251130.8093
A56: Jul 2023 | B56: 240804 | C56: 252269.1516
A57: Aug 2023 | B57: 240794 | C57: 252021.8957
A58: Sep 2023 | B58: 241058 | C58: 252068.7352
A59: Okt 2023 | B59: 241761 | C59: 252553.3114
A60: Nov 2023 | B60: 242397 | C60: 252903.0465
A61: Dec 2023 | B61: 242912 | C61: 253416.0102
A62: Jan 2024 | D62: =V2 -> 257257.4712 | E62: =S2 -> 254249.6255
A63: Feb 2024 | D63: =V3 -> 258461.3719 | E63: =S3 -> 255439.4502
A64: Mar 2024 | D64: 259531.8698 | E64: 256497.4319
A65: Apr 2024 | D65: 260879.2976 | E65: 257829.1057
A66: Maj 2024 | D66: 262059.0786 | E66: 258995.0927
A67: Jun 2024 | D67: 263425.8618 | E67: 260345.8955
A68: Jul 2024 | D68: 264619.9359 | E68: 261526.0086
A69: Aug 2024 | D69: 264360.5747 | E69: 261269.6798
A70: Sep 2024 | D70: 264409.7074 | E70: 261318.238
A71: Okt 2024 | D71: 264918.0078 | E71: 261820.5954
A72: Nov 2024 | D72: 265284.8655 | E72: 262183.1638
A73: Dec 2024 | D73: 265822.9433 | E73: 262714.9504

Sheet Ledighedsydelse
B1: Aktivitet | C1: MV2023 | D1: ØA2024 | E1: Budget 2024 | H1: 2019 | J1: 2020 | L1: 2021 | N1: 2022 | P1: 2023 | S1: Budget 2024 | T1: MV2023 | U1: Prognose 2023 | V1: ØA2024
A2: Jan 2019 | B2: 15470 | G2: Jan 2019 | H2: =B2 -> 15470 | I2: Jan 2020 | J2: =B14 -> 16618 | K2: Jan 2021 | L2: =B26 -> 17495 | M2: Jan 2022 | N2: =B38 -> 13939 | O2: Jan 2023 | P2: =B50 -> 14569 | R2: Jan 2023 | S2: =$S$14*J20 -> 14057.48352 | T2: =$T$14*J20 -> 15123.66099 | U2: =IF(P2,P2,(SUM(IF(P2,P2,0))/SUM(IF(P2,J20,0))*J20)) -> 14569 | V2: =$V$14*J20 -> 15633.18683
A3: Feb 2019 | B3: 15750 | G3: Feb 2019 | H3: =B3 -> 15750 | I3: Feb 2020 | J3: =B15 -> 16730 | K3: Feb 2021 | L3: =B27 -> 17614 | M3: Feb 2022 | N3: =B39 -> 13686 | O3: Feb 2023 | P3: =B51 -> 14541 | R3: Feb 2023 | S3: 14114.57918 | T3: 15185.08703 | U3: =IF(P3,P3,(SUM(IF(P2,P2,0)+IF(P3,P3,0))/SUM(IF(P2,J20,0)+IF(P3,J21,0))*J21)) -> 14541 | V3: 15696.68235
A4: Mar 2019 | B4: 15533 | G4: Mar 2019 | H4: 15533 | I4: Mar 2020 | J4: 17441 | K4: Mar 2021 | L4: 17177 | M4: Mar 2022 | N4: 13497 | O4: Mar 2023 | P4: 14587 | R4: Mar 2023 | S4: 14085.36744 | T4: 15153.65975 | U4: =IF(P4,P4,(SUM(IF(P2,P2,0)+IF(P3,P3,0)+IF(P4,P4,0))/SUM(IF(P2,J20,0)+IF(P3,J21,0)+IF(P4,J22,0))*J22)) -> 14587 | V4: 15664.19627
A5: Apr 2019 | B5: 15730 | G5: Apr 2019 | H5: 15730 | I5: Apr 2020 | J5: 19072 | K5: Apr 2021 | L5: 16610 | M5: Apr 2022 | N5: 13274 | O5: Apr 2023 | P5: 14449 | R5: Apr 2023 | S5: 14315.0779 | T5: 15400.7924 | U5: =IF(P5,P5,(SUM(IF(P2,P2,0)+IF(P3,P3,0)+IF(P4,P4,0)+IF(P5,P5,0))/SUM(IF(P2,J20,0)+IF(P3,J21,0)+IF(P4,J22,0)+IF(P5,J23,0))*J23)) -> 14449 | V5: 15919.65497
A6: Maj 2019 | B6: 15133 | G6: Maj 2019 | H6: 15133 | I6: Maj 2020 | J6: 18905 | K6: Maj 2021 | L6: 16026 | M6: Maj 2022 | N6: 13157 | O6: Maj 2023 | P6: 14297 | R6: Maj 2023 | S6: 13990.87191 | T6: 15051.99729 | U6: =IF(P6,P6,(SUM(IF(P2,P2,0)+IF(P3,P3,0)+IF(P4,P4,0)+IF(P5,P5,0)+IF(P6,P6,0))/SUM(IF(P2,J20,0)+IF(P3,J21,0)+IF(P4,J22,0)+IF(P5,J23,0)+IF(P6,J24,0))*J24)) -> 14297 | V6: 15559.10873
A7: Jun 2019 | B7: 15280 | G7: Jun 2019 | H7: 15280 | I7: Jun 2020 | J7: 18354 | K7: Jun 2021 | L7: 15452 | M7: Jun 2022 | N7: 13007 | O7: Jun 2023 | P7: 14086 | R7: Jun 2023 | S7: 13741.24435 | T7: 14783.43695 | U7: =IF(P7,P7,(SUM(IF(P2,P2,0)+IF(P3,P3,0)+IF(P4,P4,0)+IF(P5,P5,0)+IF(P6,P6,0)+IF(P7,P7,0))/SUM(IF(P2,J20,0)+IF(P3,J21,0)+IF(P4,J22,0)+IF(P5,J23,0)+IF(P6,J24,0)+IF(P7,J25,0))*J25)) -> 14086 | V7: 15281.50042
A8: Jul 2019 | B8: 17109 | G8: Jul 2019 | H8: 17109 | I8: Jul 2020 | J8: 19825 | K8: Jul 2021 | L8: 15644 | M8: Jul 2022 | N8: 13608 | O8: Jul 2023 | P8: 14922 | R8: Jul 2023 | S8: 14647.02944 | T8: 15757.92051 | U8: =IF(P8,P8,(SUM(IF(P2,P2,0)+IF(P3,P3,0)+IF(P4,P4,0)+IF(P5,P5,0)+IF(P6,P6,0)+IF(P7,P7,0)+IF(P8,P8,0))/SUM(IF(P2,J20,0)+IF(P3,J21,0)+IF(P4,J22,0)+IF(P5,J23,0)+IF(P6,J24,0)+IF(P7,J25,0)+IF(P8,J26,0))*J26)) -> 14922 | V8: 16288.81495
A9: Aug 2019 | B9: 16188 | G9: Aug 2019 | H9: 16188 | I9: Aug 2020 | J9: 18293 | K9: Aug 2021 | L9: 14934 | M9: Aug 2022 | N9: 13257 | O9: Aug 2023 | P9: 14586 | R9: Aug 2023 | S9: 13869.37765 | T9: 14921.2884 | U9: =IF(P9,P9,(SUM(IF(P2,P2,0)+IF(P3,P3,0)+IF(P4,P4,0)+IF(P5,P5,0)+IF(P6,P6,0)+IF(P7,P7,0)+IF(P8,P8,0)+IF(P9,P9,0))/SUM(IF(P2,J20,0)+IF(P3,J21,0)+IF(P4,J22,0)+IF(P5,J23,0)+IF(P6,J24,0)+IF(P7,J25,0)+IF(P8,J26,0)+IF(P9,J27,0))*J27)) -> 14586 | V9: 15423.99618
A10: Sep 2019 | B10: 15712 | G10: Sep 2019 | H10: 15712 | I10: Sep 2020 | J10: 17108 | K10: Sep 2021 | L10: 14405 | M10: Sep 2022 | N10: 13160 | O10: Sep 2023 | P10: 14415 | R10: Sep 2023 | S10: 13363.26221 | T10: 14376.78708 | U10: =IF(P10,P10,(SUM(IF(P2,P2,0)+IF(P3,P3,0)+IF(P4,P4,0)+IF(P5,P5,0)+IF(P6,P6,0)+IF(P7,P7,0)+IF(P8,P8,0)+IF(P9,P9,0)+IF(P10,P10,0))/SUM(IF(P2,J20,0)+IF(P3,J21,0)+IF(P4,J22,0)+IF(P5,J23,0)+IF(P6,J24,0)+IF(P7,J25,0)+IF(P8,J26,0)+IF(P9,J27,0)+IF(P10,J28,0))*J28)) -> 14415 | V10: 14861.15026
A11: Okt 2019 | B11: 15800 | G11: Okt 2019 | H11: 15800 | I11: Okt 2020 | J11: 16728 | K11: Okt 2021 | L11: 13946 | M11: Okt 2022 | N11: 13379 | O11: Okt 2023 | P11: 14469 | R11: Okt 2023 | S11: 13245.53007 | T11: 14250.12565 | U11: =IF(P11,P11,(SUM(IF(P2,P2,0)+IF(P3,P3,0)+IF(P4,P4,0)+IF(P5,P5,0)+IF(P6,P6,0)+IF(P7,P7,0)+IF(P8,P8,0)+IF(P9,P9,0)+IF(P10,P10,0)+IF(P11,P11,0))/SUM(IF(P2,J20,0)+IF(P3,J21,0)+IF(P4,J22,0)+IF(P5,J23,0)+IF(P6,J24,0)+IF(P7,J25,0)+IF(P8,J26,0)+IF(P9,J27,0)+IF(P10,J28,0)+IF(P11,J29,0))*J29)) -> 14469 | V11: 14730.22152
A12: Nov 2019 | B12: 15702 | G12: Nov 2019 | H12: 15702 | I12: Nov 2020 | J12: 16513 | K12: Nov 2021 | L12: 13589 | M12: Nov 2022 | N12: 13583 | O12: Nov 2023 | P12: 14568 | R12: Nov 2023 | S12: 13142.40379 | T12: 14139.17785 | U12: =IF(P12,P12,(SUM(IF(P2,P2,0)+IF(P3,P3,0)+IF(P4,P4,0)+IF(P5,P5,0)+IF(P6,P6,0)+IF(P7,P7,0)+IF(P8,P8,0)+IF(P9,P9,0)+IF(P10,P10,0)+IF(P11,P11,0)+IF(P12,P12,0))/SUM(IF(P2,J20,0)+IF(P3,J21,0)+IF(P4,J22,0)+IF(P5,J23,0)+IF(P6,J24,0)+IF(P7,J25,0)+IF(P8,J26,0)+IF(P9,J27,0)+IF(P10,J28,0)+IF(P11,J29,0)+IF(P12,J30,0))*J30)) -> 14568 | V12: 14615.53582
A13: Dec 2019 | B13: 16596 | G13: Dec 2019 | H13: 16596 | I13: Dec 2020 | J13: 16794 | K13: Dec 2021 | L13: 13741 | M13: Dec 2022 | N13: 14037 | O13: Dec 2023 | P13: 14714 | R13: Dec 2023 | S13: 13536.54091 | T13: 14563.20795 | U13: =IF(P13,P13,(SUM(IF(P2,P2,0)+IF(P3,P3,0)+IF(P4,P4,0)+IF(P5,P5,0)+IF(P6,P6,0)+IF(P7,P7,0)+IF(P8,P8,0)+IF(P9,P9,0)+IF(P10,P10,0)+IF(P11,P11,0)+IF(P12,P12,0)+IF(P13,P13,0))/SUM(IF(P2,J20,0)+IF(P3,J21,0)+IF(P4,J22,0)+IF(P5,J23,0)+IF(P6,J24,0)+IF(P7,J25,0)+IF(P8,J26,0)+IF(P9,J27,0)+IF(P10,J28,0)+IF(P11,J29,0)+IF(P12,J30,0)+IF(P13,J31,0))*J31)) -> 14714 | V13: 15053.85177
A14: Jan 2020 | B14: 16618 | G14: I alt 2019 | H14: =SUM(H2:H13) -> 190003 | I14: I alt 2020 | J14: =SUM(J2:J13) -> 212381 | K14: I alt 2021 | L14: =SUM(L2:L13) -> 186633 | M14: I alt 2022 | N14: =SUM(N2:N13) -> 161584 | S14: =O26/(P21*1.033) -> 166108.7684 | T14: =M26/P21 -> 178707.1419 | U14: =SUM(U2:U13) -> 174203 | V14: =N26/(P21*1.033) -> 184727.9001
A15: Feb 2020 | B15: 16730
A16: Mar 2020 | B16: 17441
A17: Apr 2020 | B17: 19072
A18: Maj 2020 | B18: 18905 | I18: Fordeling 2019-2022 | L18: Ledighedsydelse
A19: Jun 2020 | B19: 18354
A20: Jul 2020 | B20: 19825 | I20: jan | J20: =(H2+J2+L2+N2)/($H$14+$J$14+$L$14+$N$14) -> 0.08462818461 | L20: Regnskab 2022 (kr.) | M20: Aktivitet 2022 | N20: Mdl. fuldtidspers. | O20: Enhedspris 2022 (23-pl) | P20: Enhedspris (måned)
A21: Aug 2020 | B21: 18293 | I21: feb | J21: 0.08497190918 | L21: =SUMIF('Regnskab 2022'!A2:J100,Overblik!I23,'Regnskab 2022'!D2:D100)*1000 -> 2068495000 | M21: =SUMIF('Aktivitet 2022'!A2:J100,Overblik!I23,'Aktivitet 2022'!G2:G100) -> 13462 | N21: =N14 -> 161584 | O21: =(((L21))/M21)*1.0195 -> 156650.6205 | P21: =O21/12 -> 13054.21837
A22: Sep 2020 | B22: 17108 | I22: mar | J22: 0.0847960501
A23: Okt 2020 | B23: 16728 | I23: apr | J23: 0.08617894194 | L23: Prognose for udgifter og aktivitet
A24: Nov 2020 | B24: 16513 | I24: maj | J24: 0.08422717263
A25: Dec 2020 | B25: 16794 | I25: jun | J25: 0.08272437687 | M25: MV2023 | N25: ØA2024 (24-pl) | O25: Budget 2024 | P25: Prognose 2023
A26: Jan 2021 | B26: 17495 | I26: jul | J26: 0.08817734056 | L26: Udgifter (kr.) | M26: =IF(Overblik!T27="Bloktilskud",SUMIF('Bloktilskudsdel - MV23'!A2:J100,Overblik!I23,'Bloktilskudsdel - MV23'!D2:D100),SUMIF('Midtvejsvurdering 2023'!A2:J100,Overblik!I23,'Midtvejsvurdering 2023'!D2:D100))*1000 -> 2332882054 | N26: =IF(Overblik!T27="Bloktilskud",SUMIF('Bloktilskudsdel - ØA24'!A2:J100,Overblik!I23,'Bloktilskudsdel - ØA24'!D2:D100),SUMIF('Overførselsskøn 2024'!A2:J100,Overblik!I23,'Overførselsskøn 2024'!D2:D100))*1000 -> 2491057132 | O26: =SUMIF('Budget 2024'!A2:J100,Overblik!I23,'Budget 2024'!D2:D100)*1000 -> 2239978000 | P26: =U14*P21 -> 2274084003
A27: Feb 2021 | B27: 17614 | I27: aug | J27: 0.08349575873 | L27: Aktivitet* | M27: =T14 -> 178707.1419 | N27: =N26/(P21*1.033) -> 184727.9001 | O27: =O26/(P21*1.033) -> 166108.7684 | P27: =U14 -> 174203
A28: Mar 2021 | B28: 17177 | I28: sep | J28: 0.08044886697 | L28: * Aktiviteten er opgjort som de månedlige fuldtidspersoner i alt på et år.
A29: Apr 2021 | B29: 16610 | I29: okt | J29: 0.0797401016
A30: Maj 2021 | B30: 16026 | I30: nov | J30: 0.07911926576
A31: Jun 2021 | B31: 15452 | I31: dec | J31: 0.08149203105
A32: Jul 2021 | B32: 15644
A33: Aug 2021 | B33: 14934
A34: Sep 2021 | B34: 14405
A35: Okt 2021 | B35: 13946
A36: Nov 2021 | B36: 13589
A37: Dec 2021 | B37: 13741
A38: Jan 2022 | B38: 13939
A39: Feb 2022 | B39: 13686
A40: Mar 2022 | B40: 13497
A41: Apr 2022 | B41: 13274
A42: Maj 2022 | B42: 13157
A43: Jun 2022 | B43: 13007
A44: Jul 2022 | B44: 13608
A45: Aug 2022 | B45: 13257
A46: Sep 2022 | B46: 13160
A47: Okt 2022 | B47: 13379
A48: Nov 2022 | B48: 13583
A49: Dec 2022 | B49: 14037
A50: Jan 2023 | B50: 14569 | C50: =T2 -> 15123.66099
A51: Feb 2023 | B51: 14541 | C51: =T3 -> 15185.08703
A52: Mar 2023 | B52: 14587 | C52: 15153.65975
A53: Apr 2023 | B53: 14449 | C53: 15400.7924
A54: Maj 2023 | B54: 14297 | C54: 15051.99729
A55: Jun 2023 | B55: 14086 | C55: 14783.43695
A56: Jul 2023 | B56: 14922 | C56: 15757.92051
A57: Aug 2023 | B57: 14586 | C57: 14921.2884
A58: Sep 2023 | B58: 14415 | C58: 14376.78708
A59: Okt 2023 | B59: 14469 | C59: 14250.12565
A60: Nov 2023 | B60: 14568 | C60: 14139.17785
A61: Dec 2023 | B61: 14714 | C61: 14563.20795
A62: Jan 2024 | D62: =V2 -> 15633.18683 | E62: =S2 -> 14057.48352
A63: Feb 2024 | D63: =V3 -> 15696.68235 | E63: =S3 -> 14114.57918
A64: Mar 2024 | D64: 15664.19627 | E64: 14085.36744
A65: Apr 2024 | D65: 15919.65497 | E65: 14315.0779
A66: Maj 2024 | D66: 15559.10873 | E66: 13990.87191
A67: Jun 2024 | D67: 15281.50042 | E67: 13741.24435
A68: Jul 2024 | D68: 16288.81495 | E68: 14647.02944
A69: Aug 2024 | D69: 15423.99618 | E69: 13869.37765
A70: Sep 2024 | D70: 14861.15026 | E70: 13363.26221
A71: Okt 2024 | D71: 14730.22152 | E71: 13245.53007
A72: Nov 2024 | D72: 14615.53582 | E72: 13142.40379
A73: Dec 2024 | D73: 15053.85177 | E73: 13536.54091

Sheet Driftsudgifter til aktivering
B1: Aktivitet | C1: MV2023 | D1: ØA2024 | E1: Budget 2024 | H1: 2019 | J1: 2020 | L1: 2021 | N1: 2022 | P1: 2023 | S1: Budget 2024 | T1: MV2023 | U1: Prognose 2023 | V1: ØA2024
A2: Jan 2019 | B2: 29911 | G2: Jan 2019 | H2: =B2 -> 29911 | I2: Jan 2020 | J2: =B14 -> 22936 | K2: Jan 2021 | L2: =B26 -> 20453 | M2: Jan 2022 | N2: =B38 -> 19762 | O2: Jan 2023 | P2: =B50 -> 19590 | R2: Jan 2023 | S2: =$S$14*J20 -> 22469.43198 | T2: =$T$14*J20 -> 17677.20423 | U2: =IF(P2,P2,(SUM(IF(P2,P2,0))/SUM(IF(P2,J20,0))*J20)) -> 19590 | V2: =$V$14*J20 -> 18233.56572
A3: Feb 2019 | B3: 31742 | G3: Feb 2019 | H3: =B3 -> 31742 | I3: Feb 2020 | J3: =B15 -> 24173 | K3: Feb 2021 | L3: =B27 -> 22032 | M3: Feb 2022 | N3: =B39 -> 20367 | O3: Feb 2023 | P3: =B51 -> 20867 | R3: Feb 2023 | S3: 23737.50548 | T3: 18674.82599 | U3: =IF(P3,P3,(SUM(IF(P2,P2,0)+IF(P3,P3,0))/SUM(IF(P2,J20,0)+IF(P3,J21,0))*J21)) -> 20867 | V3: 19262.58602
A4: Mar 2019 | B4: 32044 | G4: Mar 2019 | H4: 32044 | I4: Mar 2020 | J4: 23437 | K4: Mar 2021 | L4: 22198 | M4: Mar 2022 | N4: 20975 | O4: Mar 2023 | P4: 21239 | R4: Mar 2023 | S4: 23819.59707 | T4: 18739.40927 | U4: =IF(P4,P4,(SUM(IF(P2,P2,0)+IF(P3,P3,0)+IF(P4,P4,0))/SUM(IF(P2,J20,0)+IF(P3,J21,0)+IF(P4,J22,0))*J22)) -> 21239 | V4: 19329.20196
A5: Apr 2019 | B5: 30853 | G5: Apr 2019 | H5: 30853 | I5: Apr 2020 | J5: 19490 | K5: Apr 2021 | L5: 22065 | M5: Apr 2022 | N5: 20280 | O5: Apr 2023 | P5: 19275 | R5: Apr 2023 | S5: 22379.13124 | T5: 17606.16262 | U5: =IF(P5,P5,(SUM(IF(P2,P2,0)+IF(P3,P3,0)+IF(P4,P4,0)+IF(P5,P5,0))/SUM(IF(P2,J20,0)+IF(P3,J21,0)+IF(P4,J22,0)+IF(P5,J23,0))*J23)) -> 19275 | V5: 18160.28819
A6: Maj 2019 | B6: 30463 | G6: Maj 2019 | H6: 30463 | I6: Maj 2020 | J6: 18124 | K6: Maj 2021 | L6: 23244 | M6: Maj 2022 | N6: 20615 | O6: Maj 2023 | P6: 18457 | R6: Maj 2023 | S6: 22320.70135 | T6: 17560.19452 | U6: =IF(P6,P6,(SUM(IF(P2,P2,0)+IF(P3,P3,0)+IF(P4,P4,0)+IF(P5,P5,0)+IF(P6,P6,0))/SUM(IF(P2,J20,0)+IF(P3,J21,0)+IF(P4,J22,0)+IF(P5,J23,0)+IF(P6,J24,0))*J24)) -> 18457 | V6: 18112.87331
A7: Jun 2019 | B7: 28921 | G7: Jun 2019 | H7: 28921 | I7: Jun 2020 | J7: 18226 | K7: Jun 2021 | L7: 22570 | M7: Jun 2022 | N7: 19699 | O7: Jun 2023 | P7: 17167 | R7: Jun 2023 | S7: 21589.12048 | T7: 16984.6435 | U7: =IF(P7,P7,(SUM(IF(P2,P2,0)+IF(P3,P3,0)+IF(P4,P4,0)+IF(P5,P5,0)+IF(P6,P6,0)+IF(P7,P7,0))/SUM(IF(P2,J20,0)+IF(P3,J21,0)+IF(P4,J22,0)+IF(P5,J23,0)+IF(P6,J24,0)+IF(P7,J25,0))*J25)) -> 17167 | V7: 17519.20776
A8: Jul 2019 | B8: 22418 | G8: Jul 2019 | H8: 22418 | I8: Jul 2020 | J8: 16989 | K8: Jul 2021 | L8: 17455 | M8: Jul 2022 | N8: 16330 | O8: Jul 2023 | P8: 13589 | R8: Jul 2023 | S8: 17671.9033 | T8: 13902.88122 | U8: =IF(P8,P8,(SUM(IF(P2,P2,0)+IF(P3,P3,0)+IF(P4,P4,0)+IF(P5,P5,0)+IF(P6,P6,0)+IF(P7,P7,0)+IF(P8,P8,0))/SUM(IF(P2,J20,0)+IF(P3,J21,0)+IF(P4,J22,0)+IF(P5,J23,0)+IF(P6,J24,0)+IF(P7,J25,0)+IF(P8,J26,0))*J26)) -> 13589 | V8: 14340.45198
A9: Aug 2019 | B9: 23704 | G9: Aug 2019 | H9: 23704 | I9: Aug 2020 | J9: 19589 | K9: Aug 2021 | L9: 18984 | M9: Aug 2022 | N9: 17852 | O9: Aug 2023 | P9: 14880 | R9: Aug 2023 | S9: 19346.81304 | T9: 15220.57013 | U9: =IF(P9,P9,(SUM(IF(P2,P2,0)+IF(P3,P3,0)+IF(P4,P4,0)+IF(P5,P5,0)+IF(P6,P6,0)+IF(P7,P7,0)+IF(P8,P8,0)+IF(P9,P9,0))/SUM(IF(P2,J20,0)+IF(P3,J21,0)+IF(P4,J22,0)+IF(P5,J23,0)+IF(P6,J24,0)+IF(P7,J25,0)+IF(P8,J26,0)+IF(P9,J27,0))*J27)) -> 14880 | V9: 15699.61303
A10: Sep 2019 | B10: 26067 | G10: Sep 2019 | H10: 26067 | I10: Sep 2020 | J10: 22755 | K10: Sep 2021 | L10: 22114 | M10: Sep 2022 | N10: 20022 | O10: Sep 2023 | P10: 17345 | R10: Sep 2023 | S10: 21961.42995 | T10: 17277.54768 | U10: =IF(P10,P10,(SUM(IF(P2,P2,0)+IF(P3,P3,0)+IF(P4,P4,0)+IF(P5,P5,0)+IF(P6,P6,0)+IF(P7,P7,0)+IF(P8,P8,0)+IF(P9,P9,0)+IF(P10,P10,0))/SUM(IF(P2,J20,0)+IF(P3,J21,0)+IF(P4,J22,0)+IF(P5,J23,0)+IF(P6,J24,0)+IF(P7,J25,0)+IF(P8,J26,0)+IF(P9,J27,0)+IF(P10,J28,0))*J28)) -> 17345 | V10: 17821.33063
A11: Okt 2019 | B11: 26326 | G11: Okt 2019 | H11: 26326 | I11: Okt 2020 | J11: 23769 | K11: Okt 2021 | L11: 22505 | M11: Okt 2022 | N11: 20664 | O11: Okt 2023 | P11: 18164 | R11: Okt 2023 | S11: 22518.20404 | T11: 17715.57429 | U11: =IF(P11,P11,(SUM(IF(P2,P2,0)+IF(P3,P3,0)+IF(P4,P4,0)+IF(P5,P5,0)+IF(P6,P6,0)+IF(P7,P7,0)+IF(P8,P8,0)+IF(P9,P9,0)+IF(P10,P10,0)+IF(P11,P11,0))/SUM(IF(P2,J20,0)+IF(P3,J21,0)+IF(P4,J22,0)+IF(P5,J23,0)+IF(P6,J24,0)+IF(P7,J25,0)+IF(P8,J26,0)+IF(P9,J27,0)+IF(P10,J28,0)+IF(P11,J29,0))*J29)) -> 18164 | V11: 18273.14342
A12: Nov 2019 | B12: 26726 | G12: Nov 2019 | H12: 26726 | I12: Nov 2020 | J12: 24824 | K12: Nov 2021 | L12: 23121 | M12: Nov 2022 | N12: 21471 | O12: Nov 2023 | P12: 18267 | R12: Nov 2023 | S12: 23213.08514 | T12: 18262.25279 | U12: =IF(P12,P12,(SUM(IF(P2,P2,0)+IF(P3,P3,0)+IF(P4,P4,0)+IF(P5,P5,0)+IF(P6,P6,0)+IF(P7,P7,0)+IF(P8,P8,0)+IF(P9,P9,0)+IF(P10,P10,0)+IF(P11,P11,0)+IF(P12,P12,0))/SUM(IF(P2,J20,0)+IF(P3,J21,0)+IF(P4,J22,0)+IF(P5,J23,0)+IF(P6,J24,0)+IF(P7,J25,0)+IF(P8,J26,0)+IF(P9,J27,0)+IF(P10,J28,0)+IF(P11,J29,0)+IF(P12,J30,0))*J30)) -> 18267 | V12: 18837.02774
A13: Dec 2019 | B13: 24479 | G13: Dec 2019 | H13: 24479 | I13: Dec 2020 | J13: 22277 | K13: Dec 2021 | L13: 20670 | M13: Dec 2022 | N13: 20429 | O13: Dec 2023 | P13: 0 | R13: Dec 2023 | S13: 21212.22353 | T13: 16688.13025 | U13: =IF(P13,P13,(SUM(IF(P2,P2,0)+IF(P3,P3,0)+IF(P4,P4,0)+IF(P5,P5,0)+IF(P6,P6,0)+IF(P7,P7,0)+IF(P8,P8,0)+IF(P9,P9,0)+IF(P10,P10,0)+IF(P11,P11,0)+IF(P12,P12,0)+IF(P13,P13,0))/SUM(IF(P2,J20,0)+IF(P3,J21,0)+IF(P4,J22,0)+IF(P5,J23,0)+IF(P6,J24,0)+IF(P7,J25,0)+IF(P8,J26,0)+IF(P9,J27,0)+IF(P10,J28,0)+IF(P11,J29,0)+IF(P12,J30,0)+IF(P13,J31,0))*J31)) -> 17499.44975 | V13: 17213.36223
A14: Jan 2020 | B14: 22936 | G14: I alt 2019 | H14: =SUM(H2:H13) -> 333654 | I14: I alt 2020 | J14: =SUM(J2:J13) -> 256589 | K14: I alt 2021 | L14: =SUM(L2:L13) -> 257411 | M14: I alt 2022 | N14: =SUM(N2:N13) -> 238466 | S14: =O26/(P21*1.033) -> 262239.1466 | T14: =M26/P21 -> 206309.3965 | U14: =SUM(U2:U13) -> 216339.4497 | V14: =N26/(P21*1.033) -> 212802.652
A15: Feb 2020 | B15: 24173
A16: Mar 2020 | B16: 23437
A17: Apr 2020 | B17: 19490
A18: Maj 2020 | B18: 18124 | I18: Fordeling 2019-2022 | L18: Driftsudgifter til aktivering mv.
A19: Jun 2020 | B19: 18226
A20: Jul 2020 | B20: 16989 | I20: Jan | J20: =(H2+J2+L2+N2)/($H$14+$J$14+$L$14+$N$14) -> 0.08568298162 | L20: Regnskab 2022 (kr.) | M20: Aktivitet 2022 | N20: Mdl. fuldtidspers. | O20: Enhedspris 2022 (23-pl) | P20: Enhedspris (måned)
A21: Aug 2020 | B21: 19589 | I21: feb | J21: 0.09051854307 | L21: =SUMIF('Regnskab 2022'!A2:J100,Overblik!I23,'Regnskab 2022'!H2:H100)*1000 -> 4308774000 | M21: =SUMIF('Aktivitet 2022'!A2:J100,Overblik!I23,'Aktivitet 2022'!J2:J100) -> 19876 | N21: =N14 -> 238466 | O21: =(((L21))/M21)*1.027 -> 222635.8874 | P21: =O21/12 -> 18552.99062
A22: Sep 2020 | B22: 22755 | I22: Mar | J22: 0.09083158399
A23: Okt 2020 | B23: 23769 | I23: Apr | J23: 0.08533863661 | L23: Prognose for udgifter og aktivitet
A24: Nov 2020 | B24: 24824 | I24: Maj | J24: 0.08511582514
A25: Dec 2020 | B25: 22277 | I25: Jun | J25: 0.08232607815 | M25: MV2023 | N25: ØA2024 (24-pl) | O25: Budget 2024 | P25: Prognose 2023
A26: Jan 2021 | B26: 20453 | I26: Jul | J26: 0.06738850219 | L26: Udgifter (kr.) | M26: =IF(Overblik!T27="Bloktilskud",SUMIF('Bloktilskudsdel - MV23'!A2:J100,Overblik!I23,'Bloktilskudsdel - MV23'!H2:H100),SUMIF('Midtvejsvurdering 2023'!A2:J100,Overblik!I23,'Midtvejsvurdering 2023'!H2:H100))*1000 -> 3827656297 | N26: =IF(Overblik!T27="Bloktilskud",SUMIF('Bloktilskudsdel - ØA24'!A2:J100,Overblik!I23,'Bloktilskudsdel - ØA24'!H2:H100),SUMIF('Overførselsskøn 2024'!A2:J100,Overblik!I23,'Overførselsskøn 2024'!H2:H100))*1000 -> 4078413750 | O26: =SUMIF('Budget 2024'!A2:J100,Overblik!I23,'Budget 2024'!H2:H100)*1000 -> 5025876000 | P26: =U14*P21 -> 4013743781
A27: Feb 2021 | B27: 22032 | I27: Aug | J27: 0.07377545759 | L27: Aktivitet* | M27: =T14 -> 206309.3965 | N27: =N26/(P21*1.033) -> 212802.652 | O27: =O26/(P21*1.033) -> 262239.1466 | P27: =U14 -> 216339.4497
A28: Mar 2021 | B28: 22198 | I28: Sep | J28: 0.08374581078 | L28: * Aktiviteten er opgjort som de månedlige fuldtidspersoner i alt på et år.
A29: Apr 2021 | B29: 22065 | I29: Okt | J29: 0.08586896476
A30: Maj 2021 | B30: 23244 | I30: Nov | J30: 0.08851876404
A31: Jun 2021 | B31: 22570 | I31: Dec | J31: 0.08088885206
A32: Jul 2021 | B32: 17455
A33: Aug 2021 | B33: 18984
A34: Sep 2021 | B34: 22114
A35: Okt 2021 | B35: 22505
A36: Nov 2021 | B36: 23121
A37: Dec 2021 | B37: 20670
A38: Jan 2022 | B38: 19762
A39: Feb 2022 | B39: 20367
A40: Mar 2022 | B40: 20975
A41: Apr 2022 | B41: 20280
A42: Maj 2022 | B42: 20615
A43: Jun 2022 | B43: 19699
A44: Jul 2022 | B44: 16330
A45: Aug 2022 | B45: 17852
A46: Sep 2022 | B46: 20022
A47: Okt 2022 | B47: 20664
A48: Nov 2022 | B48: 21471
A49: Dec 2022 | B49: 20429
A50: Jan 2023 | B50: 19590 | C50: =T2 -> 17677.20423
A51: Feb 2023 | B51: 20867 | C51: =T3 -> 18674.82599
A52: Mar 2023 | B52: 21239 | C52: 18739.40927
A53: Apr 2023 | B53: 19275 | C53: 17606.16262
A54: Maj 2023 | B54: 18457 | C54: 17560.19452
A55: Jun 2023 | B55: 17167 | C55: 16984.6435
A56: Jul 2023 | B56: 13589 | C56: 13902.88122
A57: Aug 2023 | B57: 14880 | C57: 15220.57013
A58: Sep 2023 | B58: 17345 | C58: 17277.54768
A59: Okt 2023 | B59: 18164 | C59: 17715.57429
A60: Nov 2023 | B60: 18267 | C60: 18262.25279
A61: Dec 2023 | C61: 16688.13025
A62: Jan 2024 | D62: =V2 -> 18233.56572 | E62: =S2 -> 22469.43198
A63: Feb 2024 | D63: =V3 -> 19262.58602 | E63: =S3 -> 23737.50548
A64: Mar 2024 | D64: 19329.20196 | E64: 23819.59707
A65: Apr 2024 | D65: 18160.28819 | E65: 22379.13124
A66: Maj 2024 | D66: 18112.87331 | E66: 22320.70135
A67: Jun 2024 | D67: 17519.20776 | E67: 21589.12048
A68: Jul 2024 | D68: 14340.45198 | E68: 17671.9033
A69: Aug 2024 | D69: 15699.61303 | E69: 19346.81304
A70: Sep 2024 | D70: 17821.33063 | E70: 21961.42995
A71: Okt 2024 | D71: 18273.14342 | E71: 22518.20404
A72: Nov 2024 | D72: 18837.02774 | E72: 23213.08514
A73: Dec 2024 | D73: 17213.36223 | E73: 21212.22353

Sheet Ressourceforløb
B1: Aktivitet | C1: MV2023 | D1: ØA2024 | E1: Budget 2024 | G1: 2019 | H1: 2019 | J1: 2020 | L1: 2021 | N1: 2022 | P1: 2023 | S1: Budget 2024 | T1: MV2023 | U1: Prognose 2023 | V1: ØA2024
A2: Jan 2019 | B2: 22972 | G2: Jan 2019 | H2: =B2 -> 22972 | I2: Jan 2020 | J2: =B14 -> 22561 | K2: Jan 2021 | L2: =B26 -> 22066 | M2: Jan 2022 | N2: =B38 -> 21325 | O2: Jan 2023 | P2: =B50 -> 18564 | R2: Jan 2023 | S2: =$S$14*J20 -> 17919.89074 | T2: =$T$14*J20 -> 17513.47072 | U2: =IF(P2,P2,(SUM(IF(P2,P2,0))/SUM(IF(P2,J20,0))*J20)) -> 18564 | V2: =$V$14*J20 -> 17784.19979
A3: Feb 2019 | B3: 22981 | G3: Feb 2019 | H3: =B3 -> 22981 | I3: Feb 2020 | J3: =B15 -> 22590 | K3: Feb 2021 | L3: =B27 -> 22005 | M3: Feb 2022 | N3: =B39 -> 21206 | O3: Feb 2023 | P3: =B51 -> 18288 | R3: Feb 2023 | S3: 17891.27502 | T3: 17485.50399 | U3: =IF(P3,P3,(SUM(IF(P2,P2,0)+IF(P3,P3,0))/SUM(IF(P2,J20,0)+IF(P3,J21,0))*J21)) -> 18288 | V3: 17755.80075
A4: Mar 2019 | B4: 23004 | G4: Mar 2019 | H4: 23004 | I4: Mar 2020 | J4: 22556 | K4: Mar 2021 | L4: 21911 | M4: Mar 2022 | N4: 21033 | O4: Mar 2023 | P4: 18063 | R4: Mar 2023 | S4: 17835.25269 | T4: 17430.75224 | U4: =IF(P4,P4,(SUM(IF(P2,P2,0)+IF(P3,P3,0)+IF(P4,P4,0))/SUM(IF(P2,J20,0)+IF(P3,J21,0)+IF(P4,J22,0))*J22)) -> 18063 | V4: 17700.20263
A5: Apr 2019 | B5: 23044 | G5: Apr 2019 | H5: 23044 | I5: Apr 2020 | J5: 22362 | K5: Apr 2021 | L5: 21864 | M5: Apr 2022 | N5: 20834 | O5: Apr 2023 | P5: 17770 | R5: Apr 2023 | S5: 17754.64502 | T5: 17351.97274 | U5: =IF(P5,P5,(SUM(IF(P2,P2,0)+IF(P3,P3,0)+IF(P4,P4,0)+IF(P5,P5,0))/SUM(IF(P2,J20,0)+IF(P3,J21,0)+IF(P4,J22,0)+IF(P5,J23,0))*J23)) -> 17770 | V5: 17620.20533
A6: Maj 2019 | B6: 23055 | G6: Maj 2019 | H6: 23055 | I6: Maj 2020 | J6: 22172 | K6: Maj 2021 | L6: 21892 | M6: Maj 2022 | N6: 20681 | O6: Maj 2023 | P6: 17591 | R6: Maj 2023 | S6: 17693.38319 | T6: 17292.10032 | U6: =IF(P6,P6,(SUM(IF(P2,P2,0)+IF(P3,P3,0)+IF(P4,P4,0)+IF(P5,P5,0)+IF(P6,P6,0))/SUM(IF(P2,J20,0)+IF(P3,J21,0)+IF(P4,J22,0)+IF(P5,J23,0)+IF(P6,J24,0))*J24)) -> 17591 | V6: 17559.40738
A7: Jun 2019 | B7: 23034 | G7: Jun 2019 | H7: 23034 | I7: Jun 2020 | J7: 22046 | K7: Jun 2021 | L7: 21862 | M7: Jun 2022 | N7: 20475 | O7: Jun 2023 | P7: 17421 | R7: Jun 2023 | S7: 17616.20135 | T7: 17216.66895 | U7: =IF(P7,P7,(SUM(IF(P2,P2,0)+IF(P3,P3,0)+IF(P4,P4,0)+IF(P5,P5,0)+IF(P6,P6,0)+IF(P7,P7,0))/SUM(IF(P2,J20,0)+IF(P3,J21,0)+IF(P4,J22,0)+IF(P5,J23,0)+IF(P6,J24,0)+IF(P7,J25,0))*J25)) -> 17421 | V7: 17482.80997
A8: Jul 2019 | B8: 22822 | G8: Jul 2019 | H8: 22822 | I8: Jul 2020 | J8: 22051 | K8: Jul 2021 | L8: 21805 | M8: Jul 2022 | N8: 20166 | O8: Jul 2023 | P8: 17147 | R8: Jul 2023 | S8: 17500.73087 | T8: 17103.81731 | U8: =IF(P8,P8,(SUM(IF(P2,P2,0)+IF(P3,P3,0)+IF(P4,P4,0)+IF(P5,P5,0)+IF(P6,P6,0)+IF(P7,P7,0)+IF(P8,P8,0))/SUM(IF(P2,J20,0)+IF(P3,J21,0)+IF(P4,J22,0)+IF(P5,J23,0)+IF(P6,J24,0)+IF(P7,J25,0)+IF(P8,J26,0))*J26)) -> 17147 | V8: 17368.21383
A9: Aug 2019 | B9: 22712 | G9: Aug 2019 | H9: 22712 | I9: Aug 2020 | J9: 22041 | K9: Aug 2021 | L9: 21686 | M9: Aug 2022 | N9: 20018 | O9: Aug 2023 | P9: 16937 | R9: Aug 2023 | S9: 17422.74295 | T9: 17027.59815 | U9: =IF(P9,P9,(SUM(IF(P2,P2,0)+IF(P3,P3,0)+IF(P4,P4,0)+IF(P5,P5,0)+IF(P6,P6,0)+IF(P7,P7,0)+IF(P8,P8,0)+IF(P9,P9,0))/SUM(IF(P2,J20,0)+IF(P3,J21,0)+IF(P4,J22,0)+IF(P5,J23,0)+IF(P6,J24,0)+IF(P7,J25,0)+IF(P8,J26,0)+IF(P9,J27,0))*J27)) -> 16937 | V9: 17290.81644
A10: Sep 2019 | B10: 22771 | G10: Sep 2019 | H10: 22771 | I10: Sep 2020 | J10: 22109 | K10: Sep 2021 | L10: 21702 | M10: Sep 2022 | N10: 19787 | O10: Sep 2023 | P10: 16788 | R10: Sep 2023 | S10: 17405.00926 | T10: 17010.26666 | U10: =IF(P10,P10,(SUM(IF(P2,P2,0)+IF(P3,P3,0)+IF(P4,P4,0)+IF(P5,P5,0)+IF(P6,P6,0)+IF(P7,P7,0)+IF(P8,P8,0)+IF(P9,P9,0)+IF(P10,P10,0))/SUM(IF(P2,J20,0)+IF(P3,J21,0)+IF(P4,J22,0)+IF(P5,J23,0)+IF(P6,J24,0)+IF(P7,J25,0)+IF(P8,J26,0)+IF(P9,J27,0)+IF(P10,J28,0))*J28)) -> 16788 | V10: 17273.21704
A11: Okt 2019 | B11: 22743 | G11: Okt 2019 | H11: 22743 | I11: Okt 2020 | J11: 22094 | K11: Okt 2021 | L11: 21610 | M11: Okt 2022 | N11: 19481 | O11: Okt 2023 | P11: 16635 | R11: Okt 2023 | S11: 17316.13931 | T11: 16923.41226 | U11: =IF(P11,P11,(SUM(IF(P2,P2,0)+IF(P3,P3,0)+IF(P4,P4,0)+IF(P5,P5,0)+IF(P6,P6,0)+IF(P7,P7,0)+IF(P8,P8,0)+IF(P9,P9,0)+IF(P10,P10,0)+IF(P11,P11,0))/SUM(IF(P2,J20,0)+IF(P3,J21,0)+IF(P4,J22,0)+IF(P5,J23,0)+IF(P6,J24,0)+IF(P7,J25,0)+IF(P8,J26,0)+IF(P9,J27,0)+IF(P10,J28,0)+IF(P11,J29,0))*J29)) -> 16635 | V11: 17185.02002
A12: Nov 2019 | B12: 22768 | G12: Nov 2019 | H12: 22768 | I12: Nov 2020 | J12: 22134 | K12: Nov 2021 | L12: 21540 | M12: Nov 2022 | N12: 19186 | O12: Nov 2023 | P12: 16492 | R12: Nov 2023 | S12: 17255.68355 | T12: 16864.32763 | U12: =IF(P12,P12,(SUM(IF(P2,P2,0)+IF(P3,P3,0)+IF(P4,P4,0)+IF(P5,P5,0)+IF(P6,P6,0)+IF(P7,P7,0)+IF(P8,P8,0)+IF(P9,P9,0)+IF(P10,P10,0)+IF(P11,P11,0)+IF(P12,P12,0))/SUM(IF(P2,J20,0)+IF(P3,J21,0)+IF(P4,J22,0)+IF(P5,J23,0)+IF(P6,J24,0)+IF(P7,J25,0)+IF(P8,J26,0)+IF(P9,J27,0)+IF(P10,J28,0)+IF(P11,J29,0)+IF(P12,J30,0))*J30)) -> 16492 | V12: 17125.02204
A13: Dec 2019 | B13: 22717 | G13: Dec 2019 | H13: 22717 | I13: Dec 2020 | J13: 22179 | K13: Dec 2021 | L13: 21450 | M13: Dec 2022 | N13: 18871 | O13: Dec 2023 | P13: 16330 | R13: Dec 2023 | S13: 17172.85918 | T13: 16783.3817 | U13: =IF(P13,P13,(SUM(IF(P2,P2,0)+IF(P3,P3,0)+IF(P4,P4,0)+IF(P5,P5,0)+IF(P6,P6,0)+IF(P7,P7,0)+IF(P8,P8,0)+IF(P9,P9,0)+IF(P10,P10,0)+IF(P11,P11,0)+IF(P12,P12,0)+IF(P13,P13,0))/SUM(IF(P2,J20,0)+IF(P3,J21,0)+IF(P4,J22,0)+IF(P5,J23,0)+IF(P6,J24,0)+IF(P7,J25,0)+IF(P8,J26,0)+IF(P9,J27,0)+IF(P10,J28,0)+IF(P11,J29,0)+IF(P12,J30,0)+IF(P13,J31,0))*J31)) -> 16330 | V13: 17042.82481
A14: Jan 2020 | B14: 22561 | G14: I alt 2019 | H14: =SUM(H2:H13) -> 274623 | I14: I alt 2020 | J14: =SUM(J2:J13) -> 266895 | K14: I alt 2021 | L14: =SUM(L2:L13) -> 261393 | M14: I alt 2022 | N14: =SUM(N2:N13) -> 243063 | S14: =O26/(P21*1.033) -> 210783.8131 | T14: =M26/P21 -> 206003.2727 | U14: =SUM(U2:U13) -> 208026 | V14: =N26/(P21*1.033) -> 209187.74
A15: Feb 2020 | B15: 22590
A16: Mar 2020 | B16: 22556
A17: Apr 2020 | B17: 22362
A18: Maj 2020 | B18: 22172 | I18: Fordeling 2019-2022 | L18: Ressourceforløb
A19: Jun 2020 | B19: 22046
A20: Jul 2020 | B20: 22051 | I20: Jan | J20: =(H2+J2+L2+N2)/($H$14+$J$14+$L$14+$N$14) -> 0.08501549752 | L20: Regnskab 2022 (kr.) | M20: Aktivitet 2022 | N20: Mdl. fuldtidspers. | O20: Enhedspris 2022 (23-pl) | P20: Enhedspris (måned)
A21: Aug 2020 | B21: 22041 | I21: feb | J21: 0.08487973888 | L21: =SUMIF('Regnskab 2022'!A2:J100,Overblik!I23,'Regnskab 2022'!F2:F100)*1000 -> 2568923000 | M21: =SUMIF('Aktivitet 2022'!A2:J100,Overblik!I23,'Aktivitet 2022'!F2:F100) -> 20249 | N21: =N14 -> 243063 | O21: =(((L21))/M21)*1.0195 -> 129340.56 | P21: =O21/12 -> 10778.38
A22: Sep 2020 | B22: 22109 | I22: Mar | J22: 0.0846139579
A23: Okt 2020 | B23: 22094 | I23: Apr | J23: 0.08423153922 | L23: Prognose for udgifter og aktivitet
A24: Nov 2020 | B24: 22134 | I24: Maj | J24: 0.08394090102
A25: Dec 2020 | B25: 22179 | I25: Jun | J25: 0.08357473513 | M25: MV2023 | N25: ØA2024 (24-pl) | O25: Budget 2024 | P25: Prognose 2023
A26: Jan 2021 | B26: 22066 | I26: Jul | J26: 0.08302692036 | L26: Udgifter (kr.) | M26: =IF(Overblik!T27="Bloktilskud",SUMIF('Bloktilskudsdel - MV23'!A2:J100,Overblik!I23,'Bloktilskudsdel - MV23'!F2:F100),SUMIF('Midtvejsvurdering 2023'!A2:J100,Overblik!I23,'Midtvejsvurdering 2023'!F2:F100))*1000 -> 2220381553 | N26: =IF(Overblik!T27="Bloktilskud",SUMIF('Bloktilskudsdel - ØA24'!A2:J100,Overblik!I23,'Bloktilskudsdel - ØA24'!F2:F100),SUMIF('Overførselsskøn 2024'!A2:J100,Overblik!I23,'Overførselsskøn 2024'!F2:F100))*1000 -> 2329110216 | O26: =SUMIF('Budget 2024'!A2:J100,Overblik!I23,'Budget 2024'!F2:F100)*1000 -> 2346881000 | P26: =U14*P21 -> 2242183277
A27: Feb 2021 | B27: 22005 | I27: Aug | J27: 0.08265693029 | L27: Aktivitet* | M27: =T14 -> 206003.2727 | N27: =N26/(P21*1.033) -> 209187.74 | O27: =O26/(P21*1.033) -> 210783.8131 | P27: =U14 -> 208026
A28: Mar 2021 | B28: 21911 | I28: Sep | J28: 0.08257279818 | L28: * Aktiviteten er opgjort som de månedlige fuldtidspersoner i alt på et år.
A29: Apr 2021 | B29: 21864 | I29: Okt | J29: 0.08215118158
A30: Maj 2021 | B30: 21892 | I30: Nov | J30: 0.08186436757
A31: Jun 2021 | B31: 21862 | I31: Dec | J31: 0.08147143237
A32: Jul 2021 | B32: 21805
A33: Aug 2021 | B33: 21686
A34: Sep 2021 | B34: 21702
A35: Okt 2021 | B35: 21610
A36: Nov 2021 | B36: 21540
A37: Dec 2021 | B37: 21450
A38: Jan 2022 | B38: 21325
A39: Feb 2022 | B39: 21206
A40: Mar 2022 | B40: 21033
A41: Apr 2022 | B41: 20834
A42: Maj 2022 | B42: 20681
A43: Jun 2022 | B43: 20475
A44: Jul 2022 | B44: 20166
A45: Aug 2022 | B45: 20018
A46: Sep 2022 | B46: 19787
A47: Okt 2022 | B47: 19481
A48: Nov 2022 | B48: 19186
A49: Dec 2022 | B49: 18871
A50: Jan 2023 | B50: 18564 | C50: =T2 -> 17513.47072
A51: Feb 2023 | B51: 18288 | C51: =T3 -> 17485.50399
A52: Mar 2023 | B52: 18063 | C52: 17430.75224
A53: Apr 2023 | B53: 17770 | C53: 17351.97274
A54: Maj 2023 | B54: 17591 | C54: 17292.10032
A55: Jun 2023 | B55: 17421 | C55: 17216.66895
A56: Jul 2023 | B56: 17147 | C56: 17103.81731
A57: Aug 2023 | B57: 16937 | C57: 17027.59815
A58: Sep 2023 | B58: 16788 | C58: 17010.26666
A59: Okt 2023 | B59: 16635 | C59: 16923.41226
A60: Nov 2023 | B60: 16492 | C60: 16864.32763
A61: Dec 2023 | B61: 16330 | C61: 16783.3817
A62: Jan 2024 | D62: =V2 -> 17784.19979 | E62: =S2 -> 17919.89074
A63: Feb 2024 | D63: =V3 -> 17755.80075 | E63: =S3 -> 17891.27502
A64: Mar 2024 | D64: 17700.20263 | E64: 17835.25269
A65: Apr 2024 | D65: 17620.20533 | E65: 17754.64502
A66: Maj 2024 | D66: 17559.40738 | E66: 17693.38319
A67: Jun 2024 | D67: 17482.80997 | E67: 17616.20135
A68: Jul 2024 | D68: 17368.21383 | E68: 17500.73087
A69: Aug 2024 | D69: 17290.81644 | E69: 17422.74295
A70: Sep 2024 | D70: 17273.21704 | E70: 17405.00926
A71: Okt 2024 | D71: 17185.02002 | E71: 17316.13931
A72: Nov 2024 | D72: 17125.02204 | E72: 17255.68355
A73: Dec 2024 | D73: 17042.82481 | E73: 17172.85918

Sheet Jobafklaring
B1: Aktivitet | C1: MV2023 | D1: ØA2024 | E1: Budget 2024 | H1: 2019 | J1: 2020 | L1: 2021 | N1: 2022 | P1: 2023 | S1: Budget 2024 | T1: MV2023 | U1: Prognose 2023 | V1: ØA2024
A2: Jan 2019 | B2: 21222 | G2: Jan 2019 | H2: =B2 -> 21222 | I2: Jan 2020 | J2: =B14 -> 22145 | K2: Jan 2021 | L2: =B26 -> 13383 | M2: Jan 2022 | N2: =B38 -> 21787 | O2: Jan 2023 | P2: =B50 -> 24055 | R2: Jan 2023 | S2: =$S$14*J20 -> 22480.74009 | T2: =$T$14*J20 -> 22026.71249 | U2: =IF(P2,P2,(SUM(IF(P2,P2,0))/SUM(IF(P2,J20,0))*J20)) -> 24055 | V2: =$V$14*J20 -> 22061.85402
A3: Feb 2019 | B3: 20992 | G3: Feb 2019 | H3: =B3 -> 20992 | I3: Feb 2020 | J3: =B15 -> 21936 | K3: Feb 2021 | L3: =B27 -> 12719 | M3: Feb 2022 | N3: =B39 -> 21775 | O3: Feb 2023 | P3: =B51 -> 23887 | R3: Feb 2023 | S3: 22161.5781 | T3: 21713.99639 | U3: =IF(P3,P3,(SUM(IF(P2,P2,0)+IF(P3,P3,0))/SUM(IF(P2,J20,0)+IF(P3,J21,0))*J21)) -> 23887 | V3: 21748.63901
A4: Mar 2019 | B4: 21067 | G4: Mar 2019 | H4: 21067 | I4: Mar 2020 | J4: 22030 | K4: Mar 2021 | L4: 12245 | M4: Mar 2022 | N4: 21832 | O4: Mar 2023 | P4: 24110 | R4: Mar 2023 | S4: 22090.5896 | T4: 21644.44159 | U4: =IF(P4,P4,(SUM(IF(P2,P2,0)+IF(P3,P3,0)+IF(P4,P4,0))/SUM(IF(P2,J20,0)+IF(P3,J21,0)+IF(P4,J22,0))*J22)) -> 24110 | V4: 21678.97325
A5: Apr 2019 | B5: 21239 | G5: Apr 2019 | H5: 21239 | I5: Apr 2020 | J5: 21012 | K5: Apr 2021 | L5: 11766 | M5: Apr 2022 | N5: 22188 | O5: Apr 2023 | P5: 24207 | R5: Apr 2023 | S5: 21813.21923 | T5: 21372.67307 | U5: =IF(P5,P5,(SUM(IF(P2,P2,0)+IF(P3,P3,0)+IF(P4,P4,0)+IF(P5,P5,0))/SUM(IF(P2,J20,0)+IF(P3,J21,0)+IF(P4,J22,0)+IF(P5,J23,0))*J23)) -> 24207 | V5: 21406.77115
A6: Maj 2019 | B6: 21494 | G6: Maj 2019 | H6: 21494 | I6: Maj 2020 | J6: 20044 | K6: Maj 2021 | L6: 11304 | M6: Maj 2022 | N6: 22460 | O6: Maj 2023 | P6: 24382 | R6: Maj 2023 | S6: 21554.74095 | T6: 21119.4151 | U6: =IF(P6,P6,(SUM(IF(P2,P2,0)+IF(P3,P3,0)+IF(P4,P4,0)+IF(P5,P5,0)+IF(P6,P6,0))/SUM(IF(P2,J20,0)+IF(P3,J21,0)+IF(P4,J22,0)+IF(P5,J23,0)+IF(P6,J24,0))*J24)) -> 24382 | V6: 21153.10913
A7: Jun 2019 | B7: 21674 | G7: Jun 2019 | H7: 21674 | I7: Jun 2020 | J7: 19025 | K7: Jun 2021 | L7: 10833 | M7: Jun 2022 | N7: 22745 | O7: Jun 2023 | P7: 24378 | R7: Jun 2023 | S7: 21261.34092 | T7: 20831.94066 | U7: =IF(P7,P7,(SUM(IF(P2,P2,0)+IF(P3,P3,0)+IF(P4,P4,0)+IF(P5,P5,0)+IF(P6,P6,0)+IF(P7,P7,0))/SUM(IF(P2,J20,0)+IF(P3,J21,0)+IF(P4,J22,0)+IF(P5,J23,0)+IF(P6,J24,0)+IF(P7,J25,0))*J25)) -> 24378 | V7: 20865.17605
A8: Jul 2019 | B8: 21315 | G8: Jul 2019 | H8: 21315 | I8: Jul 2020 | J8: 17712 | K8: Jul 2021 | L8: 13437 | M8: Jul 2022 | N8: 22456 | O8: Jul 2023 | P8: 23817 | R8: Jul 2023 | S8: 21445.39577 | T8: 21012.27828 | U8: =IF(P8,P8,(SUM(IF(P2,P2,0)+IF(P3,P3,0)+IF(P4,P4,0)+IF(P5,P5,0)+IF(P6,P6,0)+IF(P7,P7,0)+IF(P8,P8,0))/SUM(IF(P2,J20,0)+IF(P3,J21,0)+IF(P4,J22,0)+IF(P5,J23,0)+IF(P6,J24,0)+IF(P7,J25,0)+IF(P8,J26,0))*J26)) -> 23817 | V8: 21045.80139
A9: Aug 2019 | B9: 21731 | G9: Aug 2019 | H9: 21731 | I9: Aug 2020 | J9: 17193 | K9: Aug 2021 | L9: 17571 | M9: Aug 2022 | N9: 22952 | O9: Aug 2023 | P9: 24049 | R9: Aug 2023 | S9: 22741.22207 | T9: 22281.9337 | U9: =IF(P9,P9,(SUM(IF(P2,P2,0)+IF(P3,P3,0)+IF(P4,P4,0)+IF(P5,P5,0)+IF(P6,P6,0)+IF(P7,P7,0)+IF(P8,P8,0)+IF(P9,P9,0))/SUM(IF(P2,J20,0)+IF(P3,J21,0)+IF(P4,J22,0)+IF(P5,J23,0)+IF(P6,J24,0)+IF(P7,J25,0)+IF(P8,J26,0)+IF(P9,J27,0))*J27)) -> 24049 | V9: 22317.48242
A10: Sep 2019 | B10: 21746 | G10: Sep 2019 | H10: 21746 | I10: Sep 2020 | J10: 16357 | K10: Sep 2021 | L10: 19336 | M10: Sep 2022 | N10: 23224 | O10: Sep 2023 | P10: 23865 | R10: Sep 2023 | S10: 23089.2947 | T10: 22622.97655 | U10: =IF(P10,P10,(SUM(IF(P2,P2,0)+IF(P3,P3,0)+IF(P4,P4,0)+IF(P5,P5,0)+IF(P6,P6,0)+IF(P7,P7,0)+IF(P8,P8,0)+IF(P9,P9,0)+IF(P10,P10,0))/SUM(IF(P2,J20,0)+IF(P3,J21,0)+IF(P4,J22,0)+IF(P5,J23,0)+IF(P6,J24,0)+IF(P7,J25,0)+IF(P8,J26,0)+IF(P9,J27,0)+IF(P10,J28,0))*J28)) -> 23865 | V10: 22659.06937
A11: Okt 2019 | B11: 21869 | G11: Okt 2019 | H11: 21869 | I11: Okt 2020 | J11: 15500 | K11: Okt 2021 | L11: 20158 | M11: Okt 2022 | N11: 23408 | O11: Okt 2023 | P11: 23544 | R11: Okt 2023 | S11: 23167.15305 | T11: 22699.26245 | U11: =IF(P11,P11,(SUM(IF(P2,P2,0)+IF(P3,P3,0)+IF(P4,P4,0)+IF(P5,P5,0)+IF(P6,P6,0)+IF(P7,P7,0)+IF(P8,P8,0)+IF(P9,P9,0)+IF(P10,P10,0)+IF(P11,P11,0))/SUM(IF(P2,J20,0)+IF(P3,J21,0)+IF(P4,J22,0)+IF(P5,J23,0)+IF(P6,J24,0)+IF(P7,J25,0)+IF(P8,J26,0)+IF(P9,J27,0)+IF(P10,J28,0)+IF(P11,J29,0))*J29)) -> 23544 | V11: 22735.47698
A12: Nov 2019 | B12: 22047 | G12: Nov 2019 | H12: 22047 | I12: Nov 2020 | J12: 14809 | K12: Nov 2021 | L12: 20758 | M12: Nov 2022 | N12: 23743 | O12: Nov 2023 | P12: 22844 | R12: Nov 2023 | S12: 23287.94799 | T12: 22817.61778 | U12: =IF(P12,P12,(SUM(IF(P2,P2,0)+IF(P3,P3,0)+IF(P4,P4,0)+IF(P5,P5,0)+IF(P6,P6,0)+IF(P7,P7,0)+IF(P8,P8,0)+IF(P9,P9,0)+IF(P10,P10,0)+IF(P11,P11,0)+IF(P12,P12,0))/SUM(IF(P2,J20,0)+IF(P3,J21,0)+IF(P4,J22,0)+IF(P5,J23,0)+IF(P6,J24,0)+IF(P7,J25,0)+IF(P8,J26,0)+IF(P9,J27,0)+IF(P10,J28,0)+IF(P11,J29,0)+IF(P12,J30,0))*J30)) -> 22844 | V12: 22854.02114
A13: Dec 2019 | B13: 22141 | G13: Dec 2019 | H13: 22141 | I13: Dec 2020 | J13: 14038 | K13: Dec 2021 | L13: 21014 | M13: Dec 2022 | N13: 23779 | O13: Dec 2023 | P13: 21362 | R13: Dec 2023 | S13: 23177.74408 | T13: 22709.63958 | U13: =IF(P13,P13,(SUM(IF(P2,P2,0)+IF(P3,P3,0)+IF(P4,P4,0)+IF(P5,P5,0)+IF(P6,P6,0)+IF(P7,P7,0)+IF(P8,P8,0)+IF(P9,P9,0)+IF(P10,P10,0)+IF(P11,P11,0)+IF(P12,P12,0)+IF(P13,P13,0))/SUM(IF(P2,J20,0)+IF(P3,J21,0)+IF(P4,J22,0)+IF(P5,J23,0)+IF(P6,J24,0)+IF(P7,J25,0)+IF(P8,J26,0)+IF(P9,J27,0)+IF(P10,J28,0)+IF(P11,J29,0)+IF(P12,J30,0)+IF(P13,J31,0))*J31)) -> 21362 | V13: 22745.87066
A14: Jan 2020 | B14: 22145 | G14: I alt 2019 | H14: =SUM(H2:H13) -> 258537 | I14: I alt 2020 | J14: =SUM(J2:J13) -> 221801 | K14: I alt 2021 | L14: =SUM(L2:L13) -> 184524 | M14: I alt 2022 | N14: =SUM(N2:N13) -> 272349 | S14: =O26/(P21*1.033) -> 268270.9666 | T14: =M26/P21 -> 262852.8876 | U14: =SUM(U2:U13) -> 284500 | V14: =N26/(P21*1.033) -> 263272.2446
A15: Feb 2020 | B15: 21936
A16: Mar 2020 | B16: 22030
A17: Apr 2020 | B17: 21012
A18: Maj 2020 | B18: 20044 | I18: Fordeling 2019-2022 | L18: Jobafklaringsforløb
A19: Jun 2020 | B19: 19025
A20: Jul 2020 | B20: 17712 | I20: Jan | J20: =(H2+J2+L2+N2)/($H$14+$J$14+$L$14+$N$14) -> 0.08379863233 | L20: Regnskab 2022 (kr.) | M20: Aktivitet 2022 | N20: Mdl. fuldtidspers. | O20: Enhedspris 2022 (23-pl) | P20: Enhedspris (måned)
A21: Aug 2020 | B21: 17193 | I21: feb | J21: 0.08260893225 | L21: =SUMIF('Regnskab 2022'!A2:J100,Overblik!I23,'Regnskab 2022'!G2:G100)*1000 -> 2661186000 | M21: =SUMIF('Aktivitet 2022'!A2:J100,Overblik!I23,'Aktivitet 2022'!E2:E100) -> 22705 | N21: =N14 -> 272349 | O21: =(((L21))/M21)*1.0195 -> 119492.5843 | P21: =O21/12 -> 9957.71536
A22: Sep 2020 | B22: 16357 | I22: Mar | J22: 0.08234431734
A23: Okt 2020 | B23: 15500 | I23: Apr | J23: 0.08131039862 | L23: Prognose for udgifter og aktivitet
A24: Nov 2020 | B24: 14809 | I24: Maj | J24: 0.0803469016
A25: Dec 2020 | B25: 14038 | I25: Jun | J25: 0.07925323113 | M25: MV2023 | N25: ØA2024 (24-pl) | O25: Budget 2024 | P25: Prognose 2023
A26: Jan 2021 | B26: 13383 | I26: Jul | J26: 0.07993930929 | L26: Udgifter (kr.) | M26: =IF(Overblik!T27="Bloktilskud",SUMIF('Bloktilskudsdel - MV23'!A2:J100,Overblik!I23,'Bloktilskudsdel - MV23'!G2:G100),SUMIF('Midtvejsvurdering 2023'!A2:J100,Overblik!I23,'Midtvejsvurdering 2023'!G2:G100))*1000 -> 2617414237 | N26: =IF(Overblik!T27="Bloktilskud",SUMIF('Bloktilskudsdel - ØA24'!A2:J100,Overblik!I23,'Bloktilskudsdel - ØA24'!G2:G100),SUMIF('Overførselsskøn 2024'!A2:J100,Overblik!I23,'Overførselsskøn 2024'!G2:G100))*1000 -> 2708102546 | O26: =SUMIF('Budget 2024'!A2:J100,Overblik!I23,'Budget 2024'!G2:G100)*1000 -> 2759521000 | P26: =U14*P21 -> 2832970020
A27: Feb 2021 | B27: 12719 | I27: Aug | J27: 0.08476959831 | L27: Aktivitet* | M27: =T14 -> 262852.8876 | N27: =N26/(P21*1.033) -> 263272.2446 | O27: =O26/(P21*1.033) -> 268270.9666 | P27: =U14 -> 284500
A28: Mar 2021 | B28: 12245 | I28: Sep | J28: 0.08606706494 | L28: * Aktiviteten er opgjort som de månedlige fuldtidspersoner i alt på et år.
A29: Apr 2021 | B29: 11766 | I29: Okt | J29: 0.08635728774
A30: Maj 2021 | B30: 11304 | I30: Nov | J30: 0.08680755988
A31: Jun 2021 | B31: 10833 | I31: Dec | J31: 0.08639676658
A32: Jul 2021 | B32: 13437
A33: Aug 2021 | B33: 17571
A34: Sep 2021 | B34: 19336
A35: Okt 2021 | B35: 20158
A36: Nov 2021 | B36: 20758
A37: Dec 2021 | B37: 21014
A38: Jan 2022 | B38: 21787
A39: Feb 2022 | B39: 21775
A40: Mar 2022 | B40: 21832
A41: Apr 2022 | B41: 22188
A42: Maj 2022 | B42: 22460
A43: Jun 2022 | B43: 22745
A44: Jul 2022 | B44: 22456
A45: Aug 2022 | B45: 22952
A46: Sep 2022 | B46: 23224
A47: Okt 2022 | B47: 23408
A48: Nov 2022 | B48: 23743
A49: Dec 2022 | B49: 23779
A50: Jan 2023 | B50: 24055 | C50: =T2 -> 22026.71249
A51: Feb 2023 | B51: 23887 | C51: =T3 -> 21713.99639
A52: Mar 2023 | B52: 24110 | C52: 21644.44159
A53: Apr 2023 | B53: 24207 | C53: 21372.67307
A54: Maj 2023 | B54: 24382 | C54: 21119.4151
A55: Jun 2023 | B55: 24378 | C55: 20831.94066
A56: Jul 2023 | B56: 23817 | C56: 21012.27828
A57: Aug 2023 | B57: 24049 | C57: 22281.9337
A58: Sep 2023 | B58: 23865 | C58: 22622.97655
A59: Okt 2023 | B59: 23544 | C59: 22699.26245
A60: Nov 2023 | B60: 22844 | C60: 22817.61778
A61: Dec 2023 | B61: 21362 | C61: 22709.63958
A62: Jan 2024 | D62: =V2 -> 22061.85402 | E62: =S2 -> 22480.74009
A63: Feb 2024 | D63: =V3 -> 21748.63901 | E63: =S3 -> 22161.5781
A64: Mar 2024 | D64: 21678.97325 | E64: 22090.5896
A65: Apr 2024 | D65: 21406.77115 | E65: 21813.21923
A66: Maj 2024 | D66: 21153.10913 | E66: 21554.74095
A67: Jun 2024 | D67: 20865.17605 | E67: 21261.34092
A68: Jul 2024 | D68: 21045.80139 | E68: 21445.39577
A69: Aug 2024 | D69: 22317.48242 | E69: 22741.22207
A70: Sep 2024 | D70: 22659.06937 | E70: 23089.2947
A71: Okt 2024 | D71: 22735.47698 | E71: 23167.15305
A72: Nov 2024 | D72: 22854.02114 | E72: 23287.94799
A73: Dec 2024 | D73: 22745.87066 | E73: 23177.74408

Sheet Sygedagpenge
B1: Aktivitet | C1: MV2023 | D1: ØA2024 | E1: Budget 2024 | G1: 2019 | H1: 2019 | J1: 2020 | L1: 2021 | N1: 2022 | P1: 2023 | S1: Budget 2024 | T1: MV2023 | U1: Prognose 2023 | V1: ØA2024
A2: Jan 2019 | B2: 72337 | G2: Jan 2019 | H2: =B2 -> 72337 | I2: Jan 2020 | J2: =B14 -> 75616 | K2: Jan 2021 | L2: =B26 -> 103098 | M2: Jan 2022 | N2: =B38 -> 141822 | O2: Jan 2023 | P2: =B50 -> 89395 | R2: Jan 2023 | S2: =$S$14*J20 -> 93159.12039 | T2: =$T$14*J20 -> 92167.25112 | U2: =IF(P2,P2,(SUM(IF(P2,P2,0))/SUM(IF(P2,J20,0))*J20)) -> 89395 | V2: =$V$14*J20 -> 94898.85095
A3: Feb 2019 | B3: 72774 | G3: Feb 2019 | H3: =B3 -> 72774 | I3: Feb 2020 | J3: =B15 -> 75565 | K3: Feb 2021 | L3: =B27 -> 96754 | M3: Feb 2022 | N3: =B39 -> 137688 | O3: Feb 2023 | P3: =B51 -> 89595 | R3: Feb 2023 | S3: 93645.15845 | T3: 92648.11431 | U3: =IF(P3,P3,(SUM(IF(P2,P2,0)+IF(P3,P3,0))/SUM(IF(P2,J20,0)+IF(P3,J21,0))*J21)) -> 89595 | V3: 95393.96568
A4: Mar 2019 | B4: 71547 | G4: Mar 2019 | H4: 71547 | I4: Mar 2020 | J4: 95751 | K4: Mar 2021 | L4: 95924 | M4: Mar 2022 | N4: 87453 | O4: Mar 2023 | P4: 90970 | R4: Mar 2023 | S4: 91244.94266 | T4: 90273.45373 | U4: =IF(P4,P4,(SUM(IF(P2,P2,0)+IF(P3,P3,0)+IF(P4,P4,0))/SUM(IF(P2,J20,0)+IF(P3,J21,0)+IF(P4,J22,0))*J22)) -> 90970 | V4: 92948.92628
A5: Apr 2019 | B5: 68604 | G5: Apr 2019 | H5: 68604 | I5: Apr 2020 | J5: 81533 | K5: Apr 2021 | L5: 94564 | M5: Apr 2022 | N5: 82121 | O5: Apr 2023 | P5: 88571 | R5: Apr 2023 | S5: 87046.25715 | T5: 86119.47181 | U5: =IF(P5,P5,(SUM(IF(P2,P2,0)+IF(P3,P3,0)+IF(P4,P4,0)+IF(P5,P5,0))/SUM(IF(P2,J20,0)+IF(P3,J21,0)+IF(P4,J22,0)+IF(P5,J23,0))*J23)) -> 88571 | V5: 88671.83104
A6: Maj 2019 | B6: 68318 | G6: Maj 2019 | H6: 68318 | I6: Maj 2020 | J6: 73461 | K6: Maj 2021 | L6: 96110 | M6: Maj 2022 | N6: 80830 | O6: Maj 2023 | P6: 86964 | R6: Maj 2023 | S6: 85458.25351 | T6: 84548.37571 | U6: =IF(P6,P6,(SUM(IF(P2,P2,0)+IF(P3,P3,0)+IF(P4,P4,0)+IF(P5,P5,0)+IF(P6,P6,0))/SUM(IF(P2,J20,0)+IF(P3,J21,0)+IF(P4,J22,0)+IF(P5,J23,0)+IF(P6,J24,0))*J24)) -> 86964 | V6: 87054.1717
A7: Jun 2019 | B7: 67143 | G7: Jun 2019 | H7: 67143 | I7: Jun 2020 | J7: 72170 | K7: Jun 2021 | L7: 94558 | M7: Jun 2022 | N7: 81024 | O7: Jun 2023 | P7: 85726 | R7: Jun 2023 | S7: 84419.45997 | T7: 83520.64225 | U7: =IF(P7,P7,(SUM(IF(P2,P2,0)+IF(P3,P3,0)+IF(P4,P4,0)+IF(P5,P5,0)+IF(P6,P6,0)+IF(P7,P7,0))/SUM(IF(P2,J20,0)+IF(P3,J21,0)+IF(P4,J22,0)+IF(P5,J23,0)+IF(P6,J24,0)+IF(P7,J25,0))*J25)) -> 85726 | V7: 85995.97887
A8: Jul 2019 | B8: 62365 | G8: Jul 2019 | H8: 62365 | I8: Jul 2020 | J8: 69896 | K8: Jul 2021 | L8: 84460 | M8: Jul 2022 | N8: 76567 | O8: Jul 2023 | P8: 79983 | R8: Jul 2023 | S8: 78112.24597 | T8: 77280.58144 | U8: =IF(P8,P8,(SUM(IF(P2,P2,0)+IF(P3,P3,0)+IF(P4,P4,0)+IF(P5,P5,0)+IF(P6,P6,0)+IF(P7,P7,0)+IF(P8,P8,0))/SUM(IF(P2,J20,0)+IF(P3,J21,0)+IF(P4,J22,0)+IF(P5,J23,0)+IF(P6,J24,0)+IF(P7,J25,0)+IF(P8,J26,0))*J26)) -> 79983 | V8: 79570.97874
A9: Aug 2019 | B9: 62308 | G9: Aug 2019 | H9: 62308 | I9: Aug 2020 | J9: 73280 | K9: Aug 2021 | L9: 79177 | M9: Aug 2022 | N9: 76228 | O9: Aug 2023 | P9: 79168 | R9: Aug 2023 | S9: 77578.50657 | T9: 76752.52478 | U9: =IF(P9,P9,(SUM(IF(P2,P2,0)+IF(P3,P3,0)+IF(P4,P4,0)+IF(P5,P5,0)+IF(P6,P6,0)+IF(P7,P7,0)+IF(P8,P8,0)+IF(P9,P9,0))/SUM(IF(P2,J20,0)+IF(P3,J21,0)+IF(P4,J22,0)+IF(P5,J23,0)+IF(P6,J24,0)+IF(P7,J25,0)+IF(P8,J26,0)+IF(P9,J27,0))*J27)) -> 79168 | V9: 79027.27184
A10: Sep 2019 | B10: 65408 | G10: Sep 2019 | H10: 65408 | I10: Sep 2020 | J10: 81218 | K10: Sep 2021 | L10: 79580 | M10: Sep 2022 | N10: 78882 | O10: Sep 2023 | P10: 80518 | R10: Sep 2023 | S10: 80824.45435 | T10: 79963.91282 | U10: =IF(P10,P10,(SUM(IF(P2,P2,0)+IF(P3,P3,0)+IF(P4,P4,0)+IF(P5,P5,0)+IF(P6,P6,0)+IF(P7,P7,0)+IF(P8,P8,0)+IF(P9,P9,0)+IF(P10,P10,0))/SUM(IF(P2,J20,0)+IF(P3,J21,0)+IF(P4,J22,0)+IF(P5,J23,0)+IF(P6,J24,0)+IF(P7,J25,0)+IF(P8,J26,0)+IF(P9,J27,0)+IF(P10,J28,0))*J28)) -> 80518 | V10: 82333.83714
A11: Okt 2019 | B11: 69483 | G11: Okt 2019 | H11: 69483 | I11: Okt 2020 | J11: 87488 | K11: Okt 2021 | L11: 82711 | M11: Okt 2022 | N11: 82562 | O11: Okt 2023 | P11: 84118 | R11: Okt 2023 | S11: 85326.75249 | T11: 84418.27479 | U11: =IF(P11,P11,(SUM(IF(P2,P2,0)+IF(P3,P3,0)+IF(P4,P4,0)+IF(P5,P5,0)+IF(P6,P6,0)+IF(P7,P7,0)+IF(P8,P8,0)+IF(P9,P9,0)+IF(P10,P10,0)+IF(P11,P11,0))/SUM(IF(P2,J20,0)+IF(P3,J21,0)+IF(P4,J22,0)+IF(P5,J23,0)+IF(P6,J24,0)+IF(P7,J25,0)+IF(P8,J26,0)+IF(P9,J27,0)+IF(P10,J28,0)+IF(P11,J29,0))*J29)) -> 84118 | V11: 86920.21493
A12: Nov 2019 | B12: 72984 | G12: Nov 2019 | H12: 72984 | I12: Nov 2020 | J12: 96908 | K12: Nov 2021 | L12: 88913 | M12: Nov 2022 | N12: 85877 | O12: Nov 2023 | P12: 87670 | R12: Nov 2023 | S12: 89782.31621 | T12: 88826.39992 | U12: =IF(P12,P12,(SUM(IF(P2,P2,0)+IF(P3,P3,0)+IF(P4,P4,0)+IF(P5,P5,0)+IF(P6,P6,0)+IF(P7,P7,0)+IF(P8,P8,0)+IF(P9,P9,0)+IF(P10,P10,0)+IF(P11,P11,0)+IF(P12,P12,0))/SUM(IF(P2,J20,0)+IF(P3,J21,0)+IF(P4,J22,0)+IF(P5,J23,0)+IF(P6,J24,0)+IF(P7,J25,0)+IF(P8,J26,0)+IF(P9,J27,0)+IF(P10,J28,0)+IF(P11,J29,0)+IF(P12,J30,0))*J30)) -> 87670 | V12: 91458.98553
A13: Dec 2019 | B13: 74332 | G13: Dec 2019 | H13: 74332 | I13: Dec 2020 | J13: 105900 | K13: Dec 2021 | L13: 104985 | M13: Dec 2022 | N13: 88486 | O13: Dec 2023 | P13: 84737 | R13: Dec 2023 | S13: 91942.73603 | T13: 90963.81766 | U13: =IF(P13,P13,(SUM(IF(P2,P2,0)+IF(P3,P3,0)+IF(P4,P4,0)+IF(P5,P5,0)+IF(P6,P6,0)+IF(P7,P7,0)+IF(P8,P8,0)+IF(P9,P9,0)+IF(P10,P10,0)+IF(P11,P11,0)+IF(P12,P12,0)+IF(P13,P13,0))/SUM(IF(P2,J20,0)+IF(P3,J21,0)+IF(P4,J22,0)+IF(P5,J23,0)+IF(P6,J24,0)+IF(P7,J25,0)+IF(P8,J26,0)+IF(P9,J27,0)+IF(P10,J28,0)+IF(P11,J29,0)+IF(P12,J30,0)+IF(P13,J31,0))*J31)) -> 84737 | V13: 93659.75082
A14: Jan 2020 | B14: 75616 | G14: I alt 2019 | H14: =SUM(H2:H13) -> 827603 | I14: I alt 2020 | J14: =SUM(J2:J13) -> 988786 | K14: I alt 2021 | L14: =SUM(L2:L13) -> 1100834 | M14: I alt 2022 | N14: =SUM(N2:N13) -> 1099540 | P14: =SUM(P2:P13) -> 1027415 | R14: I alt | S14: =O26/(P21*1.033) -> 1038540.204 | T14: =M26/P21 -> 1027482.82 | U14: =SUM(U2:U13) -> 1027415 | V14: =N26/(P21*1.033) -> 1057934.764
A15: Feb 2020 | B15: 75565
A16: Mar 2020 | B16: 95751
A17: Apr 2020 | B17: 81533
A18: Maj 2020 | B18: 73461 | I18: Fordeling 2016-2019 | L18: Sygedagpenge
A19: Jun 2020 | B19: 72170 | X19: Fordeling 2019-2022
A20: Jul 2020 | B20: 69896 | I20: Jan | J20: 0.08970198752 | L20: Regnskab 2022 (kr.) | M20: Aktivitet 2022 | N20: Mdl. fuldtidspers. | O20: Enhedspris 2022 (23-pl) | P20: Enhedspris (måned)
A21: Aug 2020 | B21: 73280 | I21: feb | J21: 0.09016998871 | L21: =SUMIF('Regnskab 2022'!A2:J100,Overblik!I23,'Regnskab 2022'!I2:I100)*1000 -> 9437619000 | M21: =SUMIF('Aktivitet 2022'!A2:J100,Overblik!I23,'Aktivitet 2022'!D2:D100) -> 91363 | N21: =N14 -> 1099540 | O21: =(((L21))/M21)*1.0195 -> 105312.3537 | P21: =O21/12 -> 8776.029474 | X21: Jan | Y21: =(H2+J2+L2+N2)/($H$14+$J$14+$L$14+$N$14) -> 0.09780835962
A22: Sep 2020 | B22: 81218 | I22: Mar | J22: 0.08785884488 | X22: feb | Y22: 0.09529588875
A23: Okt 2020 | B23: 87488 | I23: Apr | J23: 0.0838159725 | L23: Prognose for udgifter og aktivitet | X23: Mar | Y23: 0.08730288543
A24: Nov 2020 | B24: 96908 | I24: Maj | J24: 0.08228689963 | X24: Apr | Y24: 0.08136452163
A25: Dec 2020 | B25: 105900 | I25: Jun | J25: 0.0812866557 | M25: MV2023 | N25: ØA2024 (24-pl) | O25: Budget 2024 | P25: Prognose 2023 | X25: Maj | Y25: 0.07934722561
A26: Jan 2021 | B26: 103098 | I26: Jul | J26: 0.07521350227 | L26: Udgifter (kr.) | M26: =IF(Overblik!T27="Bloktilskud",SUMIF('Bloktilskudsdel - MV23'!A2:J100,Overblik!I23,'Bloktilskudsdel - MV23'!I2:I100),SUMIF('Midtvejsvurdering 2023'!A2:J100,Overblik!I23,'Midtvejsvurdering 2023'!I2:I100))*1000 -> 9017219516 | N26: =IF(Overblik!T27="Bloktilskud",SUMIF('Bloktilskudsdel - ØA24'!A2:J100,Overblik!I23,'Bloktilskudsdel - ØA24'!I2:I100),SUMIF('Overførselsskøn 2024'!A2:J100,Overblik!I23,'Overførselsskøn 2024'!I2:I100))*1000 -> 9590854067 | O26: =SUMIF('Budget 2024'!A2:J100,Overblik!I23,'Budget 2024'!I2:I100)*1000 -> 9415030000 | P26: =U14*P21 -> 9016624323 | X26: Jun | Y26: 0.07839521525
A27: Feb 2021 | B27: 96754 | I27: Aug | J27: 0.07469956992 | L27: Aktivitet* | M27: =T14 -> 1027482.82 | N27: =N26/(P21*1.033) -> 1057934.764 | O27: =O26/(P21*1.033) -> 1038540.204 | P27: =U14 -> 1027415 | X27: Jul | Y27: 0.07301600816
A28: Mar 2021 | B28: 95924 | I28: Sep | J28: 0.07782506066 | L28: * Aktiviteten er opgjort som de månedlige fuldtidspersoner i alt på et år. | X28: Aug | Y28: 0.07244465257
A29: Apr 2021 | B29: 94564 | I29: Okt | J29: 0.08216027862 | X29: Sep | Y29: 0.07595369704
A30: Maj 2021 | B30: 96110 | I30: Nov | J30: 0.08645049646 | X30: Okt | Y30: 0.08022479793
A31: Jun 2021 | B31: 94558 | I31: Dec | J31: 0.08853074315 | X31: Nov | Y31: 0.08581088802
A32: Jul 2021 | B32: 84460 | X32: Dec | Y32: 0.09303585997 | AI32: Jan 2016 | AJ32: 73741 | AK32: Jan 2017 | AL32: 71510 | AM32: Jan 2018 | AN32: 71451 | AO32: Jan 2019 | AP32: 72337
A33: Aug 2021 | B33: 79177 | AI33: Feb 2016 | AJ33: 73548 | AK33: Feb 2017 | AL33: 71305 | AM33: Feb 2018 | AN33: 72920 | AO33: Feb 2019 | AP33: 72774
A34: Sep 2021 | B34: 79580 | AI34: Mar 2016 | AJ34: 70989 | AK34: Mar 2017 | AL34: 69461 | AM34: Mar 2018 | AN34: 71103 | AO34: Mar 2019 | AP34: 71547
A35: Okt 2021 | B35: 82711 | AI35: Apr 2016 | AJ35: 68939 | AK35: Apr 2017 | AL35: 65815 | AM35: Apr 2018 | AN35: 66715 | AO35: Apr 2019 | AP35: 68604
A36: Nov 2021 | B36: 88913 | AI36: Maj 2016 | AJ36: 67235 | AK36: Maj 2017 | AL36: 65090 | AM36: Maj 2018 | AN36: 64503 | AO36: Maj 2019 | AP36: 68318
A37: Dec 2021 | B37: 104985 | AI37: Jun 2016 | AJ37: 66405 | AK37: Jun 2017 | AL37: 64418 | AM37: Jun 2018 | AN37: 63957 | AO37: Jun 2019 | AP37: 67143
A38: Jan 2022 | B38: 141822 | AI38: Jul 2016 | AJ38: 61350 | AK38: Jul 2017 | AL38: 59557 | AM38: Jul 2018 | AN38: 59082 | AO38: Jul 2019 | AP38: 62365
A39: Feb 2022 | B39: 137688 | AI39: Aug 2016 | AJ39: 60373 | AK39: Aug 2017 | AL39: 59141 | AM39: Aug 2018 | AN39: 58876 | AO39: Aug 2019 | AP39: 62308
A40: Mar 2022 | B40: 87453 | AI40: Sep 2016 | AJ40: 62397 | AK40: Sep 2017 | AL40: 61517 | AM40: Sep 2018 | AN40: 61447 | AO40: Sep 2019 | AP40: 65408
A41: Apr 2022 | B41: 82121 | AI41: Okt 2016 | AJ41: 65631 | AK41: Okt 2017 | AL41: 64559 | AM41: Okt 2018 | AN41: 65065 | AO41: Okt 2019 | AP41: 69483
A42: Maj 2022 | B42: 80830 | AI42: Nov 2016 | AJ42: 68556 | AK42: Nov 2017 | AL42: 68172 | AM42: Nov 2018 | AN42: 68850 | AO42: Nov 2019 | AP42: 72984
A43: Jun 2022 | B43: 81024 | AI43: Dec 2016 | AJ43: 70459 | AK43: Dec 2017 | AL43: 70019 | AM43: Dec 2018 | AN43: 70455 | AO43: Dec 2019 | AP43: 74332
A44: Jul 2022 | B44: 76567 | AJ44: 809623 | AL44: 790564 | AN44: 794424 | AP44: 827603
A45: Aug 2022 | B45: 76228
A46: Sep 2022 | B46: 78882
A47: Okt 2022 | B47: 82562 | AK47: Jan | AL47: =(AJ32+AL32+AN32+AP32)/($AJ$44+$AL$44+$AN$44+$AP$44) -> 0.08970198752
A48: Nov 2022 | B48: 85877 | AK48: feb | AL48: =(AJ33+AL33+AN33+AP33)/($AJ$44+$AL$44+$AN$44+$AP$44) -> 0.09016998871
A49: Dec 2022 | B49: 88486 | AK49: Mar | AL49: 0.08785884488
A50: Jan 2023 | B50: 89395 | C50: =T2 -> 92167.25112 | AK50: Apr | AL50: 0.0838159725
A51: Feb 2023 | B51: 89595 | C51: =T3 -> 92648.11431 | AK51: Maj | AL51: 0.08228689963
A52: Mar 2023 | B52: 90970 | C52: 90273.45373 | AK52: Jun | AL52: 0.0812866557
A53: Apr 2023 | B53: 88571 | C53: 86119.47181 | AK53: Jul | AL53: 0.07521350227
A54: Maj 2023 | B54: 86964 | C54: 84548.37571 | AK54: Aug | AL54: 0.07469956992
A55: Jun 2023 | B55: 85726 | C55: 83520.64225 | AK55: Sep | AL55: 0.07782506066
A56: Jul 2023 | B56: 79983 | C56: 77280.58144 | AK56: Okt | AL56: 0.08216027862
A57: Aug 2023 | B57: 79168 | C57: 76752.52478 | AK57: Nov | AL57: 0.08645049646
A58: Sep 2023 | B58: 80518 | C58: 79963.91282 | AK58: Dec | AL58: 0.08853074315
A59: Okt 2023 | B59: 84118 | C59: 84418.27479
A60: Nov 2023 | B60: 87670 | C60: 88826.39992
A61: Dec 2023 | B61: 84737 | C61: 90963.81766
A62: Jan 2024 | D62: =V2 -> 94898.85095 | E62: =S2 -> 93159.12039
A63: Feb 2024 | D63: =V3 -> 95393.96568 | E63: =S3 -> 93645.15845
A64: Mar 2024 | D64: 92948.92628 | E64: 91244.94266
A65: Apr 2024 | D65: 88671.83104 | E65: 87046.25715
A66: Maj 2024 | D66: 87054.1717 | E66: 85458.25351
A67: Jun 2024 | D67: 85995.97887 | E67: 84419.45997
A68: Jul 2024 | D68: 79570.97874 | E68: 78112.24597
A69: Aug 2024 | D69: 79027.27184 | E69: 77578.50657
A70: Sep 2024 | D70: 82333.83714 | E70: 80824.45435
A71: Okt 2024 | D71: 86920.21493 | E71: 85326.75249
A72: Nov 2024 | D72: 91458.98553 | E72: 89782.31621
A73: Dec 2024 | D73: 93659.75082 | E73: 91942.73603

Sheet Fleksjob
B1: Aktivitet | C1: MV2023 | D1: ØA2024 | E1: Budget 2024 | H1: 2019 | J1: 2020 | L1: 2021 | N1: 2022 | P1: 2023 | S1: Budget 2024 | T1: MV2023 | U1: Prognose 2023 | V1: ØA2024
A2: Jan 2019 | B2: 74942 | G2: Jan 2019 | H2: =B2 -> 74942 | I2: Jan 2020 | J2: =B14 -> 80102 | K2: Jan 2021 | L2: =B26 -> 82202 | M2: Jan 2022 | N2: =B38 -> 87950 | O2: Jan 2023 | P2: =B50 -> 92914 | R2: Jan 2023 | S2: =$S$14*J20 -> 95468.72105 | T2: =$T$14*J20 -> 92064.61591 | U2: =IF(P2,P2,(SUM(IF(P2,P2,0))/SUM(IF(P2,J20,0))*J20)) -> 92914 | V2: =$V$14*J20 -> 96967.38368
A3: Feb 2019 | B3: 75422 | G3: Feb 2019 | H3: =B3 -> 75422 | I3: Feb 2020 | J3: =B15 -> 80638 | K3: Feb 2021 | L3: =B27 -> 82551 | M3: Feb 2022 | N3: =B39 -> 88509 | O3: Feb 2023 | P3: =B51 -> 93332 | R3: Feb 2023 | S3: 96033.55524 | T3: 92609.30994 | U3: =IF(P3,P3,(SUM(IF(P2,P2,0)+IF(P3,P3,0))/SUM(IF(P2,J20,0)+IF(P3,J21,0))*J21)) -> 93332 | V3: 97541.0846
A4: Mar 2019 | B4: 76040 | G4: Mar 2019 | H4: 76040 | I4: Mar 2020 | J4: 80942 | K4: Mar 2021 | L4: 83092 | M4: Mar 2022 | N4: 89083 | O4: Mar 2023 | P4: 93641 | R4: Mar 2023 | S4: 96631.56316 | T4: 93185.99484 | U4: =IF(P4,P4,(SUM(IF(P2,P2,0)+IF(P3,P3,0)+IF(P4,P4,0))/SUM(IF(P2,J20,0)+IF(P3,J21,0)+IF(P4,J22,0))*J22)) -> 93641 | V4: 98148.48002
A5: Apr 2019 | B5: 76851 | G5: Apr 2019 | H5: 76851 | I5: Apr 2020 | J5: 80300 | K5: Apr 2021 | L5: 83803 | M5: Apr 2022 | N5: 89825 | O5: Apr 2023 | P5: 94042 | R5: Apr 2023 | S5: 97107.73835 | T5: 93645.19116 | U5: =IF(P5,P5,(SUM(IF(P2,P2,0)+IF(P3,P3,0)+IF(P4,P4,0)+IF(P5,P5,0))/SUM(IF(P2,J20,0)+IF(P3,J21,0)+IF(P4,J22,0)+IF(P5,J23,0))*J23)) -> 94042 | V5: 98632.13018
A6: Maj 2019 | B6: 77559 | G6: Maj 2019 | H6: 77559 | I6: Maj 2020 | J6: 80352 | K6: Maj 2021 | L6: 84564 | M6: Maj 2022 | N6: 90524 | O6: Maj 2023 | P6: 94497 | R6: Maj 2023 | S6: 97759.4701 | T6: 94273.68428 | U6: =IF(P6,P6,(SUM(IF(P2,P2,0)+IF(P3,P3,0)+IF(P4,P4,0)+IF(P5,P5,0)+IF(P6,P6,0))/SUM(IF(P2,J20,0)+IF(P3,J21,0)+IF(P4,J22,0)+IF(P5,J23,0)+IF(P6,J24,0))*J24)) -> 94497 | V6: 99294.09279
A7: Jun 2019 | B7: 78124 | G7: Jun 2019 | H7: 78124 | I7: Jun 2020 | J7: 80760 | K7: Jun 2021 | L7: 85389 | M7: Jun 2022 | N7: 91237 | O7: Jun 2023 | P7: 95005 | R7: Jun 2023 | S7: 98496.63157 | T7: 94984.56095 | U7: =IF(P7,P7,(SUM(IF(P2,P2,0)+IF(P3,P3,0)+IF(P4,P4,0)+IF(P5,P5,0)+IF(P6,P6,0)+IF(P7,P7,0))/SUM(IF(P2,J20,0)+IF(P3,J21,0)+IF(P4,J22,0)+IF(P5,J23,0)+IF(P6,J24,0)+IF(P7,J25,0))*J25)) -> 95005 | V7: 100042.8262
A8: Jul 2019 | B8: 78234 | G8: Jul 2019 | H8: 78234 | I8: Jul 2020 | J8: 80769 | K8: Jul 2021 | L8: 85660 | M8: Jul 2022 | N8: 91455 | O8: Jul 2023 | P8: 94710 | R8: Jul 2023 | S8: 98675.12387 | T8: 95156.6888 | U8: =IF(P8,P8,(SUM(IF(P2,P2,0)+IF(P3,P3,0)+IF(P4,P4,0)+IF(P5,P5,0)+IF(P6,P6,0)+IF(P7,P7,0)+IF(P8,P8,0))/SUM(IF(P2,J20,0)+IF(P3,J21,0)+IF(P4,J22,0)+IF(P5,J23,0)+IF(P6,J24,0)+IF(P7,J25,0)+IF(P8,J26,0))*J26)) -> 94710 | V8: 100224.1204
A9: Aug 2019 | B9: 78622 | G9: Aug 2019 | H9: 78622 | I9: Aug 2020 | J9: 80996 | K9: Aug 2021 | L9: 86139 | M9: Aug 2022 | N9: 91744 | O9: Aug 2023 | P9: 94960 | R9: Aug 2023 | S9: 99081.13514 | T9: 95548.22302 | U9: =IF(P9,P9,(SUM(IF(P2,P2,0)+IF(P3,P3,0)+IF(P4,P4,0)+IF(P5,P5,0)+IF(P6,P6,0)+IF(P7,P7,0)+IF(P8,P8,0)+IF(P9,P9,0))/SUM(IF(P2,J20,0)+IF(P3,J21,0)+IF(P4,J22,0)+IF(P5,J23,0)+IF(P6,J24,0)+IF(P7,J25,0)+IF(P8,J26,0)+IF(P9,J27,0))*J27)) -> 94960 | V9: 100636.5052
A10: Sep 2019 | B10: 79165 | G10: Sep 2019 | H10: 79165 | I10: Sep 2020 | J10: 81729 | K10: Sep 2021 | L10: 86738 | M10: Sep 2022 | N10: 92321 | O10: Sep 2023 | P10: 95447 | R10: Sep 2023 | S10: 99800.9758 | T10: 96242.3965 | U10: =IF(P10,P10,(SUM(IF(P2,P2,0)+IF(P3,P3,0)+IF(P4,P4,0)+IF(P5,P5,0)+IF(P6,P6,0)+IF(P7,P7,0)+IF(P8,P8,0)+IF(P9,P9,0)+IF(P10,P10,0))/SUM(IF(P2,J20,0)+IF(P3,J21,0)+IF(P4,J22,0)+IF(P5,J23,0)+IF(P6,J24,0)+IF(P7,J25,0)+IF(P8,J26,0)+IF(P9,J27,0)+IF(P10,J28,0))*J28)) -> 95447 | V10: 101367.6459
A11: Okt 2019 | B11: 79596 | G11: Okt 2019 | H11: 79596 | I11: Okt 2020 | J11: 82141 | K11: Okt 2021 | L11: 87308 | M11: Okt 2022 | N11: 92687 | O11: Okt 2023 | P11: 95778 | R11: Okt 2023 | S11: 100323.2419 | T11: 96746.04031 | U11: =IF(P11,P11,(SUM(IF(P2,P2,0)+IF(P3,P3,0)+IF(P4,P4,0)+IF(P5,P5,0)+IF(P6,P6,0)+IF(P7,P7,0)+IF(P8,P8,0)+IF(P9,P9,0)+IF(P10,P10,0)+IF(P11,P11,0))/SUM(IF(P2,J20,0)+IF(P3,J21,0)+IF(P4,J22,0)+IF(P5,J23,0)+IF(P6,J24,0)+IF(P7,J25,0)+IF(P8,J26,0)+IF(P9,J27,0)+IF(P10,J28,0)+IF(P11,J29,0))*J29)) -> 95778 | V11: 101898.1106
A12: Nov 2019 | B12: 79902 | G12: Nov 2019 | H12: 79902 | I12: Nov 2020 | J12: 82389 | K12: Nov 2021 | L12: 87790 | M12: Nov 2022 | N12: 93054 | O12: Nov 2023 | P12: 96046 | R12: Nov 2023 | S12: 100735.1247 | T12: 97143.23663 | U12: =IF(P12,P12,(SUM(IF(P2,P2,0)+IF(P3,P3,0)+IF(P4,P4,0)+IF(P5,P5,0)+IF(P6,P6,0)+IF(P7,P7,0)+IF(P8,P8,0)+IF(P9,P9,0)+IF(P10,P10,0)+IF(P11,P11,0)+IF(P12,P12,0))/SUM(IF(P2,J20,0)+IF(P3,J21,0)+IF(P4,J22,0)+IF(P5,J23,0)+IF(P6,J24,0)+IF(P7,J25,0)+IF(P8,J26,0)+IF(P9,J27,0)+IF(P10,J28,0)+IF(P11,J29,0)+IF(P12,J30,0))*J30)) -> 96046 | V12: 102316.459
A13: Dec 2019 | B13: 80149 | G13: Dec 2019 | H13: 80149 | I13: Dec 2020 | J13: 82580 | K13: Dec 2021 | L13: 88042 | M13: Dec 2022 | N13: 93202 | O13: Dec 2023 | P13: 96155 | R13: Dec 2023 | S13: 100981.1387 | T13: 97380.47863 | U13: =IF(P13,P13,(SUM(IF(P2,P2,0)+IF(P3,P3,0)+IF(P4,P4,0)+IF(P5,P5,0)+IF(P6,P6,0)+IF(P7,P7,0)+IF(P8,P8,0)+IF(P9,P9,0)+IF(P10,P10,0)+IF(P11,P11,0)+IF(P12,P12,0)+IF(P13,P13,0))/SUM(IF(P2,J20,0)+IF(P3,J21,0)+IF(P4,J22,0)+IF(P5,J23,0)+IF(P6,J24,0)+IF(P7,J25,0)+IF(P8,J26,0)+IF(P9,J27,0)+IF(P10,J28,0)+IF(P11,J29,0)+IF(P12,J30,0)+IF(P13,J31,0))*J31)) -> 96155 | V13: 102566.335
A14: Jan 2020 | B14: 80102 | G14: I alt 2019 | H14: =SUM(H2:H13) -> 934606 | I14: I alt 2020 | J14: =SUM(J2:J13) -> 973698 | K14: I alt 2021 | L14: =SUM(L2:L13) -> 1023278 | M14: I alt 2022 | N14: =SUM(N2:N13) -> 1091591 | P14: =SUM(P2:P13) -> 1136527 | S14: =O26/(P21*1.033) -> 1181094.42 | T14: =M26/P21 -> 1138980.421 | U14: =SUM(U2:U13) -> 1136527 | V14: =N26/(P21*1.033) -> 1199635.174
A15: Feb 2020 | B15: 80638
A16: Mar 2020 | B16: 80942
A17: Apr 2020 | B17: 80300
A18: Maj 2020 | B18: 80352 | I18: Fordeling 2019-2022 | L18: Fleksjob
A19: Jun 2020 | B19: 80760
A20: Jul 2020 | B20: 80769 | I20: Jan | J20: =(H2+J2+L2+N2)/($H$14+$J$14+$L$14+$N$14) -> 0.08083072739 | L20: Regnskab 2022 (kr.) | M20: Aktivitet 2022 | N20: Mdl. fuldtidspers. | O20: Enhedspris 2022 (23-pl) | P20: Enhedspris (måned)
A21: Aug 2020 | B21: 80996 | I21: feb | J21: 0.08130895689 | L21: =SUMIF('Regnskab 2022'!A2:J100,Overblik!I23,'Regnskab 2022'!J2:J100)*1000 -> 8980205000 | M21: =SUMIF('Aktivitet 2022'!A2:J100,Overblik!I23,'Aktivitet 2022'!H2:H100) -> 90923 | N21: =N14 -> 1091591 | O21: =(((L21)/M21)*1.0195) -> 100693.1029 | P21: =O21/12 -> 8391.091911
A22: Sep 2020 | B22: 81729 | I22: Mar | J22: 0.08181527367
A23: Okt 2020 | B23: 82141 | I23: Apr | J23: 0.08221843803 | L23: Prognose for udgifter og aktivitet
A24: Nov 2020 | B24: 82389 | I24: Maj | J24: 0.0827702413
A25: Dec 2020 | B25: 82580 | I25: Jun | J25: 0.08339437553 | M25: MV2023 | N25: ØA2024 (24-pl) | O25: Budget 2024 | P25: Prognose 2023
A26: Jan 2021 | B26: 82202 | I26: Jul | J26: 0.08354550003 | L26: Udgifter (kr.) | M26: =IF(Overblik!T27="Bloktilskud",SUMIF('Bloktilskudsdel - MV23'!A2:J100,Overblik!I23,'Bloktilskudsdel - MV23'!J2:J100),SUMIF('Midtvejsvurdering 2023'!A2:J100,Overblik!I23,'Midtvejsvurdering 2023'!J2:J100))*1000 -> 9557289397 | N26: =IF(Overblik!T27="Bloktilskud",SUMIF('Bloktilskudsdel - ØA24'!A2:J100,Overblik!I23,'Bloktilskudsdel - ØA24'!J2:J100),SUMIF('Overførselsskøn 2024'!A2:J100,Overblik!I23,'Overførselsskøn 2024'!J2:J100))*1000 -> 1.039843522e+10 | O26: =SUMIF('Budget 2024'!A2:J100,Overblik!I23,'Budget 2024'!J2:J100)*1000 -> 10237724000 | P26: =U14*P21 -> 9536702516
A27: Feb 2021 | B27: 82551 | I27: Aug | J27: 0.08388925855 | L27: Aktivitet* | M27: =T14 -> 1138980.421 | N27: =N26/(P21*1.033) -> 1199635.174 | O27: =O26/(P21*1.033) -> 1181094.42 | P27: =U14 -> 1136527
A28: Mar 2021 | B28: 83092 | I28: Sep | J28: 0.08449872775 | L28: * Aktiviteten er opgjort som de månedlige fuldtidspersoner i alt på et år.
A29: Apr 2021 | B29: 83803 | I29: Okt | J29: 0.08494091604
A30: Maj 2021 | B30: 84564 | I30: Nov | J30: 0.08528964576
A31: Jun 2021 | B31: 85389 | I31: Dec | J31: 0.08549793906
A32: Jul 2021 | B32: 85660
A33: Aug 2021 | B33: 86139
A34: Sep 2021 | B34: 86738
A35: Okt 2021 | B35: 87308
A36: Nov 2021 | B36: 87790
A37: Dec 2021 | B37: 88042
A38: Jan 2022 | B38: 87950
A39: Feb 2022 | B39: 88509
A40: Mar 2022 | B40: 89083
A41: Apr 2022 | B41: 89825
A42: Maj 2022 | B42: 90524
A43: Jun 2022 | B43: 91237
A44: Jul 2022 | B44: 91455
A45: Aug 2022 | B45: 91744
A46: Sep 2022 | B46: 92321
A47: Okt 2022 | B47: 92687
A48: Nov 2022 | B48: 93054
A49: Dec 2022 | B49: 93202
A50: Jan 2023 | B50: 92914 | C50: =T2 -> 92064.61591
A51: Feb 2023 | B51: 93332 | C51: =T3 -> 92609.30994
A52: Mar 2023 | B52: 93641 | C52: 93185.99484
A53: Apr 2023 | B53: 94042 | C53: 93645.19116
A54: Maj 2023 | B54: 94497 | C54: 94273.68428
A55: Jun 2023 | B55: 95005 | C55: 94984.56095
A56: Jul 2023 | B56: 94710 | C56: 95156.6888
A57: Aug 2023 | B57: 94960 | C57: 95548.22302
A58: Sep 2023 | B58: 95447 | C58: 96242.3965
A59: Okt 2023 | B59: 95778 | C59: 96746.04031
A60: Nov 2023 | B60: 96046 | C60: 97143.23663
A61: Dec 2023 | B61: 96155 | C61: 97380.47863
A62: Jan 2024 | D62: =V2 -> 96967.38368 | E62: =S2 -> 95468.72105
A63: Feb 2024 | D63: =V3 -> 97541.0846 | E63: =S3 -> 96033.55524
A64: Mar 2024 | D64: 98148.48002 | E64: 96631.56316
A65: Apr 2024 | D65: 98632.13018 | E65: 97107.73835
A66: Maj 2024 | D66: 99294.09279 | E66: 97759.4701
A67: Jun 2024 | D67: 100042.8262 | E67: 98496.63157
A68: Jul 2024 | D68: 100224.1204 | E68: 98675.12387
A69: Aug 2024 | D69: 100636.5052 | E69: 99081.13514
A70: Sep 2024 | D70: 101367.6459 | E70: 99800.9758
A71: Okt 2024 | D71: 101898.1106 | E71: 100323.2419
A72: Nov 2024 | D72: 102316.459 | E72: 100735.1247
A73: Dec 2024 | D73: 102566.335 | E73: 100981.1387

Sheet Seniorpension
B1: Aktivitet | C1: MV2023 | D1: ØA2024 | E1: Budget 2024 | H1: 2019 | J1: 2020 | L1: 2021 | N1: 2022 | P1: 2023 | S1: Budget 2024 | T1: MV2023 | U1: Prognose 2023 | V1: ØA2024
A2: Jan 2019 | G2: Jan 2019 | H2: =B2 -> 0 | I2: Jan 2020 | J2: =B14 -> 0 | K2: Jan 2021 | L2: =B26 -> 0 | M2: Jan 2022 | N2: =B38 -> 15592 | O2: Jan 2023 | P2: =B50 -> 23340 | R2: Jan 2023 | S2: =$S$14*J20 -> 24959.90457 | T2: =$T$14*J20 -> 21458.12675 | U2: =IF(P2,P2,(SUM(IF(P2,P2,0))/SUM(IF(P2,J20,0))*J20)) -> 23340 | V2: =$V$14*J20 -> 26598.21136
A3: Feb 2019 | G3: Feb 2019 | H3: =B3 -> 0 | I3: Feb 2020 | J3: =B15 -> 0 | K3: Feb 2021 | L3: =B27 -> 0 | M3: Feb 2022 | N3: =B39 -> 16480 | O3: Feb 2023 | P3: =B51 -> 23884 | R3: Feb 2023 | S3: 26381.42813 | T3: 22680.21606 | U3: =IF(P3,P3,(SUM(IF(P2,P2,0)+IF(P3,P3,0))/SUM(IF(P2,J20,0)+IF(P3,J21,0))*J21)) -> 23884 | V3: 28113.04023
A4: Mar 2019 | G4: Mar 2019 | H4: 0 | I4: Mar 2020 | J4: 0 | K4: Mar 2021 | L4: 0 | M4: Mar 2022 | N4: 17284 | O4: Mar 2023 | P4: 24266 | R4: Mar 2023 | S4: 27668.48324 | T4: 23786.70233 | U4: =IF(P4,P4,(SUM(IF(P2,P2,0)+IF(P3,P3,0)+IF(P4,P4,0))/SUM(IF(P2,J20,0)+IF(P3,J21,0)+IF(P4,J22,0))*J22)) -> 24266 | V4: 29484.57447
A5: Apr 2019 | G5: Apr 2019 | H5: 0 | I5: Apr 2020 | J5: 0 | K5: Apr 2021 | L5: 0 | M5: Apr 2022 | N5: 18149 | O5: Apr 2023 | P5: 24807 | R5: Apr 2023 | S5: 29053.18805 | T5: 24977.13843 | U5: =IF(P5,P5,(SUM(IF(P2,P2,0)+IF(P3,P3,0)+IF(P4,P4,0)+IF(P5,P5,0))/SUM(IF(P2,J20,0)+IF(P3,J21,0)+IF(P4,J22,0)+IF(P5,J23,0))*J23)) -> 24807 | V5: 30960.16791
A6: Maj 2019 | G6: Maj 2019 | H6: 0 | I6: Maj 2020 | J6: 0 | K6: Maj 2021 | L6: 0 | M6: Maj 2022 | N6: 18713 | O6: Maj 2023 | P6: 25164 | R6: Maj 2023 | S6: 29956.04761 | T6: 25753.33029 | U6: =IF(P6,P6,(SUM(IF(P2,P2,0)+IF(P3,P3,0)+IF(P4,P4,0)+IF(P5,P5,0)+IF(P6,P6,0))/SUM(IF(P2,J20,0)+IF(P3,J21,0)+IF(P4,J22,0)+IF(P5,J23,0)+IF(P6,J24,0))*J24)) -> 25164 | V6: 31922.28894
A7: Jun 2019 | G7: Jun 2019 | H7: 0 | I7: Jun 2020 | J7: 0 | K7: Jun 2021 | L7: 0 | M7: Jun 2022 | N7: 19373 | O7: Jun 2023 | P7: 25741 | R7: Jun 2023 | S7: 31012.58538 | T7: 26661.63991 | U7: =IF(P7,P7,(SUM(IF(P2,P2,0)+IF(P3,P3,0)+IF(P4,P4,0)+IF(P5,P5,0)+IF(P6,P6,0)+IF(P7,P7,0))/SUM(IF(P2,J20,0)+IF(P3,J21,0)+IF(P4,J22,0)+IF(P5,J23,0)+IF(P6,J24,0)+IF(P7,J25,0))*J25)) -> 25741 | V7: 33048.17526
A8: Jul 2019 | G8: Jul 2019 | H8: 0 | I8: Jul 2020 | J8: 0 | K8: Jul 2021 | L8: 0 | M8: Jul 2022 | N8: 19948 | O8: Jul 2023 | P8: 26229 | R8: Jul 2023 | S8: 31933.0539 | T8: 27452.97026 | U8: =IF(P8,P8,(SUM(IF(P2,P2,0)+IF(P3,P3,0)+IF(P4,P4,0)+IF(P5,P5,0)+IF(P6,P6,0)+IF(P7,P7,0)+IF(P8,P8,0))/SUM(IF(P2,J20,0)+IF(P3,J21,0)+IF(P4,J22,0)+IF(P5,J23,0)+IF(P6,J24,0)+IF(P7,J25,0)+IF(P8,J26,0))*J26)) -> 26229 | V8: 34029.06107
A9: Aug 2019 | G9: Aug 2019 | H9: 0 | I9: Aug 2020 | J9: 0 | K9: Aug 2021 | L9: 0 | M9: Aug 2022 | N9: 20230 | O9: Aug 2023 | P9: 26587 | R9: Aug 2023 | S9: 32384.48368 | T9: 27841.06619 | U9: =IF(P9,P9,(SUM(IF(P2,P2,0)+IF(P3,P3,0)+IF(P4,P4,0)+IF(P5,P5,0)+IF(P6,P6,0)+IF(P7,P7,0)+IF(P8,P8,0)+IF(P9,P9,0))/SUM(IF(P2,J20,0)+IF(P3,J21,0)+IF(P4,J22,0)+IF(P5,J23,0)+IF(P6,J24,0)+IF(P7,J25,0)+IF(P8,J26,0)+IF(P9,J27,0))*J27)) -> 26587 | V9: 34510.12159
A10: Sep 2019 | G10: Sep 2019 | H10: 0 | I10: Sep 2020 | J10: 0 | K10: Sep 2021 | L10: 0 | M10: Sep 2022 | N10: 20774 | O10: Sep 2023 | P10: 27142 | R10: Sep 2023 | S10: 33255.32694 | T10: 28589.73352 | U10: =IF(P10,P10,(SUM(IF(P2,P2,0)+IF(P3,P3,0)+IF(P4,P4,0)+IF(P5,P5,0)+IF(P6,P6,0)+IF(P7,P7,0)+IF(P8,P8,0)+IF(P9,P9,0)+IF(P10,P10,0))/SUM(IF(P2,J20,0)+IF(P3,J21,0)+IF(P4,J22,0)+IF(P5,J23,0)+IF(P6,J24,0)+IF(P7,J25,0)+IF(P8,J26,0)+IF(P9,J27,0)+IF(P10,J28,0))*J28)) -> 27142 | V10: 35438.12486
A11: Okt 2019 | G11: Okt 2019 | H11: 0 | I11: Okt 2020 | J11: 0 | K11: Okt 2021 | L11: 0 | M11: Okt 2022 | N11: 21401 | O11: Okt 2023 | P11: 27557 | R11: Okt 2023 | S11: 34259.03783 | T11: 29452.62766 | U11: =IF(P11,P11,(SUM(IF(P2,P2,0)+IF(P3,P3,0)+IF(P4,P4,0)+IF(P5,P5,0)+IF(P6,P6,0)+IF(P7,P7,0)+IF(P8,P8,0)+IF(P9,P9,0)+IF(P10,P10,0)+IF(P11,P11,0))/SUM(IF(P2,J20,0)+IF(P3,J21,0)+IF(P4,J22,0)+IF(P5,J23,0)+IF(P6,J24,0)+IF(P7,J25,0)+IF(P8,J26,0)+IF(P9,J27,0)+IF(P10,J28,0)+IF(P11,J29,0))*J29)) -> 27557 | V11: 36507.71686
A12: Nov 2019 | G12: Nov 2019 | H12: 0 | I12: Nov 2020 | J12: 0 | K12: Nov 2021 | L12: 0 | M12: Nov 2022 | N12: 22007 | O12: Nov 2023 | P12: 27729 | R12: Nov 2023 | S12: 35229.1316 | T12: 30286.62105 | U12: =IF(P12,P12,(SUM(IF(P2,P2,0)+IF(P3,P3,0)+IF(P4,P4,0)+IF(P5,P5,0)+IF(P6,P6,0)+IF(P7,P7,0)+IF(P8,P8,0)+IF(P9,P9,0)+IF(P10,P10,0)+IF(P11,P11,0)+IF(P12,P12,0))/SUM(IF(P2,J20,0)+IF(P3,J21,0)+IF(P4,J22,0)+IF(P5,J23,0)+IF(P6,J24,0)+IF(P7,J25,0)+IF(P8,J26,0)+IF(P9,J27,0)+IF(P10,J28,0)+IF(P11,J29,0)+IF(P12,J30,0))*J30)) -> 27729 | V12: 37541.48521
A13: Dec 2019 | G13: Dec 2019 | H13: 0 | I13: Dec 2020 | J13: 0 | K13: Dec 2021 | L13: 0 | M13: Dec 2022 | N13: 22603 | O13: Dec 2023 | P13: 27786 | R13: Dec 2023 | S13: 36183.21723 | T13: 31106.85216 | U13: =IF(P13,P13,(SUM(IF(P2,P2,0)+IF(P3,P3,0)+IF(P4,P4,0)+IF(P5,P5,0)+IF(P6,P6,0)+IF(P7,P7,0)+IF(P8,P8,0)+IF(P9,P9,0)+IF(P10,P10,0)+IF(P11,P11,0)+IF(P12,P12,0)+IF(P13,P13,0))/SUM(IF(P2,J20,0)+IF(P3,J21,0)+IF(P4,J22,0)+IF(P5,J23,0)+IF(P6,J24,0)+IF(P7,J25,0)+IF(P8,J26,0)+IF(P9,J27,0)+IF(P10,J28,0)+IF(P11,J29,0)+IF(P12,J30,0)+IF(P13,J31,0))*J31)) -> 27786 | V13: 38558.19468
A14: Jan 2020 | G14: I alt 2019 | H14: =SUM(H2:H13) -> 0 | I14: I alt 2020 | J14: =SUM(J2:J13) -> 0 | K14: I alt 2021 | L14: =SUM(L2:L13) -> 0 | M14: I alt 2022 | N14: =SUM(N2:N13) -> 232554 | S14: =O26/(P21*1.033) -> 372275.8882 | T14: =M26/P21 -> 320047.0246 | U14: =SUM(U2:U13) -> 310232 | V14: =N26/(P21*1.033) -> 396711.1625
A15: Feb 2020
A16: Mar 2020
A17: Apr 2020
A18: Maj 2020 | I18: Fordeling 2019-2022 | L18: Seniorpension
A19: Jun 2020
A20: Jul 2020 | I20: jan | J20: =(H2+J2+L2+N2)/($H$14+$J$14+$L$14+$N$14) -> 0.06704679343 | L20: Regnskab 2022 (kr.) | M20: Aktivitet 2022 | N20: Mdl. fuldtidspers. | O20: Enhedspris 2022 (23-pl) | P20: Enhedspris (måned)
A21: Aug 2020 | I21: feb | J21: 0.0708652614 | L21: =SUMIF('Regnskab 2022'!A2:J100,Overblik!I23,'Regnskab 2022'!K2:K100)*1000 -> 2949369000 | M21: =SUMIF('Aktivitet 2022'!A2:J100,Overblik!I23,'Aktivitet 2022'!K2:K100) -> 19406 | N21: =N14 -> 232554 | O21: =(((L21))/M21)*1.0195 -> 154945.9804 | P21: =O21/12 -> 12912.16503
A22: Sep 2020 | I22: mar | J22: 0.07432252294
A23: Okt 2020 | I23: apr | J23: 0.07804208915 | L23: Prognose for udgifter og aktivitet
A24: Nov 2020 | I24: maj | J24: 0.08046733232
A25: Dec 2020 | I25: jun | J25: 0.08330538284 | M25: MV2023 | N25: ØA2024 (24-pl) | O25: Budget 2024 | P25: Prognose 2023
A26: Jan 2021 | I26: jul | J26: 0.08577792685 | L26: Udgifter (kr.) | M26: =IF(Overblik!T27="Bloktilskud",SUMIF('Bloktilskudsdel - MV23'!A2:J100,Overblik!I23,'Bloktilskudsdel - MV23'!K2:K100),SUMIF('Midtvejsvurdering 2023'!A2:J100,Overblik!I23,'Midtvejsvurdering 2023'!K2:K100))*1000 -> 4132500000 | N26: =IF(Overblik!T27="Bloktilskud",SUMIF('Bloktilskudsdel - ØA24'!A2:J100,Overblik!I23,'Bloktilskudsdel - ØA24'!K2:K100),SUMIF('Overførselsskøn 2024'!A2:J100,Overblik!I23,'Overførselsskøn 2024'!K2:K100))*1000 -> 5291439200 | O26: =SUMIF('Budget 2024'!A2:J100,Overblik!I23,'Budget 2024'!K2:K100)*1000 -> 4965515000 | P26: =U14*P21 -> 4005766782
A27: Feb 2021 | I27: aug | J27: 0.08699054843 | L27: Aktivitet* | M27: =T14 -> 320047.0246 | N27: =N26/(P21*1.033) -> 396711.1625 | O27: =O26/(P21*1.033) -> 372275.8882 | P27: =U14 -> 310232
A28: Mar 2021 | I28: sep | J28: 0.08932979007 | L28: * Aktiviteten er opgjort som de månedlige fuldtidspersoner i alt på et år.
A29: Apr 2021 | I29: okt | J29: 0.09202593806
A30: Maj 2021 | I30: nov | J30: 0.09463178445
A31: Jun 2021 | I31: dec | J31: 0.09719463006
A32: Jul 2021
A33: Aug 2021
A34: Sep 2021
A35: Okt 2021
A36: Nov 2021
A37: Dec 2021
A38: Jan 2022 | B38: 15592
A39: Feb 2022 | B39: 16480
A40: Mar 2022 | B40: 17284
A41: Apr 2022 | B41: 18149
A42: Maj 2022 | B42: 18713
A43: Jun 2022 | B43: 19373
A44: Jul 2022 | B44: 19948
A45: Aug 2022 | B45: 20230
A46: Sep 2022 | B46: 20774
A47: Okt 2022 | B47: 21401
A48: Nov 2022 | B48: 22007
A49: Dec 2022 | B49: 22603
A50: Jan 2023 | B50: 23340 | C50: =T2 -> 21458.12675
A51: Feb 2023 | B51: 23884 | C51: =T3 -> 22680.21606
A52: Mar 2023 | B52: 24266 | C52: 23786.70233
A53: Apr 2023 | B53: 24807 | C53: 24977.13843
A54: Maj 2023 | B54: 25164 | C54: 25753.33029
A55: Jun 2023 | B55: 25741 | C55: 26661.63991
A56: Jul 2023 | B56: 26229 | C56: 27452.97026
A57: Aug 2023 | B57: 26587 | C57: 27841.06619
A58: Sep 2023 | B58: 27142 | C58: 28589.73352
A59: Okt 2023 | B59: 27557 | C59: 29452.62766
A60: Nov 2023 | B60: 27729 | C60: 30286.62105
A61: Dec 2023 | B61: 27786 | C61: 31106.85216
A62: Jan 2024 | D62: =V2 -> 26598.21136 | E62: =S2 -> 24959.90457
A63: Feb 2024 | D63: =V3 -> 28113.04023 | E63: =S3 -> 26381.42813
A64: Mar 2024 | D64: 29484.57447 | E64: 27668.48324
A65: Apr 2024 | D65: 30960.16791 | E65: 29053.18805
A66: Maj 2024 | D66: 31922.28894 | E66: 29956.04761
A67: Jun 2024 | D67: 33048.17526 | E67: 31012.58538
A68: Jul 2024 | D68: 34029.06107 | E68: 31933.0539
A69: Aug 2024 | D69: 34510.12159 | E69: 32384.48368
A70: Sep 2024 | D70: 35438.12486 | E70: 33255.32694
A71: Okt 2024 | D71: 36507.71686 | E71: 34259.03783
A72: Nov 2024 | D72: 37541.48521 | E72: 35229.1316
A73: Dec 2024 | D73: 38558.19468 | E73: 36183.21723

Sheet Budget 2024 (hidden)
A1: Kommune | B1: Kontant- og uddannelseshjælp | C1: Arbejdsløsheds-dagpenge | D1: Ledighedsydelse | E1: Førtidspension | F1: Ressourceforløb | G1: Jobafklaringsforløb | H1: Driftsudgifter til aktivering mv. | I1: Sygedagpenge | J1: Fleksjob | K1: Seniorpension
A2: Albertslund | B2: 72498 | C2: 74601 | D2: 19622 | E2: 334667 | F2: 19105 | G2: 19622 | H2: 62767 | I2: 78483 | J2: 75139 | K2: 33156
A3: Allerød | B3: 113190 | C3: 103352 | D3: 8163 | E3: 231290 | F3: 16131 | G3: 24485 | H3: 110095 | I3: 56751 | J3: 45751 | K3: 40222
A4: Assens | B4: 37096 | C4: 50640 | D4: 12567 | E4: 206734 | F4: 15188 | G4: 12613 | H4: 18406 | I4: 70332 | J4: 84114 | K4: 40926
A5: Ballerup | B5: 8355 | C5: 19024 | D5: 4141 | E5: 31453 | F5: 1311 | G5: 3443 | H5: 9044 | I5: 17870 | J5: 16756 | K5: 15799
A6: Billund | B6: 49022 | C6: 72986 | D6: 30633 | E6: 312887 | F6: 17627 | G6: 8101 | H6: 27533 | I6: 79312 | J6: 99500 | K6: 57961
A7: Bornholm | B7: 50179 | C7: 102129 | D7: 6674 | E7: 196209 | F7: 9222 | G7: 15858 | H7: 32088 | I7: 74306 | J7: 49685 | K7: 26937
A8: Brøndby | B8: 98545 | C8: 113456 | D8: 15948 | E8: 340323 | F8: 18970 | G8: 28118 | H8: 38773 | I8: 89376 | J8: 71985 | K8: 23475
A9: Brønderslev | B9: 52713 | C9: 49893 | D9: 22846 | E9: 294534 | F9: 10908 | G9: 20282 | H9: 33105 | I9: 81058 | J9: 112330 | K9: 63784
A10: Dragør | B10: 40318 | C10: 51862 | D10: 8386 | E10: 125589 | F10: 19293 | G10: 8079 | H10: 23339 | I10: 36520 | J10: 30632 | K10: 17786
A11: Egedal | B11: 40578 | C11: 39801 | D11: 6909 | E11: 150346 | F11: 15158 | G11: 16221 | H11: 10103 | I11: 47072 | J11: 35037 | K11: 18467
A12: Esbjerg | B12: 55761 | C12: 77356 | D12: 29007 | E12: 355829 | F12: 28827 | G12: 36656 | H12: 49423 | I12: 99707 | J12: 120668 | K12: 54191
A13: Fanø | B13: 30841 | C13: 35308 | D13: 16891 | E13: 158181 | F13: 10331 | G13: 13792 | H13: 12499 | I13: 40560 | J13: 58712 | K13: 33179
A14: Favrskov | B14: 156401 | C14: 187088 | D14: 50733 | E14: 646053 | F14: 23342 | G14: 88618 | H14: 157944 | I14: 179415 | J14: 236804 | K14: 79080
A15: Faxe | B15: 77981 | C15: 127373 | D15: 23615 | E15: 428525 | F15: 42312 | G15: 11938 | H15: 77040 | I15: 129805 | J15: 109260 | K15: 67050
A16: Fredensborg | B16: 50255 | C16: 53529 | D16: 17112 | E16: 215993 | F16: 12318 | G16: 8984 | H16: 31533 | I16: 53439 | J16: 49728 | K16: 26178
A17: Fredericia | B17: 46535 | C17: 46692 | D17: 18079 | E17: 259138 | F17: 13621 | G17: 24425 | H17: -1197 | I17: 61286 | J17: 66009 | K17: 30567
A18: Frederiksberg | B18: 110919 | C18: 246375 | D18: 20214 | E18: 409448 | F18: 29609 | G18: 27614 | H18: 122275 | I18: 116934 | J18: 65429 | K18: 47992
A19: Frederikshavn | B19: 128148 | C19: 137631 | D19: 25958 | E19: 725610 | F19: 25885 | G19: 51755 | H19: 91150 | I19: 150993 | J19: 245478 | K19: 84224
A20: Frederikssund | B20: 80317 | C20: 106575 | D20: 9611 | E20: 329030 | F20: 26412 | G20: 33942 | H20: 74390 | I20: 80155 | J20: 82230 | K20: 50261
A21: Furesø | B21: 55912 | C21: 82790 | D21: 10216 | E21: 168007 | F21: 13698 | G21: 12876 | H21: 28101 | I21: 59587 | J21: 43219 | K21: 26587
A22: Faaborg-Midtfyn | B22: 405351 | C22: 490126 | D22: 102338 | E22: 1616505 | F22: 75106 | G22: 133676 | H22: 164450 | I22: 358601 | J22: 371541 | K22: 193376
A23: Gentofte | B23: 79469 | C23: 98973 | D23: 13200 | E23: 191207 | F23: 34810 | G23: 14545 | H23: 52229 | I23: 66886 | J23: 53310 | K23: 41026
A24: Gladsaxe | B24: 39007 | C24: 75119 | D24: 8616 | E24: 175186 | F24: 9309 | G24: 26876 | H24: 29802 | I24: 49862 | J24: 39196 | K24: 15282
A25: Glostrup | B25: 44300 | C25: 70506 | D25: 17205 | E25: 192437 | F25: 28890 | G25: 12222 | H25: 44671 | I25: 69485 | J25: 59297 | K25: 51597
A26: Greve | B26: 11120 | C26: 27538 | D26: 3291 | E26: 94221 | F26: 5536 | G26: 9603 | H26: 12013 | I26: 34042 | J26: 27714 | K26: 11341
A27: Gribskov | B27: 11062 | C27: 27389 | D27: 3262 | E27: 39671 | F27: 3487 | G27: 3424 | H27: 8160 | I27: 22867 | J27: 13758 | K27: 5113
A28: Guldborgsund | B28: 28524 | C28: 44113 | D28: 17570 | E28: 214524 | F28: 21125 | G28: 16706 | H28: 23197 | I28: 66290 | J28: 53032 | K28: 36556
A29: Haderslev | B29: 125492 | C29: 115419 | D29: 31424 | E29: 410623 | F29: 26037 | G29: 41527 | H29: 32147 | I29: 102466 | J29: 97559 | K29: 67815
A30: Halsnæs | B30: 92052 | C30: 112180 | D30: 26312 | E30: 288858 | F30: 19681 | G30: 35751 | H30: 59576 | I30: 87979 | J30: 72841 | K30: 39520
A31: Hedensted | B31: 124257 | C31: 115028 | D31: 44520 | E31: 554191 | F31: 17113 | G31: 82044 | H31: 119049 | I31: 142895 | J31: 222880 | K31: 85049
A32: Helsingør | B32: 23883 | C32: 53010 | D32: 10515 | E32: 143340 | F32: 4720 | G32: 15535 | H32: 27481 | I32: 47040 | J32: 42792 | K32: 21720
A33: Herlev | B33: 8392 | C33: 21745 | D33: 6545 | E33: 55821 | F33: 4845 | G33: 4332 | H33: 9006 | I33: 30206 | J33: 29293 | K33: 9844
A34: Herning | B34: 68480 | C34: 53254 | D34: 41186 | E34: 316601 | F34: 28732 | G34: 32668 | H34: 45361 | I34: 86654 | J34: 132130 | K34: 66200
A35: Hillerød | B35: 35606 | C35: 50754 | D35: 10347 | E35: 197430 | F35: 17327 | G35: 16249 | H35: 25202 | I35: 53432 | J35: 34329 | K35: 26144
A36: Hjørring | B36: 42223 | C36: 70966 | D36: 15552 | E36: 240512 | F36: 20854 | G36: 22398 | H36: 35120 | I36: 76636 | J36: 75577 | K36: 34882
A37: Holbæk | B37: 41889 | C37: 45204 | D37: 17624 | E37: 274881 | F37: 16647 | G37: 14586 | H37: 30606 | I37: 70172 | J37: 80470 | K37: 45010
A38: Holstebro | B38: 15320 | C38: 25286 | D38: 8669 | E38: 138881 | F38: 6020 | G38: 7972 | H38: 27876 | I38: 28332 | J38: 56851 | K38: 20825
A39: Horsens | B39: 28730 | C39: 31079 | D39: 4004 | E39: 140565 | F39: 10051 | G39: 9032 | H39: 15593 | I39: 36672 | J39: 49487 | K39: 25610
A40: Hvidovre | B40: 83225 | C40: 93949 | D40: 14228 | E40: 391098 | F40: 27073 | G40: 28266 | H40: 37330 | I40: 83009 | J40: 66397 | K40: 67954
A41: Høje-Taastrup | B41: 49435 | C41: 73481 | D41: 19099 | E41: 249638 | F41: 9957 | G41: 19930 | H41: 31246 | I41: 75904 | J41: 75627 | K41: 40306
A42: Hørsholm | B42: 10532 | C42: 24959 | D42: 6575 | E42: 61700 | F42: 8029 | G42: -66 | H42: 12195 | I42: 20545 | J42: 24478 | K42: 8786
A43: Ikast-Brande | B43: 41758 | C43: 72920 | D43: 23636 | E43: 236909 | F43: 8343 | G43: 33703 | H43: 24361 | I43: 91529 | J43: 90979 | K43: 48259
A44: Ishøj | B44: 28088 | C44: 63525 | D44: 10676 | E44: 158623 | F44: 6475 | G44: 11157 | H44: 24896 | I44: 54972 | J44: 42925 | K44: 19101
A45: Jammerbugt | B45: 73926 | C45: 145459 | D45: 36000 | E45: 497731 | F45: 23310 | G45: 24668 | H45: 61128 | I45: 130624 | J45: 125936 | K45: 63153
A46: Kalundborg | B46: 95095 | C46: 95222 | D46: 33090 | E46: 475896 | F46: 32717 | G46: 32937 | H46: 65172 | I46: 137030 | J46: 133313 | K46: 62091
A47: Kerteminde | B47: 44610 | C47: 58783 | D47: 13310 | E47: 199875 | F47: 13697 | G47: 25012 | H47: 12473 | I47: 51432 | J47: 60976 | K47: 42094
A48: Kolding | B48: 22667 | C48: 15366 | D48: 11546 | E48: 104777 | F48: 5587 | G48: 1915 | H48: 6782 | I48: 28909 | J48: 43929 | K48: 23325
A49: København | B49: 1135655 | C49: 1781153 | D49: 130122 | E49: 2520356 | F49: 426457 | G49: 148537 | H49: 589243 | I49: 908631 | J49: 480166 | K49: 285638
A50: Køge | B50: -26055 | C50: 0 | D50: -14636 | E50: 89913 | F50: -8128 | G50: 0 | H50: 19277 | I50: -41056 | J50: -33234 | K50: 56561
A51: Langeland | B51: 5493 | C51: 4778 | D51: 1735 | E51: 37398 | F51: 1471 | G51: 1088 | H51: 2604 | I51: 11874 | J51: 13450 | K51: 8199
A52: Lejre | B52: 100204 | C52: 76214 | D52: 23827 | E52: 444569 | F52: 27109 | G52: 23555 | H52: 61757 | I52: 100061 | J52: 102879 | K52: 61588
A53: Lemvig | B53: 58446 | C53: 70307 | D53: 28443 | E53: 300772 | F53: 7910 | G53: 20805 | H53: 22569 | I53: 80955 | J53: 93690 | K53: 53254
A54: Lolland | B54: 60089 | C54: 66237 | D54: 15869 | E54: 219108 | F54: 14483 | G54: 20273 | H54: 31503 | I54: 68691 | J54: 53950 | K54: 33305
A55: Lyngby-Taarbæk | B55: 25934 | C55: 59527 | D55: 11888 | E55: 125262 | F55: 2029 | G55: 21062 | H55: 24499 | I55: 55430 | J55: 46929 | K55: 22135
A56: Læsø | B56: 49128 | C56: 55279 | D56: 14800 | E56: 266281 | F56: 12414 | G56: 30346 | H56: 35269 | I56: 64183 | J56: 77479 | K56: 48549
A57: Mariagerfjord | B57: 1443 | C57: 4655 | D57: 430 | E57: 9701 | F57: 518 | G57: 352 | H57: 307 | I57: 2278 | J57: 3148 | K57: 2571
A58: Middelfart | B58: 88732 | C58: 63664 | D58: 24828 | E58: 382722 | F58: 19735 | G58: 39423 | H58: 26116 | I58: 95704 | J58: 150795 | K58: 62053
A59: Morsø | B59: 27128 | C59: 48513 | D59: 10421 | E59: 135457 | F59: 7286 | G59: 16773 | H59: 20224 | I59: 54876 | J59: 52030 | K59: 25229
A60: Norddjurs | B60: 38592 | C60: 65938 | D60: 12903 | E60: 206952 | F60: 14605 | G60: 30401 | H60: 50849 | I60: 78992 | J60: 110549 | K60: 27679
A61: Nordfyns | B61: 22868 | C61: 28050 | D61: 10298 | E61: 199678 | F61: 11516 | G61: 19400 | H61: 22567 | I61: 46259 | J61: 69686 | K61: 30915
A62: Nyborg | B62: 100157 | C62: 107214 | D62: 36558 | E62: 565050 | F62: 28960 | G62: 17796 | H62: 54314 | I62: 140669 | J62: 180146 | K62: 84959
A63: Næstved | B63: 193464 | C63: 161612 | D63: 31261 | E63: 597273 | F63: 29306 | G63: 36347 | H63: 100159 | I63: 138766 | J63: 146027 | K63: 78774
A64: Odder | B64: 23835 | C64: 30000 | D64: 12500 | E64: 110015 | F64: 8450 | G64: 16550 | H64: 14600 | I64: 41600 | J64: 58600 | K64: 22500
A65: Odense | B65: 51841 | C65: 47554 | D65: 15953 | E65: 264787 | F65: 27271 | G65: 26923 | H65: 57590 | I65: 66310 | J65: 87227 | K65: 30839
A66: Odsherred | B66: 27388 | C66: 40440 | D66: 9788 | E66: 142960 | F66: 9886 | G66: 13171 | H66: 16517 | I66: 38084 | J66: 50261 | K66: 41199
A67: Randers | B67: 230179 | C67: 196844 | D67: 47402 | E67: 715180 | F67: 67229 | G67: 78426 | H67: 83651 | I67: 190000 | J67: 238110 | K67: 86320
A68: Rebild | B68: 91203 | C68: 69134 | D68: 9886 | E68: 257139 | F68: 26850 | G68: 16505 | H68: 33377 | I68: 76272 | J68: 87825 | K68: 46569
A69: Ringkøbing-Skjern | B69: 88389 | C69: 137980 | D69: 48600 | E69: 596112 | F69: 24063 | G69: 46087 | H69: 60986 | I69: 153345 | J69: 245152 | K69: 85525
A70: Ringsted | B70: 39347 | C70: 50413 | D70: 11259 | E70: 186913 | F70: 17481 | G70: 13584 | H70: 20431 | I70: 50478 | J70: 64892 | K70: 41003
A71: Roskilde | B71: 13021 | C71: 39570 | D71: 7905 | E71: 128717 | F71: 9909 | G71: 12107 | H71: 10026 | I71: 40710 | J71: 43410 | K71: 22852
A72: Rudersdal | B72: 56797 | C72: 48276 | D72: 21315 | E72: 240830 | F72: 15255 | G72: 30746 | H72: 20269 | I72: 76544 | J72: 48839 | K72: 47937
A73: Rødovre | B73: 35321 | C73: 82996 | D73: 15510 | E73: 244546 | F73: 19235 | G73: 16515 | H73: 39193 | I73: 86736 | J73: 77021 | K73: 37750
A74: Samsø | B74: 1986 | C74: 6627 | D74: 1012 | E74: 25947 | F74: 3800 | G74: 0 | H74: 927 | I74: 6018 | J74: 12480 | K74: 4608
A75: Silkeborg | B75: 28607 | C75: 86495 | D75: 32171 | E75: 276768 | F75: 21968 | G75: 29770 | H75: 48507 | I75: 108390 | J75: 127858 | K75: 43115
A76: Skanderborg | B76: 580036 | C76: 924786 | D76: 138400 | E76: 2243426 | F76: 95434 | G76: 181706 | H76: 233948 | I76: 506258 | J76: 633963 | K76: 146094
A77: Skive | B77: 53958 | C77: 55826 | D77: 15847 | E77: 220979 | F77: 15122 | G77: 36885 | H77: 23027 | I77: 75931 | J77: 102173 | K77: 50812
A78: Slagelse | B78: 102231 | C78: 58953 | D78: 24282 | E78: 480715 | F78: 26906 | G78: 23490 | H78: 29520 | I78: 82632 | J78: 90088 | K78: 74722
A79: Solrød | B79: 159537 | C79: 153002 | D79: 35410 | E79: 527795 | F79: 22072 | G79: 34794 | H79: 64189 | I79: 151648 | J79: 155265 | K79: 100880
A80: Sorø | B80: 115066 | C80: 68506 | D80: 32002 | E80: 490195 | F80: 15126 | G80: 33719 | H80: 63360 | I80: 136653 | J80: 120275 | K80: 87519
A81: Stevns | B81: 96218 | C81: 64086 | D81: 19425 | E81: 374886 | F81: 15829 | G81: 15131 | H81: 66639 | I81: 83772 | J81: 68199 | K81: 45466
A82: Struer | B82: 48241 | C82: 61696 | D82: 24330 | E82: 366192 | F82: 27971 | G82: 41768 | H82: 44763 | I82: 83056 | J82: 139986 | K82: 48627
A83: Svendborg | B83: 200278 | C83: 181896 | D83: 50730 | E83: 796241 | F83: 41008 | G83: 39331 | H83: 108698 | I83: 211804 | J83: 253160 | K83: 97796
A84: Syddjurs | B84: 38942 | C84: 53550 | D84: 26811 | E84: 195514 | F84: 7885 | G84: 26233 | H84: 46283 | I84: 86201 | J84: 132242 | K84: 51618
A85: Sønderborg | B85: 1586 | C85: 5645 | D85: 1321 | E85: 12266 | F85: 370 | G85: 431 | H85: 1287 | I85: 5802 | J85: 4673 | K85: 3503
A86: Thisted | B86: 49349 | C86: 62141 | D86: 16575 | E86: 239988 | F86: 11200 | G86: 28800 | H86: 20190 | I86: 73320 | J86: 83251 | K86: 37696
A87: Tønder | B87: 59879 | C87: 56120 | D87: 19998 | E87: 327881 | F87: 12659 | G87: 27977 | H87: 36139 | I87: 90293 | J87: 112807 | K87: 49936
A88: Tårnby | B88: 69090 | C88: 107662 | D88: 17330 | E88: 380675 | F88: 41240 | G88: 28023 | H88: 94646 | I88: 124646 | J88: 105487 | K88: 50471
A89: Vallensbæk | B89: 32036 | C89: 42424 | D89: 17095 | E89: 207954 | F89: 20193 | G89: 13342 | H89: 14254 | I89: 61331 | J89: 58132 | K89: 39592
A90: Varde | B90: 50738 | C90: 41670 | D90: 14081 | E90: 257387 | F90: 16288 | G90: 22266 | H90: 42182 | I90: 75010 | J90: 91945 | K90: 43390
A91: Vejen | B91: 50878 | C91: 76925 | D91: 17571 | E91: 453277 | F91: 26483 | G91: 29421 | H91: 29650 | I91: 78254 | J91: 151660 | K91: 67616
A92: Vejle | B92: 123543 | C92: 97148 | D92: 21333 | E92: 375710 | F92: 28271 | G92: 30630 | H92: 40450 | I92: 96931 | J92: 87137 | K92: 65396
A93: Vesthimmerlands | B93: 505000 | C93: 560000 | D93: 88000 | E93: 1208500 | F93: 72000 | G93: 72500 | H93: 235000 | I93: 325000 | J93: 366000 | K93: 139000
A94: Viborg | B94: 27416 | C94: 23512 | D94: 12469 | E94: 155590 | F94: 12051 | G94: 11241 | H94: 18059 | I94: 33187 | J94: 72406 | K94: 23282
A95: Vordingborg | B95: 29569 | C95: 43584 | D95: 10167 | E95: 401730 | F95: 9916 | G95: 26269 | H95: 43202 | I95: 64664 | J95: 118265 | K95: 61000
A96: Ærø | B96: 113906 | C96: 164142 | D96: 60435 | E96: 678869 | F96: 35992 | G96: 57761 | H96: 89765 | I96: 172561 | J96: 247277 | K96: 60481
A97: Aabenraa | B97: 134294 | C97: 182736 | D97: 39435 | E97: 546795 | F97: 36868 | G97: 42869 | H97: 67077 | I97: 151823 | J97: 164607 | K97: 83763
A98: Aalborg | B98: 51958 | C98: 117790 | D98: 30764 | E98: 493032 | F98: 42997 | G98: 31287 | H98: 56580 | I98: 116016 | J98: 192939 | K98: 83769
A99: Aarhus | B99: 64728 | C99: 54165 | D99: 26454 | E99: 373075 | F99: 11186 | G99: 33015 | H99: 44104 | I99: 80005 | J99: 121339 | K99: 51659
A100: Hele landet | B100: 8357726 | C100: 10637249 | D100: 2239978 | E100: 34680625 | F100: 2346881 | G100: 2759521 | H100: =SUM(H2:H99) -> 5025876 | I100: 9415030 | J100: 10237724 | K100: 4965515

Sheet Bloktilskudsdel - MV23 (hidden)
A1: Kommune | B1: Kontanthjælp- og Uddannelseshjælp | C1: Arbejdsløsheds-dagpenge | D1: Ledighedsydelse | E1: Førtidspension | F1: Ressourceforløb | G1: Jobafklaringsforløb | H1: Driftsudgifter til aktivering | I1: Sygedagpenge | J1: Fleksjob | K1: Seniorpension | L1: Bloktilskudsnøgle
A2: København | B2: =$L2*B$100 -> 939188.3537 | C2: 1102951.297 | D2: 246917.701 | E2: 3427640.751 | F2: 235010.3845 | G2: 277033.2536 | H2: 405128.1081 | I2: 954403.6348 | J2: 1011565.896 | K2: 437393.4797 | L2: 0.1058423423
A3: Frederiksberg | B3: =$L3*B$100 -> 140058.6564 | C3: 164480.1877 | D3: 36822.17876 | E3: 511154.9311 | F3: 35046.47237 | G3: 41313.23087 | H3: 60415.67516 | I3: 142327.6707 | J3: 150852.1264 | K3: =$L3*K$100 -> 65227.32404 | L3: 0.01578398646
A4: Ballerup | B4: 82072.03177 | C4: 96382.64093 | D4: 21577.18132 | E4: 299528.2464 | F4: 20536.64706 | G4: 24208.8628 | H4: 35402.57588 | I4: 83401.63624 | J4: 88396.8248 | K4: 38222.12171 | L4: 0.009249152258
A5: Brøndby | B5: 66400.51569 | C5: 77978.53816 | D5: 17457.05493 | E5: 242333.8328 | F5: 16615.20893 | G5: 19586.22127 | H5: 28642.51371 | I5: 67476.23443 | J5: 71517.60016 | K5: 30923.67201 | L5: 0.00748304223
A6: Dragør | B6: 20404.34336 | C6: 23962.17636 | D6: 5364.412296 | E6: 74467.23387 | F6: 5105.719804 | G6: 6018.687952 | H6: 8801.613637 | I6: 20734.90306 | J6: 21976.78218 | K6: 9502.5952 | L6: 0.002299478572
A7: Gentofte | B7: 101678.8367 | C7: 119408.2149 | D7: 26731.91644 | E7: 371084.8017 | F7: 25442.80112 | G7: 29992.30009 | H7: 43860.16348 | I7: 103326.0803 | J7: 109514.6071 | K7: 47353.29181 | L7: 0.0114587518
A8: Gladsaxe | B8: 108064.2996 | C8: 126907.0883 | D8: 28410.68919 | E8: 394389.044 | F8: 27040.61703 | G8: 31875.82597 | H8: 46614.59553 | I8: 109814.9907 | J8: 116392.1588 | K8: 50327.09342 | L8: 0.01217836501
A9: Glostrup | B9: 37839.3925 | C9: 44437.3132 | D9: 9948.181073 | E9: 138097.7982 | F9: 9468.441708 | G9: 11161.52045 | H9: 16322.39309 | I9: 38452.40798 | J9: 40755.44467 | K9: 17622.34752 | L9: 0.004264330918
A10: Herlev | B10: 47695.38652 | C10: 56011.86194 | D10: 12539.37524 | E10: 174068.0129 | F10: 11934.67858 | G10: 14068.75209 | H10: 20573.87278 | I10: 48468.07361 | J10: 51370.98029 | K10: 22212.42522 | L10: 0.005375057524
A11: Albertslund | B11: 49287.72658 | C11: 57881.8527 | D11: 12958.01006 | E11: 179879.3815 | F11: 12333.12522 | G11: 14538.4461 | H11: 21260.74428 | I11: 50086.21031 | J11: 53086.03232 | K11: 22954.00081 | L11: 0.005554507154
A12: Hvidovre | B12: 85765.5319 | C12: 100720.1636 | D12: 22548.22249 | E12: 313007.9616 | F12: 21460.86091 | G12: 25298.33793 | H12: 36995.80339 | I12: 87154.97277 | J12: 92374.96055 | K12: 39942.23766 | L12: 0.009665393264
A13: Høje-Taastrup | B13: =$L13*B$100 -> 86669.70064 | C13: 101781.989 | D13: 22785.93335 | E13: 316307.7956 | F13: 21687.10844 | G13: 25565.04142 | H13: 37385.82544 | I13: 88073.78945 | J13: 93348.80809 | K13: 40363.322 | L13: 0.009767289051
A14: Lyngby-Taarbæk | B14: 80619.26721 | C14: 94676.56297 | D14: 21195.24166 | E14: 294226.2694 | F14: 20173.12599 | G14: 23780.3395 | H14: 34775.91164 | I14: 81925.33624 | J14: 86832.10451 | K14: 37545.54843 | L14: 0.009085432166
A15: Rødovre | B15: 68213.59837 | C15: 80107.76164 | D15: 17933.72418 | E15: 248950.8187 | F15: 17068.89136 | G15: 20121.02793 | H15: 29424.60471 | I15: 69318.68988 | J15: 73470.40611 | K15: 31768.05061 | L15: 0.007687368568
A16: Ishøj | B16: 41912.13654 | C16: 49220.20717 | D16: 11018.92752 | E16: 152961.5935 | F16: 10487.55267 | G16: 12362.86151 | H16: 18079.21118 | I16: 42591.13233 | J16: 45142.05035 | K16: 19519.0828 | L16: 0.004723311023
A17: Tårnby | B17: 66920.03071 | C17: 78588.63918 | D17: 17593.63824 | E17: 244229.8431 | F17: 16745.20567 | G17: 19739.46309 | H17: 28866.61161 | I17: 68004.16583 | J17: 72077.15105 | K17: 31165.61761 | L17: 0.007541589257
A18: Vallensbæk | B18: 24000.37776 | C18: 28185.23852 | D18: 6309.8292 | E18: 87591.24036 | F18: 6005.545087 | G18: 7079.41353 | H18: 10352.79835 | I18: 24389.19486 | J18: 25849.94111 | K18: 11177.31997 | L18: 0.002704735625
A19: Furesø | B19: 60034.65398 | C19: 70502.68372 | D19: 15783.43543 | E19: 219101.1267 | F19: 15022.29777 | G19: 17708.47717 | H19: 25896.53682 | I19: 61007.24285 | J19: 64661.16015 | K19: 27958.99896 | L19: 0.006765637982
A20: Allerød | B20: 34620.03575 | C20: 40656.60863 | D20: 9101.79476 | E20: 126348.506 | F20: 8662.871383 | G20: 10211.90383 | H20: 14933.69198 | I20: 35180.89617 | J20: 37287.99165 | K20: 16123.04693 | L20: 0.003901523758
A21: Fredensborg | B21: 61920.52177 | C21: 72717.38359 | D21: 16279.24028 | E21: 225983.7475 | F21: 15494.19301 | G21: 18264.75333 | H21: 26710.02439 | I21: 62923.66256 | J21: 66692.36032 | K21: 28837.27462 | L21: 0.006978166878
A22: Helsingør | B22: 96870.60792 | C22: 113761.5923 | D22: 25467.80708 | E22: 353536.798 | F22: 24239.65195 | G22: 28574.01243 | H22: 41786.08685 | I22: 98439.9561 | J22: 104335.8373 | K22: 45114.03076 | L22: 0.01091688585
A23: Hillerød | B23: =$L23*B$100 -> 75512.52193 | C23: 88679.37262 | D23: 19852.65068 | E23: 275588.8064 | F23: 18895.27989 | G23: 22273.99814 | H23: 32573.06697 | I23: 76735.85934 | J23: 81331.81337 | K23: 35167.26394 | L23: 0.008509924728
A24: Hørsholm | B24: 34697.16775 | C24: 40747.18986 | D24: 9122.073181 | E24: 126630.0052 | F24: 8682.1719 | G24: 10234.65553 | H24: 14966.96363 | I24: 35259.27775 | J24: 37371.06774 | K24: 16158.96841 | L24: 0.003910216191
A25: Rudersdal | B25: 79775.43061 | C25: 93685.58958 | D25: 20973.39245 | E25: 291146.6223 | F25: 19961.97519 | G25: 23531.43224 | H25: 34411.91445 | I25: 81067.8291 | J25: 85923.23854 | K25: 37152.56163 | L25: 0.008990335542
A26: Egedal | B26: 60084.89567 | C26: 70561.68588 | D26: 15796.64425 | E26: 219284.4876 | F26: 15034.86961 | G26: 17723.29701 | H26: 25918.20907 | I26: 61058.29848 | J26: 64715.27366 | K26: 27982.39724 | L26: 0.006771299997
A27: Frederikssund | B27: 67602.98766 | C27: 79390.68091 | D27: 17773.19132 | E27: 246722.3475 | F27: 16916.10001 | G27: 19940.91553 | H27: 29161.21179 | I27: 68698.187 | J27: 72812.73934 | K27: 31483.68045 | L27: 0.007618555462
A28: Greve | B28: 75519.92302 | C28: 88688.06421 | D28: 19854.59647 | E28: 275615.8172 | F28: 18897.13184 | G28: 22276.18124 | H28: 32576.25951 | I28: 76743.38033 | J28: 81339.78483 | K28: 35170.71074 | L28: 0.008510758799
A29: Køge | B29: 94307.88672 | C29: 110752.0185 | D29: 24794.05381 | E29: 344183.9482 | F29: 23598.38964 | G29: 27818.0842 | H29: 40680.63193 | I29: 95835.71765 | J29: 101575.6228 | K29: 43920.53476 | L29: 0.01062807859
A30: Halsnæs | B30: 47993.99947 | C30: 56362.54298 | D30: 12617.8822 | E30: 175157.824 | F30: 12009.39963 | G30: 14156.83422 | H30: 20702.68241 | I30: 48771.52423 | J30: 51692.60552 | K30: 22351.49355 | L30: 0.005408709873
A31: Roskilde | B31: 126934.8362 | C31: 149068.0136 | D31: 33371.85541 | E31: 463258.5314 | F31: 31762.53682 | G31: 37442.08555 | H31: 54754.58662 | I31: 128991.2387 | J31: 136716.9332 | K31: 59115.37286 | L31: 0.01430499041
A32: Solrød | B32: 32794.37834 | C32: 38512.61781 | D32: 8621.819548 | E32: 119685.6277 | F32: 8206.042412 | G32: 9673.387983 | H32: 14146.17675 | I32: 33325.66228 | J32: 35321.64191 | K32: 15272.81211 | L32: 0.003695780304
A33: Gribskov | B33: =$L33*B$100 -> 60741.9084 | C33: 71333.25958 | D33: 15969.37645 | E33: 221682.3065 | F33: 15199.272 | G33: 17917.09666 | H33: 26201.61795 | I33: 61725.95511 | J33: 65422.91837 | K33: 28288.37748 | L33: 0.006845342403
A34: Odsherred | B34: 53545.87024 | C34: 62882.47377 | D34: 14077.49907 | E34: 195419.8071 | F34: 13398.62819 | G34: 15794.47466 | H34: 23097.53632 | I34: 54413.33785 | J34: 57672.32526 | K34: 24937.07936 | L34: 0.00603438097
A35: Holbæk | B35: 113011.2651 | C35: 132716.6387 | D35: 29711.27321 | E35: 412443.3785 | F35: 28278.4819 | G35: 33335.03695 | H35: 48748.51764 | I35: 114842.0993 | J35: 121720.357 | K35: 52630.96619 | L35: 0.01273586599
A36: Faxe | B36: 56490.51706 | C36: 66340.56821 | D36: 14851.66266 | E36: 206166.524 | F36: 14135.45864 | G36: 16663.05984 | H36: 24367.7386 | I36: 57405.68929 | J36: 60843.89812 | K36: 26308.44359 | L36: 0.006366229544
A37: Kalundborg | B37: 79745.92787 | C37: 93650.94254 | D37: 20965.63602 | E37: 291038.9497 | F37: 19954.59281 | G37: 23522.72979 | H37: 34399.18815 | I37: 81037.84839 | J37: 85891.4622 | K37: 37138.82177 | L37: 0.008987010713
A38: Ringsted | B38: 54062.91807 | C38: 63489.6774 | D38: 14213.43375 | E38: 197306.8132 | F38: 13528.00757 | G38: 15946.98873 | H38: 23320.56997 | I38: 54938.76209 | J38: 58229.21882 | K38: 25177.87594 | L38: 0.006092649956
A39: Slagelse | B39: 130228.0075 | C39: 152935.4034 | D39: 34237.64797 | E39: 475277.2155 | F39: 32586.57755 | G39: 38413.47532 | H39: 56175.12835 | I39: 132337.7609 | J39: 140263.8892 | K39: 60649.04994 | L39: 0.01467611614
A40: Stevns | B40: 35238.26411 | C40: 41382.63527 | D40: 9264.330341 | E40: 128604.7783 | F40: 8817.568875 | G40: 10394.26322 | H40: 15200.37085 | I40: 35809.14011 | J40: 37953.86311 | K40: 16410.96474 | L40: 0.003971195339
A41: Sorø | B41: 46048.19215 | C41: 54077.45213 | D41: 12106.31893 | E41: 168056.4493 | F41: 11522.50589 | G41: 13582.87765 | H41: 19863.33933 | I41: 46794.19393 | J41: 49596.84665 | K41: 21445.30319 | L41: 0.005189426059
A42: Lejre | B42: 40558.02151 | C42: 47629.97991 | D42: 10662.92335 | E42: 148019.6457 | F42: 10148.71638 | G42: 11963.43696 | H42: 17495.10038 | I42: 41215.08002 | J42: 43683.58191 | K42: 18888.45202 | L42: 0.004570708293
A43: Lolland | B43: =$L43*B$100 -> 75488.32323 | C43: 88650.95448 | D43: 19846.28872 | E43: 275500.4914 | F43: 18889.22472 | G43: 22266.86023 | H43: 32562.62863 | I43: 76711.26861 | J43: 81305.74983 | K43: 35155.99426 | L43: 0.008507197643
A44: Næstved | B44: 130050.4749 | C44: 152726.915 | D44: 34190.97367 | E44: 474629.2962 | F44: 32542.15406 | G44: 38361.10834 | H44: 56098.54789 | I44: 132157.3521 | J44: 140072.6751 | K44: 60566.37043 | L44: 0.014656109
A45: Guldborgsund | B45: 101435.3099 | C45: 119122.2253 | D45: 26667.89195 | E45: 370196.0321 | F45: 25381.86413 | G45: 29920.46679 | H45: 43755.11584 | I45: 103078.6084 | J45: 109252.3132 | K45: 47239.87793 | L45: 0.01143130742
A46: Vordingborg | B46: 73497.22474 | C46: 86312.6752 | D46: 19322.81815 | E46: 268233.823 | F46: 18390.9979 | G46: 21679.54407 | H46: 31703.74876 | I46: 74687.91341 | J46: 79161.20947 | K46: 34228.71115 | L46: 0.008282809716
A47: Bornholm | B47: 61965.04162 | C47: 72769.66621 | D47: 16290.94479 | E47: 226146.2261 | F47: 15505.33309 | G47: 18277.88539 | H47: 26729.22847 | I47: 62968.90365 | J47: 66740.31104 | K47: 28858.00816 | L47: 0.006983184067
A48: Middelfart | B48: 58011.45728 | C48: 68126.70938 | D48: 15251.52607 | E48: 211717.3134 | F48: 14516.03911 | G48: 17111.69298 | H48: 25023.81108 | I48: 58951.26944 | J48: 62482.04797 | K48: 27016.76725 | L48: 0.006537632729
A49: Assens | B49: 63579.95976 | C49: 74666.17189 | D49: 16715.51551 | E49: 232039.9951 | F49: 15909.42938 | G49: 18754.23928 | H49: 27425.83924 | I49: 64609.9842 | J49: 68479.68111 | K49: 29610.09868 | L49: 0.007165178145
A50: Faaborg-Midtfyn | B50: 79214.36275 | C50: 93026.6903 | D50: 20825.88467 | E50: 289098.9616 | F50: 19821.58081 | G50: 23365.93353 | H50: 34169.89232 | I50: 80497.67168 | J50: 85318.93259 | K50: 36891.26428 | L50: 0.008927105694
A51: Kerteminde | B51: 36629.83503 | C51: 43016.84949 | D51: 9630.181869 | E51: 133683.4244 | F51: 9165.777643 | G51: 10804.73618 | H51: 15800.63861 | I51: 37223.25513 | J51: 39452.67395 | K51: 17059.03927 | L51: 0.004128019182
A52: Nyborg | B52: 50909.65957 | C52: 59786.59639 | D52: 13384.42502 | E52: 185798.7517 | F52: 12738.97682 | G52: 15016.86917 | H52: 21960.38099 | I52: 51734.41935 | J52: 54832.95784 | K52: 23709.35826 | L52: 0.005737291774
A53: Odense | B53: =$L53*B$100 -> 312994.6496 | C53: 367570.4168 | D53: 82287.98729 | E53: 1142298.253 | F53: 78319.74561 | G53: 92324.32005 | H53: 135013.312 | I53: 318065.3062 | J53: 337115.2463 | K53: 145766.0951 | L53: 0.03527310227
A54: Svendborg | B54: 90722.10555 | C54: 106540.9974 | D54: 23851.33253 | E54: 331097.3616 | F54: 22701.12999 | G54: 26760.38303 | H54: 39133.87005 | I54: 92191.84518 | J54: 97713.50723 | K54: 42250.58506 | L54: 0.01022397703
A55: Nordfyns | B55: 45489.68728 | C55: 53421.56275 | D55: 11959.48497 | E55: 166018.1424 | F55: 11382.75284 | G55: 13418.13495 | H55: 19622.42278 | I55: 46226.64103 | J55: 48995.3012 | K55: 21185.19947 | L55: 0.005126485049
A56: Langeland | B56: 20793.97387 | C56: 24419.74536 | D56: 5466.848266 | E56: 75889.22065 | F56: 5203.21592 | G56: 6133.617622 | H56: 8969.684579 | I56: 21130.84576 | J56: 22396.43914 | K56: 9684.051714 | L56: 0.002343388195
A57: Ærø | B57: 9652.092281 | C57: 11335.09339 | D57: 2537.587297 | E57: 35226.0595 | F57: 2415.215126 | G57: 2847.086549 | H57: 4163.524675 | I57: 9808.460593 | J57: 10395.92041 | K57: 4495.117739 | L57: 0.001087747789
A58: Haderslev | B58: 88554.14124 | C58: 103995.0128 | D58: 23281.36298 | E58: 323185.2077 | F58: 22158.64656 | G58: 26120.8966 | H58: 38198.69738 | I58: 89988.75886 | J58: 95378.47108 | K58: 41240.93301 | L58: 0.00997965711
A59: Billund | B59: 41149.05694 | C59: 48324.07209 | D59: 10818.30977 | E59: 150176.6753 | F59: 10296.60947 | G59: 12137.77522 | H59: 17750.04931 | I59: 41815.6905 | J59: 44320.16485 | K59: 19163.70569 | L59: 0.004637315352
A60: Sønderborg | B60: 117446.7256 | C60: 137925.4947 | D60: 30877.37978 | E60: 428630.9356 | F60: 29388.35435 | G60: 34643.36882 | H60: 50661.79703 | I60: 119349.4163 | J60: 126497.6315 | K60: 54696.62372 | L60: 0.01323572262
A61: Tønder | B61: 60285.87226 | C61: 70797.70604 | D61: 15849.48208 | E61: 220017.9673 | F61: 15085.1594 | G61: 17782.57926 | H61: 26004.90229 | I61: 61262.53098 | J61: 64931.7383 | K61: 28075.99491 | L61: 0.006793949163
A62: Esbjerg | B62: 178810.4907 | C62: 209989.0419 | D62: 47010.24572 | E62: 652582.7564 | F62: 44743.23175 | G62: 52743.89512 | H62: 77131.65897 | I62: 181707.3025 | J62: 192590.3292 | K62: 83274.60879 | L62: 0.0201511455
A63: Fanø | B63: =$L63*B$100 -> 4829.791212 | C63: 5671.944779 | D63: 1269.778248 | E63: 17626.69768 | F63: 1208.544681 | G63: 1424.647962 | H63: 2083.377811 | I63: 4908.03604 | J63: 5201.993887 | K63: 2249.303003 | L63: 0.0005442959474
A64: Varde | B64: 75987.92101 | C64: 89237.66536 | D64: 19977.63568 | E64: 277323.8122 | F64: 19014.23762 | G64: 22414.22704 | H64: 32778.13503 | I64: 77218.96011 | J64: 81843.84858 | K64: 35388.66411 | L64: 0.008563500087
A65: Vejen | B65: 65042.12357 | C65: 76383.28803 | D65: 17099.92629 | E65: 237376.2754 | F65: 16275.3024 | G65: 19185.53509 | H65: 28056.55795 | I65: 66095.83574 | J65: 70054.52501 | K65: 30291.04933 | L65: 0.007329957491
A66: Aabenraa | B66: 92542.13831 | C66: 108678.3828 | D66: 24329.82899 | E66: 337739.7124 | F66: 23156.55152 | G66: 27297.23977 | H66: 39918.95903 | I66: 94041.3633 | J66: 99673.79886 | K66: 43098.20041 | L66: 0.01042908661
A67: Fredericia | B67: 83240.90946 | C67: 97755.33168 | D67: 21884.48559 | E67: 303794.1562 | F67: 20829.13194 | G67: 24553.64772 | H67: 35906.78274 | I67: 84589.45029 | J67: 89655.78079 | K67: =$L67*K$100 -> 38766.4848 | L67: 0.009380879564
A68: Horsens | B68: 142238.8969 | C68: 167040.589 | D68: 37395.3758 | E68: 519111.8881 | F68: 35592.02765 | G68: 41956.33843 | H68: 61356.1433 | I68: 144543.2322 | J68: 153200.3849 | K68: 66242.69332 | L68: 0.01602968985
A69: Kolding | B69: 139766.8443 | C69: 164137.4934 | D69: 36745.45979 | E69: 510089.9403 | F69: 34973.45308 | G69: 41227.1548 | H69: 60289.79917 | I69: 142031.1312 | J69: 150537.8262 | K69: 65091.42298 | L69: 0.01575110054
A70: Vejle | B70: 178349.3859 | C70: 209447.5359 | D70: 46889.01876 | E70: 650899.9185 | F70: 44627.85082 | G70: 52607.8826 | H70: 76932.75687 | I70: 181238.7275 | J70: 192093.6898 | K70: 83059.86565 | L70: 0.02009918104
A71: Herning | B71: 131039.9338 | C71: 153888.9025 | D71: 34451.10779 | E71: 478240.4035 | F71: 32789.74352 | G71: 38652.96997 | H71: 56525.36073 | I71: 133162.8407 | J71: 141138.3857 | K71: 61027.17566 | L71: 0.01476761661
A72: Holstebro | B72: 85583.04288 | C72: 100505.8546 | D72: 22500.24514 | E72: 312341.9538 | F72: 21415.19721 | G72: 25244.50898 | H72: 36917.08496 | I72: 86969.52735 | J72: 92178.40822 | K72: 39857.24991 | L72: 0.009644827565
A73: Lemvig | B73: =$L73*B$100 -> 29895.37739 | C73: 35108.12834 | D73: 7859.656508 | E73: 109105.4988 | F73: 7480.633791 | G73: 8818.267002 | H73: 12895.66426 | I73: 30379.69619 | J73: 32199.23256 | K73: 13922.7058 | L73: 0.003369075815
A74: Struer | B74: 32721.17522 | C74: 38426.65052 | D74: 8602.57405 | E74: 119418.4672 | F74: 8187.725005 | G74: 9651.795189 | H74: 14114.59987 | I74: 33251.27323 | J74: 35242.79746 | K74: 15238.72036 | L74: 0.003687530638
A75: Syddjurs | B75: 63480.25471 | C75: 74549.08164 | D75: 16689.30252 | E75: 231676.1138 | F75: 15884.48047 | G75: 18724.8292 | H75: 27382.8305 | I75: 64508.66389 | J75: 68372.2924 | K75: 29563.66462 | L75: 0.007153941831
A76: Norddjurs | B76: 59739.17066 | C76: 70155.67802 | D76: 15705.75127 | E76: 218022.7374 | F76: 14948.35984 | G76: 17621.31819 | H76: 25769.0772 | I76: 60706.97256 | J76: 64342.90572 | K76: 27821.38814 | L76: 0.006732338329
A77: Favrskov | B77: 68217.97103 | C77: 80112.89675 | D77: 17934.87378 | E77: 248966.777 | F77: 17069.98552 | G77: 20122.31774 | H77: 29426.4909 | I77: 69323.13339 | J77: 73475.11575 | K77: 31770.08702 | L77: 0.007687861348
A78: Odder | B78: 33984.55736 | C78: 39910.32412 | D78: 8934.724052 | E78: 124029.2783 | F78: 8503.857464 | G78: 10024.45618 | H78: 14659.57214 | I78: 34535.12274 | J78: 36603.5408 | K78: 15827.09553 | L78: 0.003829908175
A79: Randers | B79: 155032.4667 | C79: 182064.9282 | D79: 40758.87452 | E79: 565803.0133 | F79: 38793.3256 | G79: 45730.06949 | H79: 66874.7751 | I79: 157544.0636 | J79: 166979.8773 | K79: 72200.84215 | L79: 0.01747146816
A80: Silkeborg | B80: 140819.9501 | C80: 165374.2255 | D80: 37022.32699 | E80: 513933.3315 | F80: 35236.9687 | G80: 41537.79038 | H80: 60744.06667 | I80: 143101.2978 | J80: 151672.0884 | K80: 65581.86944 | L80: 0.01586978087
A81: Samsø | B81: 5965.625021 | C81: 7005.829903 | D81: 1568.395104 | E81: 21772.01128 | F81: 1492.761089 | G81: 1759.685907 | H81: 2573.330865 | I81: 6062.270877 | J81: 6425.35951 | K81: 2778.27709 | L81: 0.0006722993564
A82: Skanderborg | B82: 88589.89889 | C82: 104037.0054 | D82: 23290.76386 | E82: 323315.708 | F82: 22167.59409 | G82: 26131.44406 | H82: 38214.12179 | I82: 90025.0958 | J82: 95416.98436 | K82: 41257.58586 | L82: 0.009983686838
A83: Aarhus | B83: =$L83*B$100 -> 508436.6999 | C83: 597091.0045 | D83: 133670.76 | E83: 1855579.177 | F83: 127224.6444 | G83: 149974.0416 | H83: 219319.1574 | I83: 516673.6072 | J83: 547618.8285 | K83: 236786.2597 | L83: 0.05729855043
A84: Ikast-Brande | B84: 62717.28458 | C84: 73653.0751 | D84: 16488.71354 | E84: 228891.5951 | F84: 15693.56467 | G84: 18499.77519 | H84: 27053.71585 | I84: 63733.33329 | J84: 67550.5248 | K84: 29208.33849 | L84: 0.007067958497
A85: Ringkøbing-Skjern | B85: 84069.44881 | C85: 98728.3405 | D85: 22102.31307 | E85: 306817.9748 | F85: 21036.45494 | G85: 24798.04274 | H85: 36264.18131 | I85: 85431.41235 | J85: 90548.17064 | K85: 39152.34745 | L85: 0.009474252257
A86: Hedensted | B86: 67692.25405 | C86: 79495.51236 | D86: 17796.65994 | E86: 247048.1321 | F86: 16938.43688 | G86: 19967.24652 | H86: 29199.71772 | I86: 68788.89955 | J86: 72908.88495 | K86: 31525.25309 | L86: 0.007628615387
A87: Morsø | B87: 32552.48274 | C87: 38228.54373 | D87: 8558.223885 | E87: 118802.8109 | F87: 8145.513575 | G87: 9602.035815 | H87: 14041.83271 | I87: 33079.84786 | J87: 35061.10489 | K87: 15160.15786 | L87: 0.003668519748
A88: Skive | B88: 70724.98592 | C88: 83057.05094 | D88: 18593.98156 | E88: 258116.3224 | F88: 17697.3086 | G88: 20861.81423 | H88: 30507.91636 | I88: 71870.76306 | J88: 76175.33105 | K88: 32937.63979 | L88: 0.007970390755
A89: Thisted | B89: 67163.02542 | C89: 78874.00402 | D89: 17657.52287 | E89: 245116.6712 | F89: 16806.00953 | G89: 19811.13946 | H89: 28971.42976 | I89: 68251.09717 | J89: 72338.87189 | K89: 31278.78373 | L89: 0.007568973679
A90: Viborg | B90: 144639.0437 | C90: 169859.2409 | D90: 38026.38737 | E90: 527871.4099 | F90: 36192.60944 | G90: 42664.31193 | H90: 62391.47015 | I90: 146982.2624 | J90: 155785.4964 | K90: 67360.47607 | L90: 0.0163001757
A91: Brønderslev | B91: 55141.04609 | C91: 64755.79477 | D91: 14496.87944 | E91: 201241.5251 | F91: 13797.78443 | G91: 16265.00515 | H91: 23785.63106 | I91: 56034.35627 | J91: 59390.43162 | K91: 25679.97562 | L91: 0.006214150179
A92: Frederikshavn | B92: 93865.91379 | C92: 110232.9803 | D92: 24677.85673 | E92: 342570.9337 | F92: 23487.79603 | G92: 27687.71504 | H92: 40489.98257 | I92: 95386.58455 | J92: 101099.5897 | K92: 43714.70163 | L92: 0.01057827021
A93: Vesthimmerland | B93: =$L93*B$100 -> 58270.95759 | C93: 68431.45784 | D93: 15319.75011 | E93: 212664.3799 | F93: 14580.97313 | G93: 17188.23802 | H93: 25135.74909 | I93: 59214.97377 | J93: 62761.54638 | K93: 27137.62027 | L93: 0.006566877258
A94: Læsø | B94: 2940.722117 | C94: 3453.485406 | D94: 773.1317597 | E94: 10732.39348 | F94: 735.8483873 | G94: 867.4275113 | H94: 1268.509328 | I94: 2988.363162 | J94: 3167.345711 | K94: 1369.536446 | L94: 0.0003314062784
A95: Rebild | B95: 43758.45879 | C95: 51388.46609 | D95: 11504.33563 | E95: 159699.8898 | F95: 10949.55254 | G95: 12907.47289 | H95: 18875.64039 | I95: 44467.36585 | J95: 47130.65745 | K95: 20378.94154 | L95: 0.004931383313
A96: Mariagerfjord | B96: 63917.24505 | C96: 75062.26843 | D96: 16804.18964 | E96: 233270.944 | F96: 15993.8273 | G96: 18853.72864 | H96: 27571.33057 | I96: 64952.73367 | J96: 68842.95893 | K96: 29767.17728 | L96: 0.007203188695
A97: Jammerbugt | B97: 57887.23531 | C97: 67980.82728 | D97: 15218.86745 | E97: 211263.9557 | F97: 14484.95541 | G97: 17075.05111 | H97: 24970.22672 | I97: 58825.03502 | J97: 62348.25297 | K97: 26958.9153 | L97: 0.006523633468
A98: Aalborg | B98: 321594.0664 | C98: 377669.2835 | D98: 84548.82051 | E98: 1173682.492 | F98: 80471.5528 | G98: 94860.89795 | H98: 138722.7548 | I98: 326804.0375 | J98: 346377.368 | K98: 149770.9668 | L98: 0.03624221822
A99: Hjørring | B99: 99215.64303 | C99: 116515.5229 | D99: 26084.3295 | E99: 362095.1855 | F99: 24826.4433 | G99: 29265.7296 | H99: 42797.64075 | I99: 100822.9819 | J99: 106861.5901 | K99: 46206.14723 | L99: 0.01118116085
A100: Hele landet | B100: 8873465.317 | C100: 10420700 | D100: 2332882.054 | E100: 32384400 | F100: 2220381.553 | G100: 2617414.237 | H100: 3827656.297 | I100: 9017219.516 | J100: 9557289.397 | K100: 4132500 | L100: 1

Sheet Bloktilskudsdel - ØA24 (hidden)
A1: Kommune | B1: Kontant- og uddannelseshjælp | C1: Arbejdsløsheds-dagpenge | D1: Ledighedsydelse | E1: Førtidspension | F1: Ressourceforløb | G1: Jobafklaringsforløb | H1: Driftsudgifter til aktivering mv. | I1: Sygedagpenge | J1: Fleksjob | K1: Seniorpension | L1: Bloktilskudsnøgle
A2: København | B2: =$L2*B$100 -> 992411.409 | C2: 1214726.778 | D2: 262130.965 | E2: 3692574.176 | F2: 245089.4846 | G2: 284970.3946 | H2: 429166.605 | I2: 1009234.112 | J2: 1094214.911 | K2: 556811.8234 | L2: 0.1052288049
A3: Frederiksberg | B3: =$L3*B$100 -> 147781.294 | C3: 180886.5692 | D3: 39034.2683 | E3: 549866.0987 | F3: 36496.59893 | G3: 42435.31792 | H3: 63907.7661 | I3: 150286.3848 | J3: 162940.9879 | K3: =$L3*K$100 -> 82915.58421 | L3: 0.01566976036
A4: Ballerup | B4: 87674.29419 | C4: 107314.6801 | D4: 23157.88305 | E4: 326219.3801 | F4: 21652.35847 | G4: 25175.62573 | H4: 37914.59755 | I4: 89160.49091 | J4: 96668.09465 | K4: 49191.37685 | L4: 0.009296407838
A5: Brøndby | B5: 71802.68923 | C5: 87887.5923 | D5: 18965.63063 | E5: 267164.1555 | F5: 17732.64992 | G5: 20618.10303 | H5: 31050.94932 | I5: 73019.841 | J5: 79168.34944 | K5: 40286.30259 | L5: 0.007613486817
A6: Dragør | B6: 21544.61232 | C6: 26370.93574 | D6: 5690.69437 | E6: 80163.40638 | F6: 5320.734809 | G6: 6186.52367 | H6: 9316.930498 | I6: 21909.82235 | J6: 23754.70076 | K6: 12088.02595 | L6: 0.00228444956
A7: Gentofte | B7: 108102.8437 | C7: 132319.5378 | D7: 28553.78574 | E7: 402230.1289 | F7: 26697.46639 | G7: 31041.67257 | H7: 46748.88861 | I7: 109935.3317 | J7: 119192.2447 | K7: 60653.21394 | L7: 0.01146251741
A8: Gladsaxe | B8: 114342.2675 | C8: 139956.6882 | D8: 30201.83832 | E8: 425445.8387 | F8: 28238.3769 | G8: 32833.31972 | H8: 49447.1167 | I8: 116280.5221 | J8: 126071.7208 | K8: 64153.96466 | L8: 0.01212410504
A9: Glostrup | B9: 39763.86764 | C9: 48671.58354 | D9: 10503.04431 | E9: 147953.7916 | F9: 9820.227516 | G9: 11418.1729 | H9: 17195.81609 | I9: 40437.91846 | J9: 43842.92291 | K9: 22310.29535 | L9: 0.004216300048
A10: Herlev | B10: 50752.38434 | C10: 62121.69643 | D10: 13405.50034 | E10: 188839.9731 | F10: 12533.99105 | G10: 14573.51947 | H10: 21947.78122 | I10: 51612.70524 | J10: 55958.66313 | K10: 28475.61748 | L10: 0.005381450378
A11: Albertslund | B11: 51968.46857 | C11: 63610.20217 | D11: 13726.71121 | E11: 193364.7913 | F11: 12834.31958 | G11: 14922.71739 | H11: 22473.67475 | I11: 52849.40373 | J11: 57299.49565 | K11: 29157.92531 | L11: 0.005510395983
A12: Hvidovre | B12: 90229.65352 | C12: 110442.4791 | D12: 23832.84386 | E12: 335727.3863 | F12: 22283.43918 | G12: 25909.39577 | H12: 39019.6583 | I12: 91759.16701 | J12: 99485.58774 | K12: 50625.11116 | L12: 0.009567361402
A13: Høje-Taastrup | B13: =$L13*B$100 -> 94312.49162 | C13: 115439.9355 | D13: 24911.26585 | E13: 350918.8507 | F13: 23291.75154 | G13: 27081.78051 | H13: 40785.2746 | I13: 95911.21469 | J13: 103987.2514 | K13: 52915.8673 | L13: 0.01000027881
A14: Lyngby-Taarbæk | B14: 85861.88306 | C14: 105096.2611 | D14: 22679.16114 | E14: 319475.7428 | F14: 21204.75891 | G14: 24655.19287 | H14: 37130.82348 | I14: 87317.35699 | J14: 94669.76284 | K14: 48174.48815 | L14: 0.009104231633
A15: Rødovre | B15: 73381.56716 | C15: 89820.16308 | D15: 19382.66815 | E15: 273038.8601 | F15: 18122.57528 | G15: 21071.47697 | H15: 31733.73236 | I15: 74625.48301 | J15: 80909.19175 | K15: 41172.16292 | L15: 0.007780900689
A16: Ishøj | B16: 44301.04301 | C16: 54225.15575 | D16: 11701.47285 | E16: 164835.7586 | F16: 10940.74463 | G16: 12721.02033 | H16: 19157.90977 | I16: 45052.00503 | J16: 48845.53059 | K16: 24855.9663 | L16: 0.004697392403
A17: Tårnby | B17: 71143.25913 | C17: 87080.43975 | D17: 18791.45181 | E17: 264710.5415 | F17: 17569.7947 | G17: 20428.74804 | H17: 30765.77991 | I17: 72349.23267 | J17: 78441.27371 | K17: 39916.31644 | L17: 0.007543565168
A18: Vallensbæk | B18: 25994.70159 | C18: 31817.91323 | D18: 6866.120393 | E18: 96721.34252 | F18: 6419.744833 | G18: 7464.364377 | H18: 11241.36394 | I18: 26435.3466 | J18: 28661.28889 | K18: 14584.83554 | L18: 0.002756307876
A19: Furesø | B19: 64289.73209 | C19: 78691.61759 | D19: 16981.19284 | E19: 239209.8704 | F19: 15877.22305 | G19: 18460.76149 | H19: 27801.98394 | I19: 65379.52916 | J19: 70884.69847 | K19: 36071.0111 | L19: 0.006816862055
A20: Allerød | B20: 36680.42865 | C20: 44897.40696 | D20: 9688.598976 | E20: 136480.9014 | F20: 9058.730353 | G20: 10532.76507 | H20: 15862.38821 | I20: 37302.21105 | J20: 40443.17872 | K20: 20580.27163 | L20: 0.003889352376
A21: Fredensborg | B21: 65955.16748 | C21: 80730.13604 | D21: 17421.09325 | E21: 245406.6388 | F21: 16288.52496 | G21: 18938.99035 | H21: 28522.19861 | I21: 67073.19592 | J21: 72720.97748 | K21: 37005.43619 | L21: 0.006993453915
A22: Helsingør | B22: 102796.527 | C22: 125824.5248 | D22: 27152.19975 | E22: 382486.3332 | F22: 25386.99937 | G22: 29517.96662 | H22: 44454.18108 | I22: 104539.0658 | J22: 113341.5956 | K22: 57676.0012 | L22: 0.01089987034
A23: Hillerød | B23: =$L23*B$100 -> 80866.59468 | C23: 98981.95151 | D23: 21359.72875 | E23: 300889.2245 | F23: 19971.10456 | G23: 23220.79854 | H23: 34970.61962 | I23: 82237.39178 | J23: 89162.04803 | K23: 45371.78395 | L23: 0.008574563976
A24: Hørsholm | B24: 36420.0798 | C24: 44578.73597 | D24: 9619.831632 | E24: 135512.1928 | F24: 8994.433665 | G24: 10458.00604 | H24: 15749.8008 | I24: 37037.44894 | J24: 40156.12277 | K24: 20434.19781 | L24: 0.003861746689
A25: Rudersdal | B25: 83979.50965 | C25: 102792.2072 | D25: 22181.95973 | E25: 312471.7893 | F25: 20739.88121 | G25: 24114.67037 | H25: 36316.79434 | I25: 85403.07483 | J25: 92594.29189 | K25: 47118.34575 | L25: 0.008904637088
A26: Egedal | B26: 64636.25287 | C26: 79115.76434 | D26: 17072.72124 | E26: 240499.2083 | F26: 15962.80107 | G26: 18560.26474 | H26: 27951.83626 | I26: 65731.92394 | J26: 71266.76603 | K26: 36265.43336 | L26: 0.006853604849
A27: Frederikssund | B27: 71548.93642 | C27: 87576.99497 | D27: 18898.60554 | E27: 266219.9896 | F27: 17669.98222 | G27: 20545.23805 | H27: 30941.21435 | I27: 72761.78673 | J27: 78888.56616 | K27: 40143.92961 | L27: 0.00758658053
A28: Greve | B28: 80549.93202 | C28: 98594.35156 | D28: 21276.08693 | E28: 299710.9829 | F28: 19892.90041 | G28: 23129.86903 | H28: 34833.6794 | I28: 81915.36126 | J28: 88812.90149 | K28: 45194.11417 | L28: 0.008540987142
A29: Køge | B29: 100066.0861 | C29: 122482.4233 | D29: 26430.99372 | E29: 372326.8819 | F29: 24712.67989 | G29: 28733.92202 | H29: 43273.40663 | I29: 101762.3403 | J29: 110331.0608 | K29: 56144.03398 | L29: 0.01061035228
A30: Halsnæs | B30: 50541.69339 | C30: 61863.80748 | D30: 13349.84941 | E30: 188056.0321 | F30: 12481.95806 | G30: 14513.01968 | H30: 21856.66828 | I30: 51398.4428 | J30: 55726.35909 | K30: 28357.40521 | L30: 0.00535911009
A31: Roskilde | B31: 135103.3357 | C31: 165368.5539 | D31: 35685.57097 | E31: 502693.8263 | F31: 33365.60484 | G31: 38794.84912 | H31: 58425.20488 | I31: 137393.5182 | J31: 148962.4999 | K31: 75802.36786 | L31: 0.01432547271
A32: Solrød | B32: 35198.67978 | C32: 43083.72362 | D32: 9297.216673 | E32: 130967.5955 | F32: 8692.792331 | G32: 10107.28169 | H32: 15221.60846 | I32: 35795.34455 | J32: 38809.42915 | K32: 19748.90745 | L32: 0.003732237432
A33: Gribskov | B33: =$L33*B$100 -> 64161.61937 | C33: 78534.80566 | D33: 16947.35374 | E33: 238733.1873 | F33: 15845.58388 | G33: 18423.97399 | H33: 27746.58182 | I33: 65249.24476 | J33: 70743.4437 | K33: 35999.13096 | L33: 0.006803277822
A34: Odsherred | B34: 56870.43838 | C34: 69610.28836 | D34: 15021.49487 | E34: 211604.089 | F34: 14044.92764 | G34: 16330.31535 | H34: 24593.52315 | I34: 57834.46849 | J34: 62704.31911 | K34: 31908.27131 | L34: 0.006030168751
A35: Holbæk | B35: 120052.4053 | C35: 146945.9844 | D35: 31710.08775 | E35: 446692.1759 | F35: 29648.57304 | G35: 34472.98268 | H35: 51916.45597 | I35: 122087.4544 | J35: 132367.6157 | K35: 67357.74913 | L35: 0.01272957065
A36: Faxe | B36: 59810.34364 | C36: 73208.77746 | D36: 15798.02787 | E36: 222542.9176 | F36: 14770.9772 | G36: 17174.50754 | H36: 25864.88012 | I36: 60824.20908 | J36: 65945.80559 | K36: 33557.76263 | L36: 0.006341897046
A37: Kalundborg | B37: 84396.39582 | C37: 103302.4822 | D37: 22292.07411 | E37: 314022.9434 | F37: 20842.83692 | G37: 24234.37901 | H37: 36497.07605 | I37: 85827.02777 | J37: 93053.94306 | K37: 47352.24788 | L37: 0.008948840966
A38: Ringsted | B38: 57863.80497 | C38: 70826.18429 | D38: 15283.87814 | E38: 215300.2173 | F38: 14290.25302 | G38: 16615.56002 | H38: 25023.10282 | I38: 58844.67398 | J38: 63799.58719 | K38: 32465.61906 | L38: 0.006135498837
A39: Slagelse | B39: 137743.7782 | C39: 168600.496 | D39: 36383.00524 | E39: 512518.4107 | F39: 34017.69799 | G39: 39553.05073 | H39: 59567.05968 | I39: 140078.7197 | J39: 151873.8042 | K39: 77283.83973 | L39: 0.01460544793
A40: Stevns | B40: 37621.08565 | C40: 46048.78553 | D40: 9937.059768 | E40: 139980.9072 | F40: 9291.038381 | G40: 10802.87421 | H40: 16269.17371 | I40: 38258.81344 | J40: 41480.33014 | K40: 21108.04562 | L40: 0.003989093482
A41: Sorø | B41: 49189.72511 | C41: 60208.97758 | D41: 12992.74675 | E41: 183025.6152 | F41: 12148.07112 | G41: 14124.80273 | H41: 21272.01193 | I41: 50023.55684 | J41: 54235.70326 | K41: 27598.85697 | L41: 0.00521575623
A42: Lejre | B42: 43036.25441 | C42: 52677.03511 | D42: 11367.39743 | E42: 160129.7206 | F42: 10628.3879 | G42: 12357.83697 | H42: 18610.95411 | I42: 43765.77657 | J42: 47450.9975 | K42: 24146.33193 | L42: 0.004563282505
A43: Lolland | B43: =$L43*B$100 -> 78972.4552 | C43: 96663.49576 | D43: 20859.4195 | E43: 293841.4916 | F43: 19503.32107 | G43: 22676.89742 | H43: 34151.50227 | I43: 80311.1441 | J43: 87073.60402 | K43: 44309.03996 | L43: 0.008373721834
A44: Næstved | B44: 138122.5924 | C44: 169064.1704 | D44: 36483.06348 | E44: 513927.9065 | F44: 34111.25131 | G44: 39661.82704 | H44: 59730.87724 | I44: 140463.9553 | J44: 152291.4779 | K44: 77496.38086 | L44: 0.01464561491
A45: Guldborgsund | B45: 106889.288 | C45: 130834.1271 | D45: 28233.24275 | E45: 397714.719 | F45: 26397.76233 | G45: 30693.20073 | H45: 46224.08855 | I45: 108701.2046 | J45: 117854.2001 | K45: 59972.32481 | L45: 0.01133383991
A46: Vordingborg | B46: 77815.90953 | C46: 95247.86612 | D46: 20553.93486 | E46: 289538.205 | F46: 19217.6964 | G46: 22344.79596 | H46: 33651.35608 | I46: 79134.99343 | J46: 85798.41763 | K46: 43660.1374 | L46: 0.008251089306
A47: Bornholm | B47: 65178.75582 | C47: 79779.79626 | D47: 17216.01546 | E47: 242517.7586 | F47: 16096.77955 | G47: 18716.04417 | H47: 28186.44072 | I47: 66283.62303 | J47: 71864.91998 | K47: 36569.81524 | L47: 0.006911128308
A48: Middelfart | B48: 61920.14827 | C48: 75791.21067 | D48: 16355.30192 | E48: 230393.0995 | F48: 15292.02213 | G48: 17780.33679 | H48: 26777.2615 | I48: 62969.77772 | J48: 68272.03811 | K48: 34741.50977 | L48: 0.006565606909
A49: Assens | B49: 67125.43965 | C49: 82162.56712 | D49: 17730.20354 | E49: 249760.9991 | F49: 16577.53957 | G49: 19275.03337 | H49: 29028.28079 | I49: 68263.30577 | J49: 74011.29845 | K49: 37662.04027 | L49: 0.00711754191
A50: Faaborg-Midtfyn | B50: 84166.87034 | C50: 103021.5395 | D50: 22231.44831 | E50: 313168.9228 | F50: 20786.15248 | G50: 24168.47089 | H50: 36397.81815 | I50: 85593.61154 | J50: 92800.87241 | K50: 47223.46813 | L50: 0.008924503589
A51: Kerteminde | B51: 38640.36788 | C51: 47296.40261 | D51: 10206.28827 | E51: 143773.4626 | F51: 9542.763981 | G51: 11095.56055 | H51: 16709.96055 | I51: 39295.37387 | J51: 42604.17234 | K51: 21679.93385 | L51: 0.004097171493
A52: Nyborg | B52: 53851.02476 | C52: 65914.47981 | D52: 14223.96091 | E52: 200369.425 | F52: 13299.24242 | G52: 15463.29238 | H52: 23287.78293 | I52: 54763.87177 | J52: 59375.16814 | K52: 30214.17027 | L52: 0.00571000991
A53: Odense | B53: =$L53*B$100 -> 333225.0749 | C53: 407872.5998 | D53: 88016.53193 | E53: 1239867.151 | F53: 82294.46088 | G53: 95685.39844 | H53: 144102.6099 | I53: 338873.6863 | J53: 367407.9545 | K53: 186962.4431 | L53: 0.03533300413
A54: Svendborg | B54: 96489.07294 | C54: 118104.1044 | D54: 25486.17799 | E54: 359017.496 | F54: 23829.28788 | G54: 27706.78464 | H54: 41726.53345 | I54: 98124.69198 | J54: 106387.1106 | K54: 54137.08081 | L54: 0.01023106923
A55: Nordfyns | B55: 48102.75706 | C55: 58878.51202 | D55: 12705.64003 | E55: 178981.2137 | F55: 11879.62958 | G55: 13812.68044 | H55: 20801.95446 | I55: 48918.16322 | J55: 53037.2319 | K55: 26988.99229 | L55: 0.005100501257
A56: Langeland | B56: 22149.37717 | C56: 27111.17719 | D56: 5850.434165 | E56: 82413.62143 | F56: 5470.089709 | G56: 6360.181569 | H56: 9578.460019 | I56: 22524.83879 | J56: 24421.50358 | K56: 12427.3411 | L56: 0.002348574864
A57: Ærø | B57: 10170.79235 | C57: 12449.20575 | D57: 2686.466107 | E57: 37843.58467 | F57: 2511.815395 | G57: 2920.537474 | H57: 4398.341639 | I57: 10343.2009 | J57: 11214.13211 | K57: 5706.521895 | L57: 0.001078444196
A58: Haderslev | B58: 93773.33968 | C58: 114780.0052 | D58: 24768.85675 | E58: 348912.7688 | F58: 23158.60064 | G58: 26926.96332 | H58: 40552.11928 | I58: 95362.9234 | J58: 103392.7922 | K58: 52613.36557 | L58: 0.00994311067
A59: Billund | B59: 43850.69894 | C59: 53673.9277 | D59: 11582.52105 | E59: 163160.1139 | F59: 10829.52605 | G59: 12591.70427 | H59: 18963.15925 | I59: 44594.02703 | J59: 48348.98935 | K59: 24603.29195 | L59: 0.004649640868
A60: Sønderborg | B60: 125525.3053 | C60: 153644.8979 | D60: 33155.67427 | E60: 467055.7963 | F60: 31000.18007 | G60: 36044.52293 | H60: 54283.20215 | I60: 127653.1274 | J60: 138401.9365 | K60: 70428.42667 | L60: 0.01330988111
A61: Tønder | B61: 63818.88434 | C61: 78115.29273 | D61: 16856.82529 | E61: 237457.9354 | F61: 15760.9408 | G61: 18325.55782 | H61: 27598.36664 | I61: 64900.69992 | J61: 70365.55024 | K61: 35806.83277 | L61: 0.006766936445
A62: Esbjerg | B62: 189212.675 | C62: 231599.2147 | D62: 49977.7619 | E62: 704024.3908 | F62: 46728.64155 | G62: 54332.31639 | H62: 81824.69551 | I62: 192420.0833 | J62: 208622.4811 | K62: 106161.4706 | L62: 0.02006287261
A63: Fanø | B63: =$L63*B$100 -> 5050.958857 | C63: 6182.451068 | D63: 1334.136939 | E63: 18793.65762 | F63: 1247.402934 | G63: 1450.38008 | H63: 2184.27846 | I63: 5136.579375 | J63: 5569.096089 | K63: 2833.939217 | L63: 0.0005355705905
A64: Varde | B64: 80741.21024 | C64: 98828.47904 | D64: 21326.61028 | E64: 300422.6928 | F64: 19940.13916 | G64: 23184.79446 | H64: 34916.39734 | I64: 82109.88191 | J64: 89023.80141 | K64: 45301.43456 | L64: 0.008561269032
A65: Vejen | B65: 69161.86137 | C65: 84655.17852 | D65: 18268.09456 | E65: 257338.1371 | F65: 17080.46159 | G65: 19859.79075 | H65: 29908.92786 | I65: 70334.24757 | J65: 76256.6203 | K65: 38804.61449 | L65: 0.007333470729
A66: Aabenraa | B66: 98165.11883 | C66: 120155.6102 | D66: 25928.881 | E66: 365253.7441 | F66: 24243.21019 | G66: 28188.06031 | H66: 42451.33661 | I66: 99829.14909 | J66: 108235.0886 | K66: 55077.45912 | L66: 0.01040878616
A67: Fredericia | B67: 88791.00005 | C67: 108681.5452 | D67: 23452.84457 | E67: 330374.4303 | F67: 21928.14416 | G67: 25496.28721 | H67: 38397.51508 | I67: 90296.12644 | J67: 97899.35439 | K67: =$L67*K$100 -> 49817.92651 | L67: 0.009414816012
A68: Horsens | B68: 153049.6885 | C68: 187335.1649 | D68: 40425.83771 | E68: 569468.7933 | F68: 37797.70057 | G68: 43948.13455 | H68: 66186.07427 | I68: 155644.0858 | J68: 168749.8248 | K68: 85871.51999 | L68: 0.01622838641
A69: Kolding | B69: 149305.7939 | C69: 182752.5805 | D69: 39436.94267 | E69: 555538.4731 | F69: 36873.09491 | G69: 42873.07724 | H69: 64567.03348 | I69: 151836.7271 | J69: 164621.8741 | K69: 83770.9347 | L69: 0.01583140834
A70: Vejle | B70: 190654.7248 | C70: 233364.3057 | D70: 50358.65826 | E70: 709389.9837 | F70: 47084.77533 | G70: 54746.40019 | H70: 82448.30744 | I70: 193886.5778 | J70: 210212.4591 | K70: 106970.5608 | L70: 0.02021577812
A71: Herning | B71: 139353.7356 | C71: 170571.1086 | D71: 36808.25197 | E71: 518508.7564 | F71: 34415.29887 | G71: 40015.34914 | H71: 60263.28301 | I71: 141715.9681 | J71: 153648.9142 | K71: 78187.13784 | L71: 0.01477615728
A72: Holstebro | B72: 91141.72984 | C72: 111558.8745 | D72: 24073.75548 | E72: 339121.0489 | F72: 22508.68883 | G72: 26171.29799 | H72: 39414.08413 | I72: 92686.70425 | J72: 100491.2266 | K72: 51136.84942 | L72: 0.009664072001
A73: Lemvig | B73: =$L73*B$100 -> 31317.77094 | C73: 38333.43171 | D73: 8272.131341 | E73: 116527.4716 | F73: 7734.349151 | G73: 8992.880837 | H73: 13543.31612 | I73: 31848.64911 | J73: 34530.4091 | K73: 17571.44767 | L73: 0.003320731281
A74: Struer | B74: 34443.71345 | C74: 42159.63326 | D74: 9097.803354 | E74: 128158.5093 | F74: 8506.343136 | G74: 9890.493522 | H74: 14895.12457 | I74: 35027.58053 | J74: 37977.0169 | K74: 19325.31883 | L74: 0.003652185748
A75: Syddjurs | B75: 67865.1994 | C75: 83068.04439 | D75: 17925.60026 | E75: 252513.5045 | F75: 16760.2333 | G75: 19487.45498 | H75: 29348.18862 | I75: 69015.60543 | J75: 74826.9442 | K75: 38077.09694 | L75: 0.007195981187
A76: Norddjurs | B76: 63241.98455 | C76: 77409.15854 | D76: 16704.44565 | E76: 235311.401 | F76: 15618.46756 | G76: 18159.90135 | H76: 27348.88732 | I76: 64314.0209 | J76: 69729.47094 | K76: 35483.15186 | L76: 0.00670576577
A77: Favrskov | B77: 72544.7777 | C77: 88795.91997 | D77: 19161.64246 | E77: 269925.3257 | F77: 17915.91876 | G77: 20831.19333 | H77: 31371.8642 | I77: 73774.50886 | J77: 79986.5628 | K77: 40702.66583 | L77: 0.007692173017
A78: Odder | B78: 36495.24515 | C78: 44670.73951 | D78: 9639.685461 | E78: 135791.8687 | F78: 9012.99677 | G78: 10479.58973 | H78: 15782.30592 | I78: 37113.88844 | J78: 40238.99873 | K78: 20476.3708 | L78: 0.003869716731
A79: Randers | B79: 165425.4845 | C79: 202483.3288 | D79: 43694.72327 | E79: 615516.7771 | F79: 40854.07157 | G79: 47501.8376 | H79: 71537.96591 | I79: 168229.668 | J79: 182395.154 | K79: 92815.20225 | L79: 0.01754063474
A80: Silkeborg | B80: 151374.7011 | C80: 185284.9546 | D80: 39983.41425 | E80: 563236.4834 | F80: 37384.03965 | G80: 43467.16281 | H80: 65461.72883 | I80: 153940.705 | J80: 166903.0138 | K80: 84931.73553 | L80: 0.01605078171
A81: Samsø | B81: 6293.44669 | C81: 7703.275223 | D81: 1662.321936 | E81: 23416.71863 | F81: 1554.25219 | G81: 1807.159783 | H81: 2721.590184 | I81: 6400.129042 | J81: 6939.040753 | K81: 3531.061307 | L81: 0.0006673158613
A82: Skanderborg | B82: 94663.33226 | C82: 115869.3698 | D82: 25003.93528 | E82: 352224.262 | F82: 23378.3964 | G82: 27182.5242 | H82: 40936.99503 | I82: 96268.00254 | J82: 104374.0819 | K82: 53112.7133 | L82: 0.01003747965
A83: Aarhus | B83: =$L83*B$100 -> 545034.4707 | C83: 667130.547 | D83: 143962.8872 | E83: 2027969.644 | F83: 134603.6697 | G83: 156506.3508 | H83: 235699.2183 | I83: 554273.535 | J83: 600945.172 | K83: 305802.2456 | L83: 0.05779188497
A84: Ikast-Brande | B84: 67269.95645 | C84: 82339.4579 | D84: 17768.37554 | E84: 250298.7186 | F84: 16613.22996 | G84: 19316.53129 | H84: 29090.77683 | I84: 68410.27232 | J84: 74170.64007 | K84: 37743.12425 | L84: 0.007132865525
A85: Ringkøbing-Skjern | B85: 89315.73827 | C85: 109323.8328 | D85: 23591.4465 | E85: 332326.8814 | F85: 22057.73539 | G85: 25646.96551 | H85: 38624.43722 | I85: 90829.75967 | J85: 98477.92128 | K85: 50112.34114 | L85: 0.009470455816
A86: Hedensted | B86: 71800.53313 | C86: 87884.9532 | D86: 18965.06113 | E86: 267156.1331 | F86: 17732.11745 | G86: 20617.48391 | H86: 31050.01692 | I86: 73017.64835 | J86: 79165.97216 | K86: 40285.09287 | L86: 0.007613258198
A87: Morsø | B87: 33950.00695 | C87: 41555.32894 | D87: 8967.398001 | E87: 126321.5213 | F87: 8384.415606 | G87: 9748.725971 | H87: 14681.62205 | I87: 34525.50505 | J87: 37432.66502 | K87: 19048.31515 | L87: 0.003599836345
A88: Skive | B88: 75012.65912 | C88: 91816.64465 | D88: 19813.49725 | E88: 279107.8432 | F88: 18525.39561 | G88: 21539.84413 | H88: 32439.09527 | I88: 76284.22417 | J88: 82707.60431 | K88: 42087.31895 | L88: 0.007953850996
A89: Thisted | B89: 70958.26306 | C89: 86854.00172 | D89: 18742.58781 | E89: 264022.2063 | F89: 17524.1074 | G89: 20375.62652 | H89: 30685.77868 | I89: 72161.10067 | J89: 78237.30038 | K89: 39812.52078 | L89: 0.007523949397
A90: Viborg | B90: 153794.7617 | C90: 188247.1458 | D90: 40622.63787 | E90: 572241.0687 | F90: 37981.7065 | G90: 44162.08189 | H90: 66508.27986 | I90: 156401.7889 | J90: 169571.3289 | K90: 86289.55783 | L90: 0.01630738908
A91: Brønderslev | B91: 58693.27961 | C91: 71841.47397 | D91: 15502.97174 | E91: 218386.5347 | F91: 14495.10306 | G91: 16853.74321 | H91: 25381.8077 | I91: 59688.20932 | J91: 64714.15095 | K91: 32931.01202 | L91: 0.006223450894
A92: Frederikshavn | B92: 99135.14265 | C92: 121342.9343 | D92: 26185.09861 | E92: 368863.0183 | F92: 24482.77075 | G92: 28466.60212 | H92: 42870.82174 | I92: 100815.6161 | J92: 109304.6194 | K92: 55621.70995 | L92: 0.01051164113
A93: Vesthimmerland | B93: =$L93*B$100 -> 61807.12126 | C93: 75652.86388 | D93: 16325.44749 | E93: 229972.5475 | F93: 15264.10857 | G93: 17747.88114 | H93: 26728.38316 | I93: 62854.83476 | J93: 68147.41657 | K93: 34678.09376 | L93: 0.006553622266
A94: Læsø | B94: 3112.551193 | C94: 3809.810373 | D94: 822.1348933 | E94: 11581.21123 | F94: 768.6868175 | G94: 893.7673766 | H94: 1346.017404 | I94: 3165.313105 | J94: 3431.842778 | K94: 1746.357699 | L94: 0.0003300345394
A95: Rebild | B95: 46299.4833 | C95: 56671.27729 | D95: 12229.33163 | E95: 172271.5749 | F95: 11434.28662 | G95: 13294.87137 | H95: 20022.13183 | I95: 47084.32156 | J95: 51048.97479 | K95: 25977.23029 | L95: 0.00490929392
A96: Mariagerfjord | B96: 67717.74399 | C96: 82887.55671 | D96: 17886.65207 | E96: 251964.8509 | F96: 16723.81718 | G96: 19445.11324 | H96: 29284.42178 | I96: 68865.65046 | J96: 74664.36253 | K96: 37994.3642 | L96: 0.007180345982
A97: Jammerbugt | B97: 61486.19649 | C97: 75260.04704 | D97: 16240.6799 | E97: 228778.4474 | F97: 15184.85184 | G97: 17655.72777 | H97: 26589.5998 | I97: 62528.46988 | J97: 67793.5707 | K97: 34498.03264 | L97: 0.006519593505
A98: Aalborg | B98: 342080.3055 | C98: 418711.5377 | D98: 90355.51161 | E98: 1272815.781 | F98: 84481.3804 | G98: 98228.17305 | H98: 147932.0391 | I98: 347879.0249 | J98: 377171.5718 | K98: 191930.8433 | L98: 0.03627195477
A99: Hjørring | B99: 104688.1608 | C99: 128139.9136 | D99: 27651.84718 | E99: 389524.7432 | F99: 25854.16406 | G99: 30061.14825 | H99: 45272.21488 | I99: 106462.7654 | J99: 115427.277 | K99: 58737.33936 | L99: 0.0111004468
A100: Hele landet | B100: 9430986.217 | C100: 11543671.7 | D100: 2491057.132 | E100: 35090906.7 | F100: 2329110.216 | G100: 2708102.546 | H100: 4078413.75 | I100: 9590854.067 | J100: 10398435.22 | K100: 5291439.2

Sheet Aktivitet 2022 (hidden)
B1: A-dagpenge | C1: Kontant- og uddannelseshjælp | D1: Sygedagpenge | E1: Jobafklaringsforløb | F1: Ressourceforløb | G1: Ledighedsydelse | H1: Fleksjob | I1: Førtidspension | J1: Antal fuldtidsaktiverede | K1: Seniorpension
A2: Hele landet | B2: 62023 | C2: 80029 | D2: 91363 | E2: 22705 | F2: 20249 | G2: 13462 | H2: 90923 | I2: 231859 | J2: 19876 | K2: 19406
A3: Albertslund | B3: 369 | C3: 495 | D3: 494 | E3: 64 | F3: 92 | G3: 67 | H3: 372 | I3: 1166 | J3: 99 | K3: 69
A4: Allerød | B4: 136 | C4: 105 | D4: 322 | E4: 41 | F4: 42 | G4: 43 | H4: 272 | I4: 384 | J4: 33 | K4: 49
A5: Assens | B5: 319 | C5: 618 | D5: 875 | E5: 58 | F5: 130 | G5: 177 | H5: 848 | I5: 2009 | J5: 156 | K5: 192
A6: Ballerup | B6: 462 | C6: 687 | D6: 725 | E6: 152 | F6: 129 | G6: 126 | H6: 621 | I6: 2208 | J6: 139 | K6: 132
A7: Billund | B7: 150 | C7: 240 | D7: 436 | E7: 137 | F7: 118 | G7: 76 | H7: 609 | I7: 1236 | J7: 68 | K7: 106
A8: Bornholm | B8: 317 | C8: 355 | D8: 660 | E8: 240 | F8: 107 | G8: 72 | H8: 985 | I8: 2561 | J8: 185 | K8: 261
A9: Brøndby | B9: 567 | C9: 1007 | D9: 602 | E9: 177 | F9: 91 | G9: 43 | H9: 388 | I9: 1544 | J9: 177 | K9: 138
A10: Brønderslev | B10: 386 | C10: 423 | D10: 637 | E10: 210 | F10: 159 | G10: 89 | H10: 703 | I10: 1621 | J10: 158 | K10: 120
A11: Dragør | B11: 109 | C11: 65 | D11: 180 | E11: 26 | F11: 31 | G11: 23 | H11: 129 | I11: 208 | J11: 30 | K11: 55
A12: Egedal | B12: 322 | C12: 260 | D12: 573 | E12: 176 | F12: 30 | G12: 76 | H12: 433 | I12: 836 | J12: 87 | K12: 83
A13: Esbjerg | B13: 1010 | C13: 1919 | D13: 2029 | E13: 304 | F13: 338 | G13: 309 | H13: 2086 | I13: 5402 | J13: 349 | K13: 455
A14: Fanø | B14: 34 | C14: 16 | D14: 60 | E14: 3 | F14: 4 | G14: 8 | H14: 43 | I14: 97 | J14: 7 | K14: 17
A15: Favrskov | B15: 365 | C15: 362 | D15: 760 | E15: 215 | F15: 103 | G15: 80 | H15: 891 | I15: 1386 | J15: 108 | K15: 110
A16: Faxe | B16: 353 | C16: 483 | D16: 717 | E16: 111 | F16: 126 | G16: 79 | H16: 751 | I16: 1480 | J16: 155 | K16: 195
A17: Fredensborg | B17: 330 | C17: 320 | D17: 554 | E17: 138 | F17: 122 | G17: 54 | H17: 320 | I17: 1289 | J17: 58 | K17: 105
A18: Fredericia | B18: 465 | C18: 1052 | D18: 951 | E18: 264 | F18: 251 | G18: 116 | H18: 814 | I18: 2386 | J18: 143 | K18: 226
A19: Frederiksberg | B19: 1488 | C19: 970 | D19: 1118 | E19: 259 | F19: 239 | G19: 87 | H19: 572 | I19: 2436 | J19: 221 | K19: 159
A20: Frederikshavn | B20: 708 | C20: 788 | D20: 1096 | E20: 231 | F20: 254 | G20: 164 | H20: 1254 | I20: 3181 | J20: 139 | K20: 238
A21: Frederikssund | B21: 314 | C21: 484 | D21: 777 | E21: 239 | F21: 115 | G21: 108 | H21: 539 | I21: 1543 | J21: 116 | K21: 211
A22: Furesø | B22: 333 | C22: 260 | D22: 483 | E22: 132 | F22: 45 | G22: 69 | H22: 379 | I22: 893 | J22: 77 | K22: 89
A23: Faaborg-Midtfyn | B23: 407 | C23: 600 | D23: 823 | E23: 341 | F23: 214 | G23: 153 | H23: 1052 | I23: 2548 | J23: 259 | K23: 215
A24: Gentofte | B24: 646 | C24: 453 | D24: 837 | E24: 91 | F24: 95 | G24: 43 | H24: 418 | I24: 1223 | J24: 110 | K24: 104
A25: Gladsaxe | B25: 572 | C25: 822 | D25: 856 | E25: 286 | F25: 117 | G25: 91 | H25: 633 | I25: 2045 | J25: 228 | K25: 172
A26: Glostrup | B26: 315 | C26: 324 | D26: 383 | E26: 81 | F26: 119 | G26: 62 | H26: 282 | I26: 786 | J26: 74 | K26: 71
A27: Greve | B27: 463 | C27: 378 | D27: 823 | E27: 121 | F27: 190 | G27: 86 | H27: 668 | I27: 1569 | J27: 199 | K27: 133
A28: Gribskov | B28: 254 | C28: 298 | D28: 638 | E28: 163 | F28: 156 | G28: 72 | H28: 530 | I28: 1431 | J28: 178 | K28: 176
A29: Guldborgsund | B29: 502 | C29: 1225 | D29: 1198 | E29: 232 | F29: 126 | G29: 185 | H29: 1082 | I29: 3696 | J29: 229 | K29: 370
A30: Haderslev | B30: 431 | C30: 915 | D30: 963 | E30: 289 | F30: 186 | G30: 200 | H30: 1288 | I30: 2623 | J30: 129 | K30: 313
A31: Halsnæs | B31: 255 | C31: 307 | D31: 597 | E31: 104 | F31: 144 | G31: 106 | H31: 519 | I31: 1389 | J31: 98 | K31: 172
A32: Hedensted | B32: 278 | C32: 415 | D32: 894 | E32: 166 | F32: 140 | G32: 148 | H32: 1163 | I32: 1474 | J32: 236 | K32: 180
A33: Helsingør | B33: 538 | C33: 808 | D33: 880 | E33: 202 | F33: 212 | G33: 107 | H33: 654 | I33: 2529 | J33: 138 | K33: 255
A34: Herlev | B34: 254 | C34: 359 | D34: 491 | E34: 120 | F34: 125 | G34: 53 | H34: 332 | I34: 1053 | J34: 92 | K34: 92
A35: Herning | B35: 603 | C35: 1213 | D35: 1436 | E35: 561 | F35: 216 | G35: 228 | H35: 1754 | I35: 3884 | J35: 315 | K35: 293
A36: Hillerød | B36: 398 | C36: 523 | D36: 759 | E36: 168 | F36: 93 | G36: 105 | H36: 627 | I36: 1664 | J36: 101 | K36: 148
A37: Hjørring | B37: 708 | C37: 596 | D37: 1333 | E37: 98 | F37: 281 | G37: 195 | H37: 1566 | I37: 3283 | J37: 285 | K37: 271
A38: Holbæk | B38: 561 | C38: 927 | D38: 1259 | E38: 252 | F38: 336 | G38: 202 | H38: 1176 | I38: 3314 | J38: 239 | K38: 255
A39: Holstebro | B39: 327 | C39: 712 | D39: 1002 | E39: 297 | F39: 274 | G39: 222 | H39: 1176 | I39: 2137 | J39: 289 | K39: 230
A40: Horsens | B40: 895 | C40: 1145 | D40: 1764 | E40: 445 | F40: 345 | G40: 325 | H40: 2276 | I40: 4277 | J40: 437 | K40: 255
A41: Hvidovre | B41: 638 | C41: 794 | D41: 787 | E41: 290 | F41: 256 | G41: 74 | H41: 627 | I41: 1816 | J41: 163 | K41: 184
A42: Høje-Taastrup | B42: 764 | C42: 919 | D42: 857 | E42: 344 | F42: 166 | G42: 107 | H42: 587 | I42: 1796 | J42: 200 | K42: 140
A43: Hørsholm | B43: 177 | C43: 123 | D43: 231 | E43: 17 | F43: 53 | G43: 39 | H43: 197 | I43: 420 | J43: 58 | K43: 52
A44: Ikast-Brande | B44: 300 | C44: 535 | D44: 761 | E44: 293 | F44: 172 | G44: 104 | H44: 903 | I44: 1623 | J44: 291 | K44: 165
A45: Ishøj | B45: 454 | C45: 402 | D45: 419 | E45: 155 | F45: 55 | G45: 72 | H45: 282 | I45: 1076 | J45: 98 | K45: 63
A46: Jammerbugt | B46: 358 | C46: 487 | D46: 676 | E46: 235 | F46: 102 | G46: 85 | H46: 838 | I46: 1728 | J46: 115 | K46: 153
A47: Kalundborg | B47: 386 | C47: 859 | D47: 915 | E47: 202 | F47: 229 | G47: 131 | H47: 910 | I47: 2999 | J47: 181 | K47: 234
A48: Kerteminde | B48: 200 | C48: 245 | D48: 438 | E48: 125 | F48: 85 | G48: 106 | H48: 514 | I48: 1028 | J48: 46 | K48: 122
A49: Kolding | B49: 862 | C49: 1271 | D49: 1496 | E49: 386 | F49: 418 | G49: 277 | H49: 1772 | I49: 3452 | J49: 153 | K49: 289
A50: København | B50: 11452 | C50: 10198 | D50: 8431 | E50: 1310 | F50: 3465 | G50: 830 | H50: 3531 | I50: 14975 | J50: 1706 | K50: 1088
A51: Køge | B51: 578 | C51: 620 | D51: 1066 | E51: 265 | F51: 339 | G51: 94 | H51: 905 | I51: 2393 | J51: 216 | K51: 195
A52: Langeland | B52: 98 | C52: 216 | D52: 254 | E52: 22 | F52: 43 | G52: 44 | H52: 350 | I52: 780 | J52: 47 | K52: 106
A53: Lejre | B53: 241 | C53: 140 | D53: 441 | E53: 115 | F53: 121 | G53: 46 | H53: 401 | I53: 793 | J53: 68 | K53: 89
A54: Lemvig | B54: 162 | C54: 121 | D54: 332 | E54: 83 | F54: 56 | G54: 61 | H54: 493 | I54: 873 | J54: 73 | K54: 73
A55: Lolland | B55: 342 | C55: 1066 | D55: 731 | E55: 192 | F55: 155 | G55: 160 | H55: 808 | I55: 3376 | J55: 361 | K55: 325
A56: Lyngby-Taarbæk | B56: 495 | C56: 516 | D56: 580 | E56: 154 | F56: 71 | G56: 56 | H56: 385 | I56: 1092 | J56: 127 | K56: 99
A57: Læsø | B57: 28 | C57: 14 | D57: 21 | E57: 6 | F57: 4 | G57: 3 | H57: 35 | I57: 77 | J57: . | K57: 11
A58: Mariagerfjord | B58: 362 | C58: 775 | D58: 721 | E58: 168 | F58: 162 | G58: 59 | H58: 828 | I58: 1931 | J58: 116 | K58: 167
A59: Middelfart | B59: 268 | C59: 380 | D59: 694 | E59: 102 | F59: 131 | G59: 80 | H59: 733 | I59: 1571 | J59: 67 | K59: 153
A60: Morsø | B60: 127 | C60: 267 | D60: 351 | E60: 93 | F60: 109 | G60: 65 | H60: 567 | I60: 1124 | J60: 95 | K60: 82
A61: Norddjurs | B61: 325 | C61: 571 | D61: 714 | E61: 175 | F61: 85 | G61: 114 | H61: 840 | I61: 1902 | J61: 154 | K61: 237
A62: Nordfyns | B62: 298 | C62: 383 | D62: 489 | E62: 202 | F62: 115 | G62: 71 | H62: 538 | I62: 1350 | J62: 96 | K62: 158
A63: Nyborg | B63: 272 | C63: 434 | D63: 542 | E63: 158 | F63: 110 | G63: 127 | H63: 679 | I63: 1924 | J63: 83 | K63: 141
A64: Næstved | B64: 831 | C64: 1457 | D64: 1435 | E64: 255 | F64: 185 | G64: 189 | H64: 1339 | I64: 3741 | J64: 372 | K64: 351
A65: Odder | B65: 164 | C65: 255 | D65: 341 | E65: 142 | F65: 64 | G65: 77 | H65: 549 | I65: 805 | J65: 40 | K65: 80
A66: Odense | B66: 2770 | C66: 3980 | D66: 3145 | E66: 964 | F66: 710 | G66: 590 | H66: 3355 | I66: 9651 | J66: 677 | K66: 651
A67: Odsherred | B67: 251 | C67: 412 | D67: 625 | E67: 133 | F67: 151 | G67: 105 | H67: 691 | I67: 1967 | J67: 100 | K67: 169
A68: Randers | B68: 1038 | C68: 2059 | D68: 1774 | E68: 646 | F68: 570 | G68: 273 | H68: 2170 | I68: 4575 | J68: 459 | K68: 326
A69: Rebild | B69: 269 | C69: 237 | D69: 479 | E69: 121 | F69: 104 | G69: 58 | H69: 521 | I69: 853 | J69: 110 | K69: 104
A70: Ringkøbing-Skjern | B70: 337 | C70: 487 | D70: 744 | E70: 371 | F70: 177 | G70: 170 | H70: 1353 | I70: 2399 | J70: 234 | K70: 218
A71: Ringsted | B71: 362 | C71: 532 | D71: 627 | E71: 160 | F71: 118 | G71: 98 | H71: 460 | I71: 1422 | J71: 109 | K71: 116
A72: Roskilde | B72: 827 | C72: 908 | D72: 1363 | E72: 126 | F72: 333 | G72: 155 | H72: 925 | I72: 2623 | J72: 493 | K72: 253
A73: Rudersdal | B73: 364 | C73: 295 | D73: 606 | E73: 89 | F73: 60 | G73: 74 | H73: 434 | I73: 1096 | J73: 131 | K73: 111
A74: Rødovre | B74: 516 | C74: 645 | D74: 595 | E74: 166 | F74: 237 | G74: 76 | H74: 477 | I74: 1217 | J74: 437 | K74: 145
A75: Samsø | B75: 41 | C75: 21 | D75: 59 | E75: 14 | F75: 16 | G75: 4 | H75: 111 | I75: 167 | J75: 3 | K75: 21
A76: Silkeborg | B76: 806 | C76: 990 | D76: 1554 | E76: 423 | F76: 191 | G76: 295 | H76: 1978 | I76: 3455 | J76: 321 | K76: 303
A77: Skanderborg | B77: 463 | C77: 324 | D77: 965 | E77: 293 | F77: 162 | G77: 199 | H77: 1173 | I77: 1801 | J77: 125 | K77: 164
A78: Skive | B78: 247 | C78: 564 | D78: 796 | E78: 264 | F78: 97 | G78: 141 | H78: 1038 | I78: 2422 | J78: 166 | K78: 187
A79: Slagelse | B79: 827 | C79: 1697 | D79: 1264 | E79: 340 | F79: 195 | G79: 246 | H79: 1166 | I79: 4105 | J79: 289 | K79: 299
A80: Solrød | B80: 174 | C80: 122 | D80: 315 | E80: 88 | F80: 50 | G80: 27 | H80: 262 | I80: 553 | J80: 35 | K80: 58
A81: Sorø | B81: 267 | C81: 326 | D81: 502 | E81: 129 | F81: 144 | G81: 70 | H81: 547 | I81: 1291 | J81: 80 | K81: 162
A82: Stevns | B82: 230 | C82: 253 | D82: 367 | E82: 110 | F82: 71 | G82: 54 | H82: 421 | I82: 864 | J82: 90 | K82: 138
A83: Struer | B83: 155 | C83: 300 | D83: 356 | E83: 88 | F83: 91 | G83: 30 | H83: 437 | I83: 941 | J83: 74 | K83: 102
A84: Svendborg | B84: 616 | C84: 1066 | D84: 947 | E84: 334 | F84: 220 | G84: 172 | H84: 866 | I84: 2693 | J84: 330 | K84: 250
A85: Syddjurs | B85: 405 | C85: 397 | D85: 759 | E85: 294 | F85: 81 | G85: 110 | H85: 927 | I85: 1621 | J85: 97 | K85: 166
A86: Sønderborg | B86: 521 | C86: 988 | D86: 1272 | E86: 191 | F86: 239 | G86: 214 | H86: 1630 | I86: 3825 | J86: 242 | K86: 308
A87: Thisted | B87: 280 | C87: 571 | D87: 740 | E87: 173 | F87: 136 | G87: 137 | H87: 1080 | I87: 2112 | J87: 137 | K87: 238
A88: Tønder | B88: 224 | C88: 478 | D88: 637 | E88: 185 | F88: 242 | G88: 79 | H88: 764 | I88: 1838 | J88: 165 | K88: 209
A89: Tårnby | B89: 480 | C89: 512 | D89: 724 | E89: 114 | F89: 238 | G89: 119 | H89: 546 | I89: 1185 | J89: 132 | K89: 202
A90: Vallensbæk | B90: 187 | C90: 113 | D90: 226 | E90: 38 | F90: 31 | G90: 16 | H90: 141 | I90: 252 | J90: 41 | K90: 26
A91: Varde | B91: 313 | C91: 541 | D91: 830 | E91: 233 | F91: 118 | G91: 112 | H91: 1022 | I91: 2163 | J91: 111 | K91: 166
A92: Vejen | B92: 218 | C92: 506 | D92: 745 | E92: 173 | F92: 153 | G92: 68 | H92: 865 | I92: 1679 | J92: 121 | K92: 176
A93: Vejle | B93: 998 | C93: 1492 | D93: 1808 | E93: 541 | F93: 485 | G93: 261 | H93: 1872 | I93: 4507 | J93: 256 | K93: 319
A94: Vesthimmerlands | B94: 308 | C94: 458 | D94: 720 | E94: 209 | F94: 103 | G94: 74 | H94: 651 | I94: 1809 | J94: 105 | K94: 175
A95: Viborg | B95: 825 | C95: 1302 | D95: 1548 | E95: 466 | F95: 228 | G95: 157 | H95: 2196 | I95: 4522 | J95: 381 | K95: 288
A96: Vordingborg | B96: 423 | C96: 820 | D96: 798 | E96: 138 | F96: 132 | G96: 112 | H96: 716 | I96: 2388 | J96: 258 | K96: 263
A97: Ærø | B97: 30 | C97: 57 | D97: 102 | E97: 11 | F97: 11 | G97: 11 | H97: 114 | I97: 274 | J97: 8 | K97: 27
A98: Aabenraa | B98: 437 | C98: 547 | D98: 910 | E98: 271 | F98: 211 | G98: 91 | H98: 1466 | I98: 2968 | J98: 175 | K98: 252
A99: Aalborg | B99: 3328 | C99: 4360 | D99: 3129 | E99: 569 | F99: 665 | G99: 584 | H99: 2917 | I99: 7735 | J99: 1059 | K99: 535
A100: Aarhus | B100: 5294 | C100: 5695 | D100: 4625 | E100: 1560 | F100: 836 | G100: 960 | H100: 5816 | I100: 14303 | J100: 1252 | K100: 670

Sheet Regnskab 2022 (hidden)
A1: Kommune | B1: Kontant- og uddannelseshjælp | C1: Arbejdsløsheds-dagpenge | D1: Ledighedsydelse | E1: Førtidspension | F1: Ressourceforløb | G1: Jobafklaringsforløb | H1: Driftsudgifter til aktivering mv. | I1: Sygedagpenge | J1: Fleksjob | K1: Seniorpension
A2: Albertslund | B2: 50868 | C2: 56926 | D2: 10325 | E2: 176271 | F2: 12341 | G2: 7772 | H2: 24861 | I2: 56304 | J2: 37215 | K2: 11897
A3: Allerød | B3: 8295 | C3: 19373 | D3: 6320 | E3: 53817 | F3: 4926 | G3: 5020 | H3: 9328 | I3: 29526 | J3: 26868 | K3: 7384
A4: Assens | B4: 61236 | C4: 47969 | D4: 28462 | E4: 249662 | F4: 16863 | G4: 6985 | H4: 29248 | I4: 97491 | J4: 80450 | K4: 29136
A5: Ballerup | B5: 70161 | C5: 69177 | D5: 19572 | E5: 287709 | F5: 16571 | G5: 17471 | H5: 31951 | I5: 73557 | J5: 62271 | K5: 20560
A6: Billund | B6: 23023 | C6: 22354 | D6: 12062 | E6: 161264 | F6: 15255 | G6: 16287 | H6: 18508 | I6: 44535 | J6: 60493 | K6: 16451
A7: Bornholm | B7: 31735 | C7: 47956 | D7: 11103 | E7: 350254 | F7: 13428 | G7: 28210 | H7: 34556 | I7: 72058 | J7: 104566 | K7: 40646
A8: Brøndby | B8: 111925 | C8: 88491 | D8: 6774 | E8: 191385 | F8: 11785 | G8: 20908 | H8: 106465 | I8: 66951 | J8: 38170 | K8: 21433
A9: Brønderslev | B9: 42392 | C9: 58775 | D9: 13873 | E9: 211232 | F9: 20409 | G9: 24328 | H9: 36430 | I9: 66690 | J9: 69498 | K9: 17943
A10: Dragør | B10: 6289 | C10: 17744 | D10: 3474 | E10: 27358 | F10: 4034 | G10: 3083 | H10: 11625 | I10: 18961 | J10: 11535 | K10: 9037
A11: Egedal | B11: 23488 | C11: 48638 | D11: 11844 | E11: 105785 | F11: 3652 | G11: 20410 | H11: 21718 | I11: 53827 | J11: 42468 | K11: 11551
A12: Esbjerg | B12: 192360 | C12: 144680 | D12: 48332 | E12: 708141 | F12: 43611 | G12: 36843 | H12: 80170 | I12: 216716 | J12: 213185 | K12: 70378
A13: Fanø | B13: 1377 | C13: 5665 | D13: 1132 | E13: 12413 | F13: 475 | G13: 355 | H13: 1516 | I13: 5797 | J13: 4125 | K13: 2891
A14: Favrskov | B14: 32899 | C14: 54382 | D14: 12316 | E14: 174773 | F14: 13427 | G14: 26160 | H14: 39841 | I14: 71029 | J14: 86292 | K14: 17244
A15: Faxe | B15: 49477 | C15: 54021 | D15: 12344 | E15: 176318 | F15: 16746 | G15: 13617 | H15: 15852 | I15: 75053 | J15: 72417 | K15: 29123
A16: Fredensborg | B16: 30577 | C16: 49307 | D16: 7643 | E16: 169283 | F16: 15191 | G16: 16384 | H16: 16080 | I16: 57784 | J16: 31417 | K16: 15943
A17: Fredericia | B17: 106743 | C17: 76426 | D17: 17716 | E17: 328553 | F17: 31037 | G17: 30383 | H17: 11878 | I17: 95382 | J17: 75674 | K17: 36451
A18: Frederiksberg | B18: 101760 | C18: 211684 | D18: 12752 | E18: 341187 | F18: 29299 | G18: 29764 | H18: 120056 | I18: 113796 | J18: 55950 | K18: 24242
A19: Frederikshavn | B19: 77935 | C19: 109079 | D19: 25382 | E19: 425585 | F19: 32154 | G19: 26219 | H19: 42067 | I19: 119746 | J19: 121988 | K19: 34207
A20: Frederikssund | B20: 48406 | C20: 47264 | D20: 16959 | E20: 197200 | F20: 14832 | G20: 27938 | H20: 17848 | I20: 78964 | J20: 54187 | K20: 30362
A21: Furesø | B21: 26153 | C21: 50099 | D21: 10788 | E21: 119400 | F21: 5468 | G21: 15008 | H21: 8297 | I21: 45196 | J21: 38069 | K21: 13653
A22: Faaborg-Midtfyn | B22: 62143 | C22: 61499 | D22: 23604 | E22: 299810 | F22: 27642 | G22: 39971 | H22: 39784 | I22: 85421 | J22: 105364 | K22: 32395
A23: Gentofte | B23: 48226 | C23: 97792 | D23: 6642 | E23: 161157 | F23: 12224 | G23: 11276 | H23: 27370 | I23: 89822 | J23: 39313 | K23: 15198
A24: Gladsaxe | B24: 87329 | C24: 84204 | D24: 14270 | E24: 264370 | F24: 14713 | G24: 32848 | H24: 46475 | I24: 83963 | J24: 61735 | K24: 26457
A25: Glostrup | B25: 34039 | C25: 47414 | D25: 9411 | E25: 110282 | F25: 15426 | G25: 9821 | H25: 19473 | I25: 41522 | J25: 31215 | K25: 12064
A26: Greve | B26: 33520 | C26: 70995 | D26: 13323 | E26: 219669 | F26: 23999 | G26: 14349 | H26: 33708 | I26: 86183 | J26: 66399 | K26: 20709
A27: Gribskov | B27: 28502 | C27: 39097 | D27: 11338 | E27: 184611 | F27: 20130 | G27: 18927 | H27: 21739 | I27: 65584 | J27: 50275 | K27: 25566
A28: Guldborgsund | B28: 127277 | C28: 75894 | D28: 28397 | E28: 459194 | F28: 15714 | G28: 28404 | H28: 44473 | I28: 134331 | J28: 111857 | K28: 55609
A29: Haderslev | B29: 95338 | C29: 63499 | D29: 30750 | E29: 342769 | F29: 24383 | G29: 34183 | H29: 9466 | I29: 100447 | J29: 128037 | K29: 49173
A30: Halsnæs | B30: 30086 | C30: 42054 | D30: 16458 | E30: 185271 | F30: 18627 | G30: 12114 | H30: 18384 | I30: 63803 | J30: 52679 | K30: 23709
A31: Hedensted | B31: 38024 | C31: 39819 | D31: 23416 | E31: 166177 | F31: 18569 | G31: 18633 | H31: 40352 | I31: 90875 | J31: 112019 | K31: 27691
A32: Helsingør | B32: 79672 | C32: 82096 | D32: 16318 | E32: 337173 | F32: 27994 | G32: 23545 | H32: 36467 | I32: 88565 | J32: 63262 | K32: 40032
A33: Herlev | B33: 39035 | C33: 38751 | D33: 7930 | E33: 139822 | F33: 15746 | G33: 14966 | H33: 11136 | I33: 51234 | J33: 32148 | K33: 14747
A34: Herning | B34: 115730 | C34: 85906 | D34: 35127 | E34: 489385 | F34: 28420 | G34: 61789 | H34: 95711 | I34: 137836 | J34: 179472 | K34: 42423
A35: Hillerød | B35: 48796 | C35: 59381 | D35: 15859 | E35: 212371 | F35: 10981 | G35: 19585 | H35: 30706 | I35: 74315 | J35: 65313 | K35: 24101
A36: Hjørring | B36: 52126 | C36: 108688 | D36: 29470 | E36: 448736 | F36: 36685 | G36: 11197 | H36: 42806 | I36: 150905 | J36: 157653 | K36: 41787
A37: Holbæk | B37: 86609 | C37: 83405 | D37: 30555 | E37: 409537 | F37: 42558 | G37: 29582 | H37: 44370 | I37: 133375 | J37: 115013 | K37: 38395
A38: Holstebro | B38: 70701 | C38: 45495 | D38: 34789 | E38: 264129 | F38: 35097 | G38: 33529 | H38: 66629 | I38: 98474 | J38: 115275 | K38: 34705
A39: Horsens | B39: 107470 | C39: 130872 | D39: 49944 | E39: 586122 | F39: 44848 | G39: 51566 | H39: 90309 | I39: 180102 | J39: 220130 | K39: 37985
A40: Hvidovre | B40: 80208 | C40: 97055 | D40: 11634 | E40: 268897 | F40: 32266 | G40: 34588 | H40: 72655 | I40: 82915 | J40: 59521 | K40: 28559
A41: Høje-Taastrup | B41: 97488 | C41: 115730 | D41: 16754 | E41: 228208 | F41: 20993 | G41: 42466 | H41: 41270 | I41: 92379 | J41: 60858 | K41: 20785
A42: Hørsholm | B42: 12867 | C42: 26852 | D42: 5913 | E42: 56673 | F42: 6718 | G42: 1820 | H42: 10915 | I42: 22957 | J42: 19402 | K42: 7578
A43: Ikast-Brande | B43: 53224 | C43: 44071 | D43: 15868 | E43: 195238 | F43: 21877 | G43: 34521 | H43: 25227 | I43: 75807 | J43: 91015 | K43: 25562
A44: Ishøj | B44: 38809 | C44: 71181 | D44: 10933 | E44: 148879 | F44: 5863 | G44: 19537 | H44: 23407 | I44: 46911 | J44: 30262 | K44: 10004
A45: Jammerbugt | B45: 48082 | C45: 54285 | D45: 13088 | E45: 211915 | F45: 13052 | G45: 27296 | H45: 27607 | I45: 74372 | J45: 82969 | K45: 22704
A46: Kalundborg | B46: 86157 | C46: 59845 | D46: 19852 | E46: 372908 | F46: 30042 | G46: 23058 | H46: 56770 | I46: 98529 | J46: 88845 | K46: 34313
A47: Kerteminde | B47: 25740 | C47: 30058 | D47: 17710 | E47: 130081 | F47: 10729 | G47: 14585 | H47: 13009 | I47: 45211 | J47: 50829 | K47: 18760
A48: Kolding | B48: 129975 | C48: 123918 | D48: 41625 | E48: 432420 | F48: 54349 | G48: 43724 | H48: 58550 | I48: 150648 | J48: 180940 | K48: 45152
A49: København | B49: 1118182 | C49: 1636269 | D49: 121768 | E49: 2066128 | F49: 428711 | G49: 151612 | H49: 566251 | I49: 883410 | J49: 350926 | K49: 175196
A50: Køge | B50: 60427 | C50: 88531 | D50: 13882 | E50: 328540 | F50: 43634 | G50: 30826 | H50: 45699 | I50: 111719 | J50: 86270 | K50: 30881
A51: Langeland | B51: 22124 | C51: 15341 | D51: 6798 | E51: 96379 | F51: 5605 | G51: 2797 | H51: 6714 | I51: 28112 | J51: 38476 | K51: 16891
A52: Lejre | B52: 11827 | C52: 36227 | D52: 6921 | E52: 95921 | F52: 14214 | G52: 12969 | H52: 10535 | I52: 44318 | J52: 40382 | K52: 11786
A53: Lemvig | B53: 11171 | C53: 23955 | D53: 9500 | E53: 117256 | F53: 6472 | G53: 9729 | H53: 5547 | I53: 32623 | J53: 51700 | K53: 11185
A54: Lolland | B54: 112237 | C54: 54430 | D54: 25712 | E54: 416369 | F54: 20357 | G54: 23156 | H54: 42782 | I54: 85094 | J54: 81576 | K54: 49894
A55: Lyngby-Taarbæk | B55: 55418 | C55: 72873 | D55: 8483 | E55: 140858 | F55: 9067 | G55: 18524 | H55: 28202 | I55: 58572 | J55: 37324 | K55: 14819
A56: Læsø | B56: 1478 | C56: 4198 | D56: 409 | E56: 9254 | F56: 526 | G56: 709 | H56: 195 | I56: 1944 | J56: 3725 | K56: 1829
A57: Mariagerfjord | B57: 80033 | C57: 53391 | D57: 10041 | E57: 215113 | F57: 20492 | G57: 19810 | H57: 33603 | I57: 74757 | J57: 77875 | K57: 23940
A58: Middelfart | B58: 37959 | C58: 38934 | D58: 12112 | E58: 185761 | F58: 16095 | G58: 12275 | H58: 5869 | I58: 70131 | J58: 69762 | K58: 21900
A59: Morsø | B59: 26799 | C59: 18624 | D59: 10003 | E59: 139774 | F59: 13161 | G59: 10711 | H59: 16116 | I59: 35841 | J59: 56640 | K59: 11942
A60: Norddjurs | B60: 57735 | C60: 50030 | D60: 17746 | E60: 249392 | F60: 11196 | G60: 19850 | H60: 24679 | I60: 71815 | J60: 83936 | K60: 37091
A61: Nordfyns | B61: 39565 | C61: 46244 | D61: 11084 | E61: 168062 | F61: 15035 | G61: 24549 | H61: 12814 | I61: 51693 | J61: 53077 | K61: 23466
A62: Nyborg | B62: 42957 | C62: 41025 | D62: 19888 | E62: 236948 | F62: 14758 | G62: 20039 | H62: 4948 | I62: 57148 | J62: 66362 | K62: 21819
A63: Næstved | B63: 147936 | C63: 126692 | D63: 29463 | E63: 446443 | F63: 24291 | G63: 31716 | H63: 73361 | I63: 157065 | J63: 133741 | K63: 55845
A64: Odder | B64: 23661 | C64: 23678 | D64: 12216 | E64: 102221 | F64: 8477 | G64: 16269 | H64: 15311 | I64: 32107 | J64: 54743 | K64: 12282
A65: Odense | B65: 412315 | C65: 387105 | D65: 90713 | E65: 1281440 | F65: 88580 | G65: 114690 | H65: 161740 | I65: 335288 | J65: 325162 | K65: 103033
A66: Odsherred | B66: 39671 | C66: 38450 | D66: 16157 | E66: 237704 | F66: 19034 | G66: 15363 | H66: 27840 | I66: 69587 | J66: 67891 | K66: 25202
A67: Randers | B67: 212343 | C67: 155693 | D67: 42099 | E67: 605990 | F67: 73436 | G67: 76402 | H67: 76338 | I67: 183602 | J67: 208969 | K67: 51562
A68: Rebild | B68: 23497 | C68: 40358 | D68: 8697 | E68: 111710 | F68: 11722 | G68: 13704 | H68: 18952 | I68: 48348 | J68: 48229 | K68: 17076
A69: Ringkøbing-Skjern | B69: 45411 | C69: 50134 | D69: 26005 | E69: 310419 | F69: 22693 | G69: 41805 | H69: 21835 | I69: 69910 | J69: 133830 | K69: 34595
A70: Ringsted | B70: 53322 | C70: 53597 | D70: 15744 | E70: 176611 | F70: 15327 | G70: 18837 | H70: 18132 | I70: 68854 | J70: 45321 | K70: 17440
A71: Roskilde | B71: 87839 | C71: 124394 | D71: 24022 | E71: 340653 | F71: 41568 | G71: 13505 | H71: 72430 | I71: 138911 | J71: 88460 | K71: 40363
A72: Rudersdal | B72: 27100 | C72: 54951 | D72: 11182 | E72: 142683 | F72: 7419 | G72: 9063 | H72: 22815 | I72: 63210 | J72: 43570 | K72: 17305
A73: Rødovre | B73: 70585 | C73: 80872 | D73: 12076 | E73: 160883 | F73: 29893 | G73: 19716 | H73: 52881 | I73: 62628 | J73: 45144 | K73: 23140
A74: Samsø | B74: 1702 | C74: 6612 | D74: 838 | E74: 22989 | F74: 2342 | G74: 1632 | H74: 56 | I74: 5887 | J74: 10900 | K74: 2977
A75: Silkeborg | B75: 100252 | C75: 116140 | D75: 45487 | E75: 474783 | F75: 24219 | G75: 50232 | H75: 68182 | I75: 150159 | J75: 203619 | K75: 46810
A76: Skanderborg | B76: 28004 | C76: 68681 | D76: 31234 | E76: 230207 | F76: 20925 | G76: 33801 | H76: 44482 | I76: 90046 | J76: 115448 | K76: 23947
A77: Skive | B77: 54894 | C77: 34744 | D77: 21966 | E77: 312788 | F77: 12256 | G77: 32443 | H77: 35359 | I77: 78728 | J77: 104885 | K77: 28794
A78: Slagelse | B78: 181297 | C78: 127490 | D78: 36518 | E78: 503827 | F78: 24932 | G78: 40612 | H78: 89959 | I78: 132501 | J78: 120201 | K78: 43514
A79: Solrød | B79: 11424 | C79: 25450 | D79: 4246 | E79: 81640 | F79: 6180 | G79: 10158 | H79: 6548 | I79: 31285 | J79: 26750 | K79: 9149
A80: Sorø | B80: 33173 | C80: 39770 | D80: 10629 | E80: 153683 | F80: 19436 | G80: 15090 | H80: 20808 | I80: 50891 | J80: 55701 | K80: 23952
A81: Stevns | B81: 24886 | C81: 35334 | D81: 8158 | E81: 116934 | F81: 8958 | G81: 13093 | H81: 12091 | I81: 36363 | J81: 41187 | K81: 21498
A82: Struer | B82: 27833 | C82: 23819 | D82: 4491 | E82: 119970 | F82: 12353 | G82: 10373 | H82: 10469 | I82: 37125 | J82: 44065 | K82: 14505
A83: Svendborg | B83: 107481 | C83: 90772 | D83: 25995 | E83: 344325 | F83: 28396 | G83: 40778 | H83: 34288 | I83: 100840 | J83: 85196 | K83: 37779
A84: Syddjurs | B84: 38703 | C84: 60075 | D84: 16642 | E84: 212584 | F84: 10768 | G84: 34474 | H84: 24451 | I84: 76776 | J84: 85396 | K84: 24536
A85: Sønderborg | B85: 89022 | C85: 77712 | D85: 32999 | E85: 493951 | F85: 29746 | G85: 23142 | H85: 46800 | I85: 135531 | J85: 166934 | K85: 46580
A86: Thisted | B86: 55635 | C86: 39281 | D86: 21592 | E86: 247123 | F86: 18048 | G86: 19483 | H86: 27467 | I86: 78068 | J86: 102981 | K86: 35592
A87: Tønder | B87: 50258 | C87: 33758 | D87: 12224 | E87: 221056 | F87: 31439 | G87: 21760 | H87: 18674 | I87: 65130 | J87: 76107 | K87: 30251
A88: Tårnby | B88: 50002 | C88: 77759 | D88: 18122 | E88: 167502 | F88: 30877 | G88: 12937 | H88: 54075 | I88: 75508 | J88: 51173 | K88: 31582
A89: Vallensbæk | B89: 10463 | C89: 28643 | D89: 2499 | E89: 34507 | F89: 3901 | G89: 4495 | H89: 9762 | I89: 21957 | J89: 13319 | K89: 3932
A90: Varde | B90: 53925 | C90: 44213 | D90: 17710 | E90: 276590 | F90: 14966 | G90: 26813 | H90: 37048 | I90: 84016 | J90: 101879 | K90: 25399
A91: Vejen | B91: 50241 | C91: 32091 | D91: 10149 | E91: 214173 | F91: 19994 | G91: 20282 | H91: 28385 | I91: 74912 | J91: 84662 | K91: 26495
A92: Vejle | B92: 151168 | C92: 147378 | D92: 40706 | E92: 541397 | F92: 60332 | G92: 61366 | H92: 92465 | I92: 176593 | J92: 187665 | K92: 49541
A93: Vesthimmerlands | B93: 46450 | C93: 46531 | D93: 11980 | E93: 220047 | F93: 12555 | G93: 25333 | H93: 29882 | I93: 80495 | J93: 62923 | K93: 27054
A94: Viborg | B94: 123685 | C94: 121814 | D94: 24347 | E94: 585934 | F94: 28458 | G94: 53859 | H94: 74479 | I94: 155888 | J94: 219644 | K94: 43813
A95: Vordingborg | B95: 85371 | C95: 64311 | D95: 17568 | E95: 292336 | F95: 16770 | G95: 16721 | H95: 47985 | I95: 89706 | J95: 67868 | K95: 39328
A96: Ærø | B96: 6090 | C96: 4575 | D96: 1665 | E96: 34820 | F96: 1314 | G96: 1019 | H96: 2112 | I96: 11498 | J96: 11066 | K96: 4335
A97: Aabenraa | B97: 49518 | C97: 66126 | D97: 14013 | E97: 391780 | F97: 27331 | G97: 30935 | H97: 37538 | I97: 86561 | J97: 142678 | K97: 38010
A98: Aalborg | B98: 464675 | C98: 472405 | D98: 85871 | E98: 1013467 | F98: 83075 | G98: 65932 | H98: 149689 | I98: 323305 | J98: 276743 | K98: 80833
A99: Aarhus | B99: 570241 | C99: 719998 | D99: 147974 | E99: 1936161 | F99: 106440 | G99: 184772 | H99: 213068 | I99: 445314 | J99: 569486 | K99: 101986
A100: Hele landet | B100: =SUM(B2:B99) -> 8142257 | C100: 9081344 | D100: 2068495 | E100: 29420480 | F100: 2568923 | G100: 2661186 | H100: 4308774 | I100: 9437619 | J100: 8980205 | K100: =SUM(K2:K99) -> 2949369

Sheet Midtvejsvurdering 2023 (hidden)
A1: Kommune | B1: Kontanthjælp- og Uddannelseshjælp | C1: Arbejdsløsheds-dagpenge | D1: Ledighedsydelse | E1: Førtidspension | F1: Ressourceforløb | G1: Jobafklaringsforløb | H1: Driftsudgifter til aktivering | I1: Sygedagpenge | J1: Fleksjob | K1: Seniorpension
A2: Albertslund | B2: 55436.15655 | C2: 65321.69337 | D2: 11644.70168 | E2: 194029.1447 | F2: 10666.62128 | G2: 7644.164462 | H2: 22085.02075 | I2: 53795.93387 | J2: 39606.50396 | K2: 16669.44777
A3: Allerød | B3: 9039.925269 | C3: 22230.21406 | D3: 7127.798029 | E3: 59238.70905 | F3: 4257.659545 | G3: 4937.429953 | H3: 8286.435524 | I3: 28210.762 | J3: 28594.58682 | K3: 10346.07063
A4: Assens | B4: 66735.24579 | C4: 55043.67617 | D4: 32099.90309 | E4: 274813.8056 | F4: 14575.09397 | G4: 6870.109208 | H4: 25982.16833 | I4: 93148.2557 | J4: 85619.86413 | K4: 40823.82367
A5: Ballerup | B5: 76461.74766 | C5: 79379.52399 | D5: 22073.61757 | E5: 316693.7908 | F5: 14322.71139 | G5: 17183.63321 | H5: 28383.35135 | I5: 70280.39762 | J5: 66272.64834 | K5: 28807.58562
A6: Billund | B6: 25090.56052 | C6: 25650.86487 | D6: 13603.71833 | E6: 177510.2881 | F6: 13185.26114 | G6: 16019.1079 | H6: 16441.39673 | I6: 42551.18491 | J6: 64380.39081 | K6: 23050.27194
A7: Bornholm | B7: 34584.93411 | C7: 55028.75887 | D7: 12522.14264 | E7: 385539.7885 | F7: 11606.14137 | G7: 27745.99581 | H7: 30697.47705 | I7: 68848.1707 | J7: 111285.6024 | K7: 56951.02749
A8: Brøndby | B8: 121976.3274 | C8: 101542.0365 | D8: 7639.826558 | E8: 210665.7809 | F8: 10186.05719 | G8: 20564.10069 | H8: 94577.11815 | I8: 63968.66242 | J8: 40622.87401 | K8: 30030.78709
A9: Brønderslev | B9: 46198.97673 | C9: 67443.39191 | D9: 15646.19336 | E9: 232512.2357 | F9: 17639.98653 | G9: 23927.84779 | H9: 32362.22622 | I9: 63719.28868 | J9: 73964.06858 | K9: 25140.7835
A10: Dragør | B10: 6853.778182 | C10: 20360.96208 | D10: 3918.033284 | E10: 30114.1387 | F10: 3486.682624 | G10: 3032.290149 | H10: 10326.9525 | I10: 18116.38076 | J10: 12276.2602 | K10: 12662.16689
A11: Egedal | B11: 25597.31944 | C11: 55811.34319 | D11: 13357.85441 | E11: 116442.1435 | F11: 3156.510893 | G11: 20074.2919 | H11: 19292.96813 | I11: 51429.27203 | J11: 45197.07135 | K11: 16184.65085
A12: Esbjerg | B12: 209634.7227 | C12: 166018.0339 | D12: 54509.60986 | E12: 779481.5516 | F12: 37694.02972 | G12: 36236.99836 | H12: 71218.21783 | I12: 207062.3687 | J12: 226884.658 | K12: 98609.93487
A13: Fanø | B13: 1500.660289 | C13: 6500.49877 | D13: 1276.687875 | E13: 13663.52817 | F13: 410.5538538 | G13: 349.1608832 | H13: 1346.723441 | I13: 5538.772177 | J13: 4390.080044 | K13: 4050.716441
A14: Favrskov | B14: 35853.46612 | C14: 62402.49322 | D14: 13890.18363 | E14: 192380.2311 | F14: 11605.27704 | G14: 25729.71466 | H14: 35392.35396 | I14: 67865.00758 | J14: 91837.28174 | K14: 24161.38164
A15: Faxe | B15: 53920.23901 | C15: 61988.25138 | D15: 13921.76248 | E15: 194080.8797 | F15: 14473.96808 | G15: 13393.02464 | H15: 14081.96569 | I15: 71709.75819 | J15: 77070.64886 | K15: 40805.60876
A16: Fredensborg | B16: 33322.94092 | C16: 56579.01021 | D16: 8619.898787 | E16: 186337.1497 | F16: 13129.94441 | G16: 16114.51242 | H16: 14284.50721 | I16: 55210.00715 | J16: 33435.91388 | K16: 22338.48918
A17: Fredericia | B17: 116328.9624 | C17: 87697.63795 | D17: 19980.3908 | E17: 361652.5554 | F17: 26826.02097 | G17: 29883.25384 | H17: 10551.70253 | I17: 91133.20127 | J17: 80536.94964 | K17: 51073.21515
A18: Frederiksberg | B18: 110898.4684 | C18: 242904.0744 | D18: 14381.91147 | E18: 375559.3479 | F18: 25323.82603 | G18: 29274.43529 | H18: 106650.5471 | I18: 108726.9482 | J18: 59545.44932 | K18: 33966.60947
A19: Frederikshavn | B19: 84933.88497 | C19: 125166.444 | D19: 28626.22936 | E19: 468459.8917 | F19: 27791.47077 | G19: 25787.74421 | H19: 37369.7988 | I19: 114411.905 | J19: 129827.172 | K19: 47929.04092
A20: Frederikssund | B20: 52753.05878 | C20: 54234.69971 | D20: 19126.63398 | E20: 217066.6039 | F20: 12819.65213 | G20: 27478.46973 | H20: 15855.09233 | I20: 75446.54238 | J20: 57669.15572 | K20: 42541.63009
A21: Furesø | B21: 28501.64745 | C21: 57487.81781 | D21: 12166.88056 | E21: 131428.7653 | F21: 4726.1231 | G21: 14761.14517 | H21: 7370.556984 | I21: 43182.74061 | J21: 40515.38356 | K21: 19129.86218
A22: Faaborg-Midtfyn | B22: 67723.69813 | C22: 70569.13925 | D22: 26620.97226 | E22: 330013.8871 | F22: 23891.64132 | G22: 39313.54834 | H22: 35341.71858 | I22: 81615.91481 | J22: 112134.8833 | K22: 45390.16227
A23: Gentofte | B23: 52556.89404 | C23: 112214.7883 | D23: 7490.954827 | E23: 177392.5086 | F23: 10565.49539 | G23: 11090.52991 | H23: 24313.86581 | I23: 85820.87191 | J23: 41839.32528 | K23: 21294.63455
A24: Gladsaxe | B24: 95171.50498 | C24: 96622.77112 | D24: 16093.93637 | E24: 291003.54 | F24: 12716.79758 | G24: 32307.70899 | H24: 41285.60152 | I24: 80222.86153 | J24: 65702.204 | K24: 37070.15043
A25: Glostrup | B25: 37095.84283 | C25: 54406.82236 | D25: 10613.87773 | E25: 121392.1867 | F25: 13333.06052 | G25: 9659.462066 | H25: 17298.64483 | I25: 39672.39923 | J25: 33220.93299 | K25: 16903.43935
A26: Greve | B26: 36530.23448 | C26: 81465.65051 | D26: 15025.89448 | E26: 241799.208 | F26: 20742.90934 | G26: 14112.98454 | H26: 29944.16473 | I26: 82343.97146 | J26: 70665.92117 | K26: 29016.35655
A27: Gribskov | B27: 31061.59735 | C27: 44863.19513 | D27: 12787.17944 | E27: 203209.3449 | F27: 17398.84016 | G27: 18615.68461 | H27: 19311.62327 | I27: 62662.55554 | J27: 53505.76345 | K27: 35821.72831
A28: Guldborgsund | B28: 138707.0004 | C28: 87087.17628 | D28: 32026.59504 | E28: 505454.7775 | F28: 13581.98581 | G28: 27936.80486 | H28: 39507.14484 | I28: 128347.215 | J28: 119045.1354 | K28: 77916.39246
A29: Haderslev | B29: 103899.7463 | C29: 72864.10792 | D29: 34680.34642 | E29: 377300.724 | F29: 21074.80972 | G29: 33620.75062 | H29: 8409.026444 | I29: 95972.58045 | J29: 136264.8918 | K29: 68898.60933
A30: Halsnæs | B30: 32787.84709 | C30: 48256.30631 | D30: 18561.59809 | E30: 203935.8356 | F30: 16099.76134 | G30: 11914.74631 | H30: 16331.24257 | I30: 60960.89032 | J30: 56064.24888 | K30: 33219.79803
A31: Hedensted | B31: 41438.71229 | C31: 45691.67882 | D31: 26408.94282 | E31: 182918.2406 | F31: 16049.63055 | G31: 18326.52038 | H31: 35846.2957 | I31: 86826.96594 | J31: 119217.5458 | K31: 38799.16603
A32: Helsingør | B32: 86826.87475 | C32: 94203.87414 | D32: 18403.70383 | E32: 371140.9638 | F32: 24195.88333 | G32: 23157.72674 | H32: 32395.0948 | I32: 84619.86508 | J32: 67327.33182 | K32: 56090.72313
A33: Herlev | B33: 42540.50427 | C33: 44466.16555 | D33: 8943.58202 | E33: 153908.1475 | F33: 13609.64417 | G33: 14719.83599 | H33: 9892.554245 | I33: 48951.77742 | J33: 34213.88927 | K33: 20662.71718
A34: Herning | B34: 126123.0321 | C34: 98575.78946 | D34: 39616.79768 | E34: 538687.3224 | F34: 24564.08532 | G34: 60772.68115 | H34: 85023.90978 | I34: 131696.0845 | J34: 191005.1989 | K34: 59440.866
A35: Hillerød | B35: 53178.08239 | C35: 68138.76742 | D35: 17886.03622 | E35: 233765.9825 | F35: 9491.140777 | G35: 19262.86168 | H35: 27277.36805 | I35: 71004.63245 | J35: 69510.13283 | K35: 33769.04772
A36: Hjørring | B36: 56807.13015 | C36: 124717.7776 | D36: 33236.74176 | E36: 493943.2028 | F36: 31707.72237 | G36: 11012.82932 | H36: 38026.28206 | I36: 144182.9249 | J36: 167784.0701 | K36: 58549.7364
A37: Holbæk | B37: 94386.84601 | C37: 95705.93114 | D37: 34460.42227 | E37: 450795.1612 | F37: 36783.89666 | G37: 29095.42886 | H37: 39415.64582 | I37: 127433.8001 | J37: 122403.9457 | K37: 53797.04523
A38: Holstebro | B38: 77050.24189 | C38: 52204.79992 | D38: 39235.59583 | E38: 290738.2608 | F38: 30335.17602 | G38: 32977.50775 | H38: 59189.20589 | I38: 94087.46789 | J38: 122682.7823 | K38: 48626.81221
A39: Horsens | B39: 117121.25 | C39: 150173.5702 | D39: 56327.64949 | E39: 645169.9393 | F39: 38763.19839 | G39: 50717.83127 | H39: 80225.0971 | I39: 172079.3422 | J39: 234275.9564 | K39: 53222.5749
A40: Hvidovre | B40: 87411.00976 | C40: 111369.0923 | D40: 13121.01302 | E40: 295986.6055 | F40: 27888.27505 | G40: 34019.08909 | H40: 64542.34273 | I40: 79221.54477 | J40: 63345.92832 | K40: 40015.36176
A41: Høje-Taastrup | B41: 106242.8252 | C41: 132798.3623 | D41: 18895.43167 | E41: 251198.4562 | F41: 18144.75169 | G41: 41767.51004 | H41: 36661.79182 | I41: 88263.97015 | J41: 64768.84638 | K41: 29122.84373
A42: Hørsholm | B42: 14022.50976 | C42: 30812.24942 | D42: 6668.776858 | E42: 62382.43228 | F42: 5806.527979 | G42: 1790.064246 | H42: 9696.231105 | I42: 21934.37862 | J42: 20648.808 | K42: 10617.89318
A43: Ikast-Brande | B43: 58003.73509 | C43: 50570.78222 | D43: 17896.18657 | E43: 214906.9453 | F43: 18908.81402 | G43: 33953.19112 | H43: 22410.15319 | I43: 72430.1712 | J43: 96863.79035 | K43: 35816.12372
A44: Ishøj | B44: 42294.20853 | C44: 81679.0826 | D44: 12330.4139 | E44: 163877.5808 | F44: 5067.531042 | G44: 19215.6512 | H44: 20793.37439 | I44: 44821.3458 | J44: 32206.69146 | K44: 14017.07619
A45: Jammerbugt | B45: 52399.96224 | C45: 62291.18724 | D45: 14760.85769 | E45: 233264.0435 | F45: 11281.15558 | G45: 26847.02948 | H45: 24524.40239 | I45: 71059.09338 | J45: 88300.73968 | K45: 31811.64513
A46: Kalundborg | B46: 93894.25454 | C46: 68671.20015 | D46: 22389.40609 | E46: 410476.0301 | F46: 25966.01869 | G46: 22678.73703 | H46: 50431.06182 | I46: 94140.01791 | J46: 94554.34218 | K46: 48077.56252
A47: Kerteminde | B47: 28051.55834 | C47: 34491.08421 | D47: 19973.62391 | E47: 143185.8058 | F47: 9273.331153 | G47: 14345.10276 | H47: 11556.41507 | I47: 43197.07243 | J47: 54095.3645 | K47: 26285.52073
A48: Kolding | B48: 141647.292 | C48: 142193.9641 | D48: 46945.34699 | E48: 475983.473 | F48: 46975.13979 | G48: 43004.81818 | H48: 52012.30703 | I48: 143937.3729 | J48: 192567.5353 | K48: 63264.5966
A49: København | B49: 1218599.363 | C49: 1877593.049 | D49: 137331.9162 | E49: 2274276.817 | F49: 370545.1647 | G49: 149118.253 | H49: 503023.4136 | I49: 844058.4318 | J49: 373477.1466 | K49: 245475.378
A50: Køge | B50: 65853.59424 | C50: 101587.9358 | D50: 15656.34371 | E50: 361638.2457 | F50: 37713.90917 | G50: 30318.96728 | H50: 40596.24968 | I50: 106742.4683 | J50: 91813.86798 | K50: 43268.82547
A51: Langeland | B51: 24110.8266 | C51: 17603.55722 | D51: 7666.894146 | E51: 106088.5508 | F51: 4844.535475 | G51: 2750.994339 | H51: 5964.314763 | I51: 26859.74874 | J51: 40948.53813 | K51: 23666.77669
A52: Lejre | B52: 12889.11346 | C52: 41569.91508 | D52: 7805.615531 | E52: 105584.4103 | F52: 12285.49995 | G52: 12755.68308 | H52: 9358.661904 | I52: 42343.85119 | J52: 42977.02117 | K52: 16513.92044
A53: Lemvig | B53: 12174.20195 | C53: 27487.9873 | D53: 10714.25337 | E53: 129068.7714 | F53: 5593.904299 | G53: 9568.975302 | H53: 4927.621982 | I53: 31169.80589 | J53: 55022.33655 | K53: 15671.83099
A54: Lolland | B54: 122316.3463 | C54: 62457.57247 | D54: 28998.40869 | E54: 458315.4403 | F54: 17595.04169 | G54: 22775.1251 | H54: 38004.9619 | I54: 81303.48105 | J54: 86818.22295 | K54: 69908.83643
A55: Lyngby-Taarbæk | B55: 60394.76535 | C55: 83620.6261 | D55: 9567.264348 | E55: 155048.5177 | F55: 7836.824827 | G55: 18219.31324 | H55: 25052.96469 | I55: 55962.90563 | J55: 39722.5085 | K55: 20763.59977
A56: Læsø | B56: 1610.730506 | C56: 4817.139247 | D56: 461.2768028 | E56: 10186.27968 | F56: 454.6343729 | G56: 697.3382145 | H56: 173.2263001 | I56: 1857.404366 | J56: 3964.375313 | K56: 2562.698157
A57: Mariagerfjord | B57: 87220.29404 | C57: 61265.33624 | D57: 11324.4019 | E57: 236784.221 | F57: 17711.72542 | G57: 19484.16083 | H57: 29850.88903 | I57: 71426.94353 | J57: 82879.38992 | K57: 33543.46303
A58: Middelfart | B58: 41367.87502 | C58: 44676.15518 | D58: 13660.10913 | E58: 204475.1999 | F58: 13911.29322 | G58: 12073.09814 | H58: 5213.667463 | I58: 67007.00906 | J58: 74245.0337 | K58: 30685.12282
A59: Morsø | B59: 29205.66092 | C59: 21370.74829 | D59: 11281.54489 | E59: 153855.3119 | F59: 11375.36688 | G59: 10534.82315 | H59: 14316.48745 | I59: 34244.45982 | J59: 60279.78999 | K59: 16732.49939
A60: Norddjurs | B60: 62919.84152 | C60: 57408.64139 | D60: 20014.22529 | E60: 274516.6049 | F60: 9676.970416 | G60: 19523.5029 | H60: 21923.34287 | I60: 68615.99515 | J60: 89329.88087 | K60: 51969.94933
A61: Nordfyns | B61: 43118.10046 | C61: 53064.26569 | D61: 12500.71414 | E61: 184993.1419 | F61: 12995.10988 | G61: 24145.21273 | H61: 11383.18877 | I61: 49390.33123 | J61: 56487.82509 | K61: 32879.31927
A62: Nyborg | B62: 46814.71607 | C62: 47075.54493 | D62: 22430.00747 | E62: 260818.9537 | F62: 12755.69216 | G62: 19709.39419 | H62: 4395.506322 | I62: 54602.33782 | J62: 70626.54349 | K62: 30571.6299
A63: Næstved | B63: 161221.264 | C63: 145377.0856 | D63: 33228.84705 | E63: 491419.1981 | F63: 20995.29192 | G63: 31194.32837 | H63: 65169.51077 | I63: 150068.5272 | J63: 142335.4413 | K63: 78247.06319
A64: Odder | B64: 25785.85555 | C64: 27170.13413 | D64: 13777.40201 | E64: 112519.0939 | F64: 7326.873724 | G64: 16001.40397 | H64: 13601.37375 | I64: 30676.79115 | J64: 58260.8853 | K64: 17208.88943
A65: Odense | B65: 449342.5904 | C65: 444196.9243 | D65: 102307.5859 | E65: 1410536.658 | F65: 76561.81131 | G65: 112803.5541 | H65: 143680.1117 | I65: 320352.5695 | J65: 346057.5048 | K65: 144364.3954
A66: Odsherred | B66: 43233.61969 | C66: 44120.77276 | D66: 18222.12544 | E66: 261651.1157 | F66: 16451.54117 | G66: 15110.30605 | H66: 24731.38561 | I66: 66487.24159 | J66: 72253.79982 | K66: 35311.71074
A67: Randers | B67: 231412.2787 | C67: 178655.2789 | D67: 47479.93184 | E67: 667039.5098 | F67: 63472.49013 | G67: 75145.32337 | H67: 67814.09895 | I67: 175423.4344 | J67: 222397.7301 | K67: 72245.9499
A68: Rebild | B68: 25607.12767 | C68: 46310.17288 | D68: 9808.617003 | E68: 122964.0483 | F68: 10131.60479 | G68: 13478.59364 | H68: 16835.81969 | I68: 46194.33452 | J68: 51328.28374 | K68: 23925.98891
A69: Ringkøbing-Skjern | B69: 49489.09541 | C69: 57527.97976 | D69: 29328.85882 | E69: 341691.6741 | F69: 19614.10233 | G69: 41117.38231 | H69: 19396.90391 | I69: 66795.85353 | J69: 142430.1606 | K69: 48472.68602
A70: Ringsted | B70: 58110.53589 | C70: 61501.71802 | D70: 17756.33737 | E70: 194403.3975 | F70: 13247.49246 | G70: 18527.16495 | H70: 16107.38089 | I70: 65786.89313 | J70: 48233.41035 | K70: 24436.00648
A71: Roskilde | B71: 95727.30509 | C71: 142740.1666 | D71: 27092.39941 | E71: 374971.5509 | F71: 35928.21599 | G71: 13282.86684 | H71: 64342.46623 | I71: 132723.1985 | J71: 94144.60138 | K71: 56554.50284
A72: Rudersdal | B72: 29533.69196 | C72: 63055.41181 | D72: 12611.24012 | E72: 157057.3745 | F72: 6412.419035 | G72: 8913.929814 | H72: 20267.47711 | I72: 60394.30556 | J72: 46369.88788 | K72: 24246.85161
A73: Rødovre | B73: 76923.82461 | C73: 92799.35331 | D73: 13619.50775 | E73: 177090.9049 | F73: 25837.23443 | G73: 19391.70696 | H73: 46976.30756 | I73: 59838.23079 | J73: 48045.036 | K73: 32422.5453
A74: Samsø | B74: 1854.846631 | C74: 7587.166437 | D74: 945.1099285 | E74: 25304.99066 | F74: 2024.24658 | G74: 1605.156511 | H74: 49.74704002 | I74: 5624.76312 | J74: 11600.45393 | K74: 4171.215097
A75: Silkeborg | B75: 109255.0438 | C75: 133268.8309 | D75: 51300.97293 | E75: 522614.2668 | F75: 20933.0606 | G75: 49405.77319 | H75: 60568.79791 | I75: 143470.1555 | J75: 216703.9293 | K75: 65587.69859
A76: Skanderborg | B76: 30518.87489 | C76: 78810.37176 | D76: 35226.20944 | E76: 253398.8423 | F76: 18085.97767 | G76: 33245.03384 | H76: 39515.1399 | I76: 86034.89382 | J76: 122866.8996 | K76: 33553.27106
A77: Skive | B77: 59823.70798 | C77: 39868.19581 | D77: 24773.60942 | E77: 344299.3353 | F77: 10593.15375 | G77: 31909.37051 | H77: 31410.81408 | I77: 75221.05502 | J77: 111625.1019 | K77: 40344.63134
A78: Slagelse | B78: 197578.2196 | C78: 146292.7781 | D78: 41185.58994 | E78: 554584.259 | F78: 21549.32354 | G78: 39944.00503 | H78: 79914.1781 | I78: 126598.7325 | J78: 127925.3361 | K78: 60969.51755
A79: Solrød | B79: 12449.9224 | C79: 29203.47638 | D79: 4788.707347 | E79: 89864.69344 | F79: 5341.521719 | G79: 9990.919017 | H79: 5816.850323 | I79: 29891.4072 | J79: 28469.00392 | K79: 12819.09537
A80: Sorø | B80: 36152.07245 | C80: 45635.45209 | D80: 11987.55779 | E80: 169165.5522 | F80: 16798.99937 | G80: 14841.79641 | H80: 18484.57873 | I80: 48624.05638 | J80: 59280.44813 | K80: 33560.27679
A81: Stevns | B81: 27120.86561 | C81: 40545.21157 | D81: 9200.724101 | E81: 128714.332 | F81: 7742.613521 | G81: 12877.6435 | H81: 10740.91895 | I81: 34743.20729 | J81: 43833.75195 | K81: 30121.86166
A82: Struer | B82: 30332.51839 | C82: 27331.92943 | D82: 5065.022302 | E82: 132056.189 | F82: 10676.99317 | G82: 10202.38265 | H82: 9300.031464 | I82: 35471.26394 | J82: 46896.69749 | K82: 20323.63956
A83: Svendborg | B83: 117133.2378 | C83: 104159.4482 | D83: 29317.58066 | E83: 379013.4807 | F83: 24543.34154 | G83: 40107.27463 | H83: 30459.40193 | I83: 96348.07423 | J83: 90670.85077 | K83: 52933.93858
A84: Syddjurs | B84: 42178.68929 | C84: 68935.12155 | D84: 18769.11627 | E84: 234000.4408 | F84: 9307.039785 | G84: 33906.96419 | H84: 21720.80135 | I84: 73356.00701 | J84: 90883.70314 | K84: 34378.54673
A85: Sønderborg | B85: 97016.54338 | C85: 89173.30281 | D85: 37216.80493 | E85: 543713.3169 | F85: 25710.17881 | G85: 22761.35537 | H85: 41574.31202 | I85: 129493.7609 | J85: 177661.4841 | K85: 65265.43474
A86: Thisted | B86: 60631.25285 | C86: 45074.33225 | D86: 24351.80618 | E86: 272019.0181 | F86: 15599.3178 | G86: 19162.5394 | H86: 24400.03479 | I86: 74590.45477 | J86: 109598.7474 | K86: 49869.62974
A87: Tønder | B87: 54771.37603 | C87: 38736.77625 | D87: 13786.42454 | E87: 243325.9392 | F87: 27173.47918 | G87: 21402.08681 | H87: 16588.86117 | I87: 62228.779 | J87: 80997.77501 | K87: 42386.10276
A88: Tårnby | B88: 54492.38617 | C88: 89227.23457 | D88: 20438.28416 | E88: 184376.7256 | F88: 26687.72915 | G88: 12724.20942 | H88: 48036.98552 | I88: 72144.49017 | J88: 54461.47057 | K88: 44251.02963
A89: Vallensbæk | B89: 11402.62063 | C89: 32867.39387 | D89: 2818.412543 | E89: 37983.35346 | F89: 3371.727545 | G89: 4421.065267 | H89: 8671.975084 | I89: 20978.9237 | J89: 14174.9033 | K89: 5509.310636
A90: Varde | B90: 58767.68778 | C90: 50733.725 | D90: 19973.62391 | E90: 304454.6247 | F90: 12935.47153 | G90: 26371.97397 | H90: 32911.22034 | I90: 80273.50064 | J90: 108425.9309 | K90: 35587.73673
A91: Vejen | B91: 54752.84936 | C91: 36823.91986 | D91: 11446.20604 | E91: 235749.5221 | F91: 17281.29211 | G91: 19948.39727 | H91: 25215.53091 | I91: 71575.03904 | J91: 90102.53495 | K91: 37123.39402
A92: Vejle | B92: 164743.5109 | C92: 169113.9466 | D92: 45908.88395 | E92: 595939.1895 | F92: 52146.3897 | G92: 60356.63875 | H92: 82140.35814 | I92: 168726.6509 | J92: 199724.6961 | K92: 69414.23148
A93: Vesthimmerlands | B93: 50621.4019 | C93: 53393.59369 | D93: 13511.2374 | E93: 242215.289 | F93: 10851.5866 | G93: 24916.31733 | H93: 26545.37589 | I93: 76909.34387 | J93: 66966.54706 | K93: 37906.63528
A94: Viborg | B94: 134792.424 | C94: 139779.657 | D94: 27458.93965 | E94: 644962.9996 | F94: 24596.92963 | G94: 52973.11551 | H94: 66162.67489 | I94: 148943.9567 | J94: 233758.7251 | K94: 61388.46055
A95: Vordingborg | B95: 93037.66849 | C95: 73795.8652 | D95: 19813.47401 | E95: 321786.9307 | F95: 14494.71185 | G95: 16445.96937 | H95: 42626.99492 | I95: 85710.03914 | J95: 72229.3218 | K95: 55104.31553
A96: Ærø | B96: 6636.90716 | C96: 5249.740842 | D96: 1877.813879 | E96: 38327.88615 | F96: 1135.721608 | G96: 1002.239267 | H96: 1876.174081 | I96: 10985.82068 | J96: 11777.1214 | K96: 6073.972941
A97: Aabenraa | B97: 53964.92097 | C97: 75878.54928 | D97: 15804.08762 | E97: 431249.2601 | F97: 23622.83659 | G97: 30426.17442 | H97: 33346.50694 | I97: 82705.13342 | J97: 151846.7492 | K97: 53257.60358
A98: Aalborg | B98: 506404.7347 | C98: 542077.3383 | D98: 96846.70009 | E98: 1115567.139 | F98: 71803.70822 | G98: 64847.53619 | H98: 132974.7263 | I98: 308903.3532 | J98: 294527.0113 | K98: 113258.9284
A99: Aarhus | B99: 621450.9976 | C99: 826186.4278 | D99: 166887.4661 | E99: 2131216.496 | F99: 91998.63621 | G99: 181732.8302 | H99: 189276.8272 | I99: 425477.4527 | J99: 606082.2119 | K99: 142897.3943
A100: Hele landet | B100: =SUM(B2:B99) -> 8873465.317 | C100: 10420700 | D100: 2332882.054 | E100: 32384400 | F100: 2220381.553 | G100: 2617414.237 | H100: 3827656.297 | I100: 9017219.516 | J100: 9557289.397 | K100: =SUM(K2:K99) -> 4132500

Sheet Overførselsskøn 2024 (hidden)
A1: Kommune | B1: Kontant- og uddannelseshjælp | C1: Arbejdsløsheds-dagpenge | D1: Ledighedsydelse | E1: Førtidspension | F1: Ressourceforløb | G1: Jobafklaringsforløb | H1: Driftsudgifter til aktivering mv. | I1: Sygedagpenge | J1: Fleksjob | K1: Seniorpension
A2: Albertslund | B2: 58919.21698 | C2: 72360.99141 | D2: 12434.24078 | E2: 210245.0135 | F2: 11188.94929 | G2: 7909.019884 | H2: 23531.85483 | I2: 57218.18685 | J2: 43092.30876 | K2: 21344.31201
A3: Allerød | B3: 9607.904869 | C3: 24625.82101 | D3: 7611.080073 | E3: 64189.54843 | F3: 4466.150571 | G3: 5108.502292 | H3: 8829.296562 | I3: 30005.40255 | J3: 31111.22267 | K3: 13247.57501
A4: Assens | B4: 70928.22936 | C4: 60975.37851 | D4: 34276.35459 | E4: 297781.2037 | F4: 15288.81386 | G4: 7108.145122 | H4: 27684.31238 | I4: 99073.92466 | J4: 93155.34704 | K4: 52272.66325
A5: Ballerup | B5: 81265.84852 | C5: 87933.74386 | D5: 23570.26253 | E5: 343161.2834 | F5: 15024.0725 | G5: 17779.01266 | H5: 30242.80172 | I5: 74751.31732 | J5: 72105.36501 | K5: 36886.53063
A6: Billund | B6: 26667.00347 | C6: 28415.09331 | D6: 14526.08352 | E6: 192345.6034 | F6: 13830.92305 | G6: 16574.13881 | H6: 17518.50566 | I6: 45258.09803 | J6: 70046.56816 | K6: 29514.60678
A7: Bornholm | B7: 36757.90971 | C7: 60958.85367 | D7: 13371.17437 | E7: 417761.0438 | F7: 12174.47622 | G7: 28707.34057 | H7: 32708.53044 | I7: 73227.97862 | J7: 121079.9505 | K7: 72922.66167
A8: Brøndby | B8: 129640.1148 | C8: 112484.5675 | D8: 8157.825382 | E8: 228272.0465 | F8: 10684.85272 | G8: 21276.60676 | H8: 100773.0552 | I8: 68038.05818 | J8: 44198.13047 | K8: 38452.77291
A9: Brønderslev | B9: 49101.66404 | C9: 74711.33173 | D9: 16707.04333 | E9: 251944.3056 | F9: 18503.78949 | G9: 24756.90115 | H9: 34482.34067 | I9: 67772.82042 | J9: 80473.71421 | K9: 32191.39198
A10: Dragør | B10: 7284.401895 | C10: 22555.13178 | D10: 4183.68547 | E10: 32630.90968 | F10: 3657.420098 | G10: 3137.353101 | H10: 11003.49191 | I10: 19268.86262 | J10: 13356.70513 | K10: 16213.20901
A11: Egedal | B11: 27205.60212 | C11: 61825.77206 | D11: 14263.54943 | E11: 126173.7254 | F11: 3311.080367 | G11: 20769.82705 | H11: 20556.88923 | I11: 54700.96873 | J11: 49174.90712 | K11: 20723.55619
A12: Esbjerg | B12: 222806.0977 | C12: 183908.7278 | D12: 58205.494 | E12: 844626.2522 | F12: 39539.84827 | G12: 37492.53983 | H12: 75883.86635 | I12: 220234.7361 | J12: 246852.9852 | K12: 126264.6037
A13: Fanø | B13: 1594.946957 | C13: 7201.01564 | D13: 1363.250418 | E13: 14805.44929 | F13: 430.6580433 | G13: 361.2586282 | H13: 1434.949999 | I13: 5891.123707 | J13: 4776.455022 | K13: 5186.719847
A14: Favrskov | B14: 38106.14373 | C14: 69127.20787 | D14: 14831.97186 | E14: 208458.2929 | F14: 12173.56957 | G14: 26621.1992 | H14: 37710.97816 | I14: 72182.27113 | J14: 99919.96528 | K14: 30937.3217
A15: Faxe | B15: 57308.05415 | C15: 68668.32585 | D15: 14865.69184 | E15: 210301.0722 | F15: 15182.73599 | G15: 13857.06688 | H15: 15004.50355 | I15: 76271.60731 | J15: 83853.70748 | K15: 52249.34005
A16: Fredensborg | B16: 35416.62534 | C16: 62676.16561 | D16: 9204.348892 | E16: 201910.1646 | F16: 13772.89755 | G16: 16672.84892 | H16: 15220.31397 | I16: 58722.21705 | J16: 36378.63938 | K16: 28603.20806
A17: Fredericia | B17: 123637.9252 | C17: 97148.24737 | D17: 21335.1099 | E17: 391877.4496 | F17: 28139.64987 | G17: 30918.65043 | H17: 11242.96575 | I17: 96930.68162 | J17: 87625.08057 | K17: 65396.44591
A18: Frederiksberg | B18: 117866.2326 | C18: 269080.2815 | D18: 15357.04005 | E18: 406946.4939 | F18: 26563.89476 | G18: 30288.7375 | H18: 113637.4387 | I18: 115643.6628 | J18: 64786.09903 | K18: 43492.37721
A19: Frederikshavn | B19: 90270.29125 | C19: 138654.8253 | D19: 30567.15734 | E19: 507611.1446 | F19: 29152.37626 | G19: 26681.23936 | H19: 39817.96939 | I19: 121690.2707 | J19: 141253.3807 | K19: 61370.50356
A20: Frederikssund | B20: 56067.53985 | C20: 60079.22387 | D20: 20423.46629 | E20: 235207.8145 | F20: 13447.41073 | G20: 28430.54523 | H20: 16893.79128 | I20: 80246.10874 | J20: 62744.6711 | K20: 54472.21999
A21: Furesø | B21: 30292.40941 | C21: 63682.90954 | D21: 12991.82466 | E21: 142412.8451 | F21: 4957.554065 | G21: 15272.59012 | H21: 7853.416978 | I21: 45929.83044 | J21: 44081.17969 | K21: 24494.73748
A22: Faaborg-Midtfyn | B22: 71978.78629 | C22: 78173.92072 | D22: 28425.93893 | E22: 357594.5987 | F22: 25061.57818 | G22: 40675.68628 | H22: 37657.02556 | I22: 86807.94862 | J22: 122003.9774 | K22: 58119.60893
A23: Gentofte | B23: 55859.05005 | C23: 124307.453 | D23: 7998.859785 | E23: 192217.9805 | F23: 11082.87141 | G23: 11474.79519 | H23: 25906.716 | I23: 91280.406 | J23: 45521.64274 | K23: 27266.60956
A24: Gladsaxe | B24: 101151.1422 | C24: 107035.1846 | D24: 17185.1444 | E24: 315323.9853 | F24: 13339.51956 | G24: 33427.10823 | H24: 43990.30421 | I24: 85326.27562 | J24: 71484.71534 | K24: 47466.2909
A25: Glostrup | B25: 39426.57912 | C25: 60269.89507 | D25: 11333.52446 | E25: 131537.4655 | F25: 13985.95995 | G25: 9994.143628 | H25: 18431.9138 | I25: 42196.17708 | J25: 36144.73782 | K25: 21643.92536
A26: Greve | B26: 38825.43354 | C26: 90244.6788 | D26: 16044.68668 | E26: 262007.431 | F26: 21758.65765 | G26: 14601.97199 | H26: 31905.86712 | I26: 87582.32093 | J26: 76885.29382 | K26: 37153.85033
A27: Gribskov | B27: 33013.20127 | C27: 49697.81262 | D27: 13654.18131 | E27: 220192.4434 | F27: 18250.83455 | G27: 19260.68185 | H27: 20576.7665 | I27: 66648.86272 | J27: 58214.85485 | K27: 45867.75496
A28: Guldborgsund | B28: 147421.9781 | C28: 96472.00018 | D28: 34198.07608 | E28: 547697.8558 | F28: 14247.07472 | G28: 28904.76078 | H28: 42095.33726 | I28: 136512.0819 | J28: 129522.4071 | K28: 99767.65962
A29: Haderslev | B29: 110427.7799 | C29: 80716.20338 | D29: 37031.75826 | E29: 408833.4044 | F29: 22106.81067 | G29: 34785.6442 | H29: 8959.918659 | I29: 102077.9201 | J29: 148257.6901 | K29: 88220.88378
A30: Halsnæs | B30: 34847.9115 | C30: 53456.57754 | D30: 19820.11959 | E30: 220979.6501 | F30: 16888.14184 | G30: 12327.56908 | H30: 17401.13508 | I30: 64838.94529 | J30: 60998.51494 | K30: 42536.1262
A31: Hedensted | B31: 44042.3116 | C31: 50615.57666 | D31: 28199.53338 | E31: 198205.5222 | F31: 16835.55622 | G31: 18961.49865 | H31: 38194.65854 | I31: 92350.50316 | J31: 129709.9915 | K31: 49680.20037
A32: Helsingør | B32: 92282.21781 | C32: 104355.6187 | D32: 19651.51972 | E32: 402158.846 | F32: 25380.71845 | G32: 23960.09691 | H32: 34517.36253 | I32: 90002.99656 | J32: 73252.87215 | K32: 71821.08921
A33: Herlev | B33: 45213.3293 | C33: 49257.99772 | D33: 9549.978635 | E33: 166770.9282 | F33: 14276.08747 | G33: 15229.84966 | H33: 10540.63535 | I33: 52065.86717 | J33: 37225.0851 | K33: 26457.47408
A34: Herning | B34: 134047.3575 | C34: 109198.6672 | D34: 42302.91293 | E34: 583707.7905 | F34: 25766.95072 | G34: 62878.33628 | H34: 90593.99691 | I34: 140073.9912 | J34: 207815.742 | K34: 76110.76308
A35: Hillerød | B35: 56519.26775 | C35: 75481.64338 | D35: 19098.75299 | E35: 253302.8335 | F35: 9955.907313 | G35: 19930.28235 | H35: 29064.36323 | I35: 75521.62468 | J35: 75627.78348 | K35: 43239.41025
A36: Hjørring | B36: 60376.32902 | C36: 138157.809 | D36: 35490.27369 | E36: 535224.2081 | F36: 33260.40067 | G36: 11394.40242 | H36: 40517.46019 | I36: 153355.1877 | J36: 182550.9003 | K36: 74969.72059
A37: Holbæk | B37: 100317.183 | C37: 106019.5427 | D37: 36796.92272 | E37: 488470.0949 | F37: 38585.14738 | G37: 30103.52885 | H37: 41997.84396 | I37: 135540.5597 | J37: 133176.8294 | K37: 68884.16067
A38: Holstebro | B38: 81891.31792 | C38: 57830.57486 | D38: 41895.86466 | E38: 315036.5356 | F38: 31820.64283 | G38: 34120.11422 | H38: 63066.80967 | I38: 100072.8853 | J38: 133480.2067 | K38: 62263.96135
A39: Horsens | B39: 124479.9923 | C39: 166356.8083 | D39: 60146.80113 | E39: 699089.6279 | F39: 40661.37248 | G39: 52475.10542 | H39: 85480.80437 | I39: 183026.2484 | J39: 254894.7985 | K39: 68148.58297
A40: Hvidovre | B40: 92903.0541 | C40: 123370.6219 | D40: 14010.64961 | E40: 320723.5075 | F40: 29253.9209 | G40: 35197.78432 | H40: 68770.64126 | I40: 84261.25964 | J40: 68921.06167 | K40: 51237.47219
A41: Høje-Taastrup | B41: 112918.0747 | C41: 147109.1862 | D41: 20176.5879 | E41: 272192.2156 | F41: 19033.27222 | G41: 43214.67298 | H41: 39063.57945 | I41: 93878.92304 | J41: 70469.21206 | K41: 37290.20132
A42: Hørsholm | B42: 14903.54574 | C42: 34132.68702 | D42: 7120.93615 | E42: 67596.00644 | F42: 6090.864705 | G42: 1852.086488 | H42: 10331.45068 | I42: 23329.74417 | J42: 22466.12857 | K42: 13595.62885
A43: Ikast-Brande | B43: 61648.11679 | C43: 56020.4696 | D43: 19109.59155 | E43: 232867.6637 | F43: 19834.7495 | G43: 35129.60311 | H43: 23878.28735 | I43: 77037.84972 | J43: 105388.8615 | K43: 45860.5786
A44: Ishøj | B44: 44951.55878 | C44: 90481.11109 | D44: 13166.44595 | E44: 177573.5508 | F44: 5315.680227 | G44: 19881.43611 | H44: 22155.59012 | I44: 47672.67625 | J44: 35041.23197 | K44: 17948.09593
A45: Jammerbugt | B45: 55692.25822 | C45: 69003.90716 | D45: 15761.67975 | E45: 252758.9452 | F45: 11833.57638 | G45: 27777.22681 | H45: 26131.04526 | I45: 75579.55016 | J45: 96072.1689 | K45: 40733.06378
A46: Kalundborg | B46: 99793.64193 | C46: 76071.45296 | D46: 23907.46228 | E46: 444781.3168 | F46: 27237.53461 | G46: 23464.51113 | H46: 53734.902 | I46: 100128.7783 | J46: 102876.1567 | K46: 61560.67731
A47: Kerteminde | B47: 29814.04115 | C47: 38207.96613 | D47: 21327.88419 | E47: 155152.4732 | F47: 9727.431888 | G47: 14842.13266 | H47: 12313.49903 | I47: 45945.07399 | J47: 58856.34723 | K47: 33657.16511
A48: Kolding | B48: 150547.0085 | C48: 157517.2915 | D48: 50128.3557 | E48: 515763.5047 | F48: 49275.43999 | G48: 44494.85144 | H48: 55419.73775 | I48: 153094.0149 | J48: 209515.581 | K48: 81006.84003
A49: København | B49: 1295164.109 | C49: 2079929.155 | D49: 146643.3542 | E49: 2464348.13 | F49: 388690.1903 | G49: 154284.9103 | H49: 535977.4879 | I49: 897753.5956 | J49: 406347.2134 | K49: 314317.7344
A50: Køge | B50: 69991.18355 | C50: 112535.4132 | D50: 16717.88189 | E50: 391861.944 | F50: 39560.70118 | G50: 31369.46049 | H50: 43255.79155 | I50: 113532.9393 | J50: 99894.49085 | K50: 55403.35371
A51: Langeland | B51: 25625.71276 | C51: 19500.57916 | D51: 8186.728217 | E51: 114954.8375 | F51: 5081.764911 | G51: 2846.310939 | H51: 6355.049005 | I51: 28568.44396 | J51: 44552.45659 | K51: 30304.00724
A52: Lejre | B52: 13698.93802 | C52: 46049.637 | D52: 8334.85525 | E52: 114408.5637 | F52: 12887.10195 | G52: 13197.64268 | H52: 9971.766646 | I52: 45037.57468 | J52: 46759.46829 | K52: 21145.1678
A53: Lemvig | B53: 12939.10853 | C53: 30450.19059 | D53: 11440.70581 | E53: 139855.6161 | F53: 5867.829171 | G53: 9900.521674 | H53: 5250.440398 | I53: 33152.68737 | J53: 59864.90294 | K53: 20066.91853
A54: Lolland | B54: 130001.4971 | C54: 69188.22265 | D54: 30964.57133 | E54: 496618.8768 | F54: 18456.64376 | G54: 23564.23886 | H54: 40494.7433 | I54: 86475.63924 | J54: 94459.17452 | K54: 89514.42408
A55: Lyngby-Taarbæk | B55: 64189.37577 | C55: 92631.88222 | D55: 10215.94814 | E55: 168006.6041 | F55: 8220.582061 | G55: 18850.57699 | H55: 26694.23474 | I55: 59523.01151 | J55: 43218.52297 | K55: 26586.64871
A56: Læsø | B56: 1711.932899 | C56: 5336.251308 | D56: 492.552492 | E56: 11037.59186 | F56: 476.8971174 | G56: 721.4996266 | H56: 184.574703 | I56: 1975.563996 | J56: 4313.283626 | K56: 3281.394189
A57: Mariagerfjord | B57: 92700.35568 | C57: 67867.50681 | D57: 12092.22389 | E57: 256573.3194 | F57: 18579.04131 | G57: 20159.24909 | H57: 31806.48074 | I57: 75970.80126 | J57: 90173.68117 | K57: 42950.56144
A58: Middelfart | B58: 43967.02362 | C58: 49490.61658 | D58: 14586.29776 | E58: 221564.0914 | F58: 14592.5078 | G58: 12491.4075 | H58: 5555.225292 | I58: 71269.69064 | J58: 80779.40733 | K58: 39290.61385
A59: Morsø | B59: 31040.65613 | C59: 23673.73615 | D59: 12046.46107 | E59: 166713.6768 | F59: 11932.40107 | G59: 10899.83427 | H59: 15254.3893 | I59: 36422.93682 | J59: 65585.06969 | K59: 21425.04615
A60: Norddjurs | B60: 66873.10279 | C60: 63595.20079 | D60: 21371.23844 | E60: 297459.1646 | F60: 10150.83674 | G60: 20199.95428 | H60: 23359.5851 | I60: 72981.03312 | J60: 97191.88575 | K60: 66544.66476
A61: Nordfyns | B61: 45827.21593 | C61: 58782.65971 | D61: 13348.29296 | E61: 200453.8322 | F61: 13631.46038 | G61: 24981.79737 | H61: 12128.92433 | I61: 52532.31978 | J61: 61459.37047 | K61: 42100.16185
A62: Nyborg | B62: 49756.09035 | C62: 52148.57311 | D62: 23950.81653 | E62: 282616.7405 | F62: 13380.31874 | G62: 20392.28634 | H62: 4683.464771 | I62: 58075.89056 | J62: 76842.45047 | K62: 39145.2924
A63: Næstved | B63: 171350.8155 | C63: 161043.4375 | D63: 35481.8437 | E63: 532489.2612 | F63: 22023.39901 | G63: 32275.15114 | H63: 69438.89634 | I63: 159615.2053 | J63: 154862.5142 | K63: 100191.0653
A64: Odder | B64: 27405.98398 | C64: 30098.08444 | D64: 14711.54338 | E64: 121922.8093 | F64: 7685.659438 | G64: 16555.82147 | H64: 14492.42706 | I64: 32628.30927 | J64: 63388.47934 | K64: 22035.03741
A65: Odense | B65: 477574.8398 | C65: 492065.165 | D65: 109244.289 | E65: 1528421.409 | F65: 80310.92522 | G65: 116711.9777 | H65: 153092.8844 | I65: 340731.945 | J65: 376514.3437 | K65: 184850.6766
A66: Odsherred | B66: 45949.99326 | C66: 48875.38418 | D66: 19457.62986 | E66: 283518.4499 | F66: 17257.14778 | G66: 15633.84875 | H66: 26351.58837 | I66: 70716.85792 | J66: 78612.92313 | K66: 45214.70549
A67: Randers | B67: 245951.9402 | C67: 197907.8073 | D67: 50699.18671 | E67: 722786.9345 | F67: 66580.64015 | G67: 77748.96258 | H67: 72256.73681 | I67: 186583.0766 | J67: 241971.1587 | K67: 92506.96947
A68: Rebild | B68: 27216.02661 | C68: 51300.72184 | D68: 10473.66509 | E68: 133240.6945 | F68: 10627.73386 | G68: 13945.60068 | H68: 17938.76806 | I68: 49133.00827 | J68: 55845.73315 | K68: 30635.91425
A69: Ringkøbing-Skjern | B69: 52598.50127 | C69: 63727.39949 | D69: 31317.42679 | E69: 370248.3497 | F69: 20574.57469 | G69: 42542.01959 | H69: 20667.63405 | I69: 71045.10235 | J69: 154965.5698 | K69: 62066.61124
A70: Ringsted | B70: 61761.6279 | C70: 68129.36192 | D70: 18960.26023 | E70: 210650.5442 | F70: 13896.20175 | G70: 19169.09516 | H70: 17162.60777 | I70: 69971.95648 | J70: 52478.4771 | K70: 31288.96372
A71: Roskilde | B71: 101741.8633 | C71: 158122.3547 | D71: 28929.32999 | E71: 406309.5721 | F71: 37687.56536 | G71: 13743.09232 | H71: 68557.67045 | I71: 141166.4456 | J71: 102430.3542 | K71: 72414.93364
A72: Rudersdal | B72: 31389.2974 | C72: 69850.48728 | D72: 13466.31288 | E72: 170183.3499 | F72: 6726.425312 | G72: 9222.780135 | H72: 21595.24025 | I72: 64236.31697 | J72: 50450.94432 | K72: 31046.76131
A73: Rødovre | B73: 81756.95783 | C73: 102799.7417 | D73: 14542.94351 | E73: 191891.1705 | F73: 27102.44398 | G73: 20063.59187 | H73: 50053.81984 | I73: 63644.86726 | J73: 52273.52376 | K73: 41515.28788
A74: Samsø | B74: 1971.38687 | C74: 8404.786481 | D74: 1009.190681 | E74: 27419.83999 | F74: 2123.370816 | G74: 1660.77206 | H74: 53.00606855 | I74: 5982.585003 | J74: 12621.42054 | K74: 5341.011755
A75: Silkeborg | B75: 116119.5514 | C75: 147630.3542 | D75: 54779.30368 | E75: 566291.439 | F75: 21958.12032 | G75: 51117.58708 | H75: 64536.78154 | I75: 152597.0752 | J75: 235776.2412 | K75: 83981.44449
A76: Skanderborg | B76: 32436.3795 | C76: 87303.25776 | D76: 37614.63212 | E76: 274576.4977 | F76: 18971.62012 | G76: 34396.90956 | H76: 42103.8561 | I76: 91508.043 | J76: 133680.5283 | K76: 42963.12009
A77: Skive | B77: 63582.4388 | C77: 44164.53441 | D77: 26453.32039 | E77: 373073.9446 | F77: 11111.88417 | G77: 33014.9681 | H77: 33468.59961 | I77: 80006.2769 | J77: 121449.3297 | K77: 51659.0838
A78: Slagelse | B78: 209992.0831 | C78: 162057.8083 | D78: 43978.07312 | E78: 600933.3039 | F78: 22604.56071 | G78: 41327.98707 | H78: 85149.51644 | I78: 134652.3689 | J78: 139184.1625 | K78: 78068.1174
A79: Solrød | B79: 13232.15253 | C79: 32350.54688 | D79: 5113.393353 | E79: 97375.081 | F79: 5603.087806 | G79: 10337.08492 | H79: 6197.923873 | I79: 31792.96277 | J79: 30974.58711 | K79: 16414.14731
A80: Sorø | B80: 38423.51154 | C80: 50553.29074 | D80: 12800.34337 | E80: 183303.4612 | F80: 17621.62048 | G80: 15356.03578 | H80: 19695.54061 | I80: 51717.29801 | J80: 64497.77483 | K80: 42972.09054
A81: Stevns | B81: 28824.87288 | C81: 44914.50779 | D81: 9824.555575 | E81: 139471.5546 | F81: 8121.757373 | G81: 13323.82879 | H81: 11444.57812 | I81: 36953.41234 | J81: 47691.60073 | K81: 38569.38888
A82: Struer | B82: 32238.31419 | C82: 30277.31536 | D82: 5408.443134 | E82: 143092.7054 | F82: 11199.82907 | G82: 10555.87535 | H82: 9909.295208 | I82: 37727.78465 | J82: 51024.11892 | K82: 26023.30383
A83: Svendborg | B83: 124492.7334 | C83: 115384.0409 | D83: 31305.38394 | E83: 410689.3038 | F83: 25745.19115 | G83: 41496.91364 | H83: 32454.85855 | I83: 102477.3011 | J83: 98650.87565 | K83: 67779.00003
A84: Syddjurs | B84: 44828.78145 | C84: 76363.81546 | D84: 20041.708 | E84: 253556.8866 | F84: 9762.79118 | G84: 35081.77451 | H84: 23143.77468 | I84: 78022.58301 | J84: 98882.46135 | K84: 44019.84025
A85: Sønderborg | B85: 103112.1045 | C85: 98782.93512 | D85: 39740.19483 | E85: 589153.8294 | F85: 26969.16665 | G85: 23549.99204 | H85: 44297.92872 | I85: 137731.5658 | J85: 193297.6346 | K85: 83568.80334
A86: Thisted | B86: 64440.72181 | C86: 49931.70263 | D86: 26002.91787 | E86: 294752.8435 | F86: 16363.19235 | G86: 19826.4841 | H86: 25998.53009 | I86: 79335.56073 | J86: 119244.6338 | K86: 63855.32092
A87: Tønder | B87: 58212.66822 | C87: 42911.18905 | D87: 14721.17766 | E87: 263661.7578 | F87: 28504.12258 | G87: 22143.62747 | H87: 17675.63079 | I87: 66187.49129 | J87: 88126.4636 | K87: 54273.07578
A88: Tårnby | B88: 57916.1494 | C88: 98842.67876 | D88: 21824.04954 | E88: 199785.8993 | F88: 27994.58611 | G88: 13165.07852 | H88: 51183.98495 | I88: 76733.99497 | J88: 59254.67463 | K88: 56661.01217
A89: Vallensbæk | B89: 12119.04866 | C89: 36409.30115 | D89: 3009.507769 | E89: 41157.78932 | F89: 3536.835846 | G89: 4574.246575 | H89: 9240.093593 | I89: 22313.50754 | J89: 15422.44956 | K89: 7054.369573
A90: Varde | B90: 62460.06872 | C90: 56200.97167 | D90: 21327.88419 | E90: 329899.2363 | F90: 13568.90163 | G90: 27285.71155 | H90: 35067.3005 | I90: 85380.13616 | J90: 117968.5967 | K90: 45568.14161
A91: Vejen | B91: 58192.97752 | C91: 40792.19646 | D91: 12222.28665 | E91: 255452.1463 | F91: 18127.53035 | G91: 20639.57042 | H91: 26867.451 | I91: 76128.31794 | J91: 98032.54184 | K91: 47534.46639
A92: Vejle | B92: 175094.3657 | C92: 187338.2671 | D92: 49021.61795 | E92: 645744.4479 | F92: 54699.91804 | G92: 62447.87882 | H92: 87521.53801 | I92: 179460.2741 | J92: 217302.6501 | K92: 88881.10962
A93: Vesthimmerlands | B93: 53801.95071 | C93: 59147.47728 | D93: 14427.33216 | E93: 262458.2857 | F93: 11382.97207 | G93: 25779.61924 | H93: 28284.41679 | I93: 81801.96701 | J93: 72860.33439 | K93: 48537.36379
A94: Viborg | B94: 143261.4483 | C94: 154842.8101 | D94: 29320.72255 | E94: 698865.3933 | F94: 25801.40336 | G94: 54808.53087 | H94: 70497.12464 | I94: 158419.0948 | J94: 254332.0453 | K94: 78604.5509
A95: Vordingborg | B95: 98883.23648 | C95: 81748.37014 | D95: 21156.87575 | E95: 348680.0794 | F95: 15204.49555 | G95: 17015.79021 | H95: 45419.57499 | I95: 91162.52255 | J95: 78586.29077 | K95: 70558.04847
A96: Ærø | B96: 7053.90484 | C96: 5815.47159 | D96: 2005.134228 | E96: 41531.11612 | F96: 1191.336145 | G96: 1036.964908 | H96: 1999.086014 | I96: 11684.6887 | J96: 12813.63667 | K96: 7777.388632
A97: Aabenraa | B97: 57355.5435 | C97: 84055.49166 | D97: 16875.64321 | E97: 467290.6569 | F97: 24779.61049 | G97: 31480.38215 | H97: 35531.1036 | I97: 87966.45837 | J97: 165210.9211 | K97: 68193.43527
A98: Aalborg | B98: 538222.2055 | C98: 600493.5205 | D98: 103413.1419 | E98: 1208799.99 | F98: 75319.82516 | G98: 67094.37712 | H98: 141686.1678 | I98: 328554.3816 | J98: 320448.6042 | K98: 145021.8351
A99: Aarhus | B99: 660496.8391 | C99: 915219.2161 | D99: 178202.8422 | E99: 2309331.629 | F99: 96503.66764 | G99: 188029.519 | H99: 201676.7324 | I99: 452544.3958 | J99: 659424.0642 | K99: 182972.2623
A100: Hele landet | B100: =SUM(B2:B99) -> 9430986.217 | C100: 11543671.7 | D100: 2491057.132 | E100: 35090906.7 | F100: 2329110.216 | G100: 2708102.546 | H100: 4078413.75 | I100: 9590854.067 | J100: 10398435.22 | K100: =SUM(K2:K99) -> 5291439.2
